Workbook

Sheet الرئيسية
Z4: يناير | AA4: 1
Z5: فبراير | AA5: 2
Z6: مارس | AA6: 3
Z7: ابريل | AA7: 4
Z8: مايو | AA8: 5
Z9: يونيو | AA9: 6
Z10: يوليو | AA10: 7
Z11: اغسطس | AA11: 8
Z12: سبتمبر | AA12: 9
Z13: اكتوبر | AA13: 10
Z14: نوفمبر | AA14: 11
Z15: ديسمبر | AA15: 12

Sheet قائمة الموظفين
A1: الكود | B1: الاسم | C1: الوظيفه | D1: الاساسى | E1: التامين | U1: رصيد الاجازات | W1: التامينات
E2: الثابت | F2: المتغير | G2: اجر اليوم | H2: اجر الساعه | I2: اضافى 1 | J2: اضافى2 | K2: عطلات | L2: الحافز | M2: بدل اغتراب | N2: بدل مواصلات | O2: بدل وجبه | P2: بدل غلاء معيشه | Q2: بدل موبايل | R2: بدل ملبس | S2: بدل طبيعة عمل | T2: قرض | U2: اعتيادى 21 | V2: عارضه 6 | W2: ت اجتماعى | X2: ت طبى خاص
A3: 230012 | B3: احمد امام | C3: مدير ادارى | D3: 3000 | E3: 750 | F3: 750 | G3: =SUM(D3+F3+E3)/30 -> 150 | H3: =G3/8 -> 18.75 | I3: =H3*1.5 -> 28.125 | J3: =H3*2 -> 37.5 | K3: =H3*2 -> 37.5 | L3: 1000 | M3: 100 | N3: 600 | O3: 250 | P3: 150 | Q3: 100 | R3: 50 | S3: 50 | T3: =12000-Input!AC37 -> 12000 | U3: =21-IF(A3=Input!$A$6,Input!P37,0) -> 21 | V3: 6 | W3: =-140 -> -140 | X3: =-100 -> -100
A4: 230013 | B4: احمد السيد | C4: امين مخزن | D4: 2000 | E4: 500 | F4: 500 | G4: =SUM(D4+F4+E4)/30 -> 100 | H4: =G4/8 -> 12.5 | I4: =H4*1.5 -> 18.75 | J4: =H4*2 -> 25 | K4: =H4*2 -> 25 | L4: 800 | M4: 100 | N4: 600 | O4: 300 | P4: 150 | S4: 50 | T4: -10000 | U4: =21-IF(A4=Input!$A$6,Input!P37,0) -> 21 | V4: 6 | W4: =-140 -> -140 | X4: =-100 -> -100
A5: 230014 | B5: يسرى موافى | C5: فنى | D5: 1500 | E5: 500 | F5: 500 | G5: 83.33333333 | H5: 10.41666667 | I5: 15.625 | J5: 20.83333333 | K5: 20.83333333 | L5: 750 | N5: 650 | O5: 350 | Q5: 50 | S5: 100 | T5: -9000 | U5: =21-IF(A5=Input!$A$6,Input!P37,0) -> 21 | V5: 6 | W5: -140 | X5: -100
A6: 230015 | B6: صالح محمد | C6: عامل | D6: 1800 | G6: 60 | H6: 7.5 | I6: 11.25 | J6: 15 | K6: 15 | L6: 1000 | N6: 500 | O6: 300 | P6: 200 | S6: 500 | T6: -8000 | U6: =21-IF(A6=Input!$A$6,Input!P37,0) -> 21 | V6: 6 | W6: -140 | X6: -100
A7: 230016 | B7: مراد الشافعى | C7: عامل | D7: 1750 | E7: 250 | F7: 250 | G7: 75 | H7: 9.375 | I7: 14.0625 | J7: 18.75 | K7: 18.75 | L7: 500 | M7: 100 | N7: 200 | O7: 100 | Q7: 50 | S7: 100 | T7: -7000 | V7: 6 | W7: -140 | X7: -100
A8: 230017 | B8: محمد على | C8: مدير ادارى | D8: 1500 | E8: 150 | F8: 150 | G8: 60 | H8: 7.5 | I8: 11.25 | J8: 15 | K8: 15 | L8: 800 | N8: 750 | P8: 200 | R8: 100 | T8: -500 | V8: 6 | W8: -140 | X8: -100
A9: 230018 | B9: عبد الواحد السيد | C9: عامل | D9: 4000 | E9: 500 | F9: 500 | G9: 166.6666667 | H9: 20.83333333 | I9: 31.25 | J9: 41.66666667 | K9: 41.66666667 | M9: 100 | N9: 500 | P9: 150 | S9: 100 | T9: -1000 | V9: 6 | W9: -140 | X9: -100
A10: 100008 | B10: احمد فتحى | C10: مساعد فنى | D10: 3000 | E10: 400 | F10: 400 | G10: 126.6666667 | H10: 15.83333333 | I10: 23.75 | J10: 31.66666667 | K10: 31.66666667 | L10: 500 | M10: 200 | N10: 100 | O10: 100 | P10: 100 | Q10: 50 | R10: 50 | S10: 50 | T10: -1500 | V10: 6 | W10: -140 | X10: -100
A11: 100009 | B11: احمد منصور | C11: امين مخزن | G11: 0 | H11: 0 | I11: 0 | J11: 0 | K11: 0 | V11: 6
A12: 100010 | B12: محمد صلاح | C12: مساعد امين مخزن | G12: 0 | H12: 0 | I12: 0 | J12: 0 | K12: 0 | V12: 6
A13: 100011 | B13: احمد مصطفى | C13: مدير حسابات | G13: 0 | H13: 0 | I13: 0 | J13: 0 | K13: 0 | V13: 6
A14: 100012 | B14: احمد سعيد | C14: محاسب | G14: 0 | H14: 0 | I14: 0 | J14: 0 | K14: 0 | V14: 6
A15: 100013 | B15: محمد رمضان | C15: محاسب | G15: 0 | H15: 0 | I15: 0 | J15: 0 | K15: 0 | V15: 6
A16: 100014 | B16: محمد شعبان | C16: رئيس قسم | G16: 0 | H16: 0 | I16: 0 | J16: 0 | K16: 0 | V16: 6
A17: 100015 | B17: احمد كرم | C17: محاسب | G17: 0 | H17: 0 | I17: 0 | J17: 0 | K17: 0 | V17: 6
A18: 100016 | B18: اسامه محمود | C18: مدير حسابات | G18: 0 | H18: 0 | I18: 0 | J18: 0 | K18: 0 | V18: 6
A19: 100017 | B19: محمد الداخلى | C19: مدير ادارى | G19: 0 | H19: 0 | I19: 0 | J19: 0 | K19: 0 | V19: 6
A20: 100018 | B20: محمد عبد العزيز | C20: مساعد امين مخزن | G20: 0 | H20: 0 | I20: 0 | J20: 0 | K20: 0 | V20: 6
A21: 100019 | B21: هانى محمد | C21: محاسب | G21: 0 | H21: 0 | I21: 0 | J21: 0 | K21: 0 | V21: 6
A22: 100020 | B22: محمد حقار | C22: سائق | G22: 0 | H22: 0 | I22: 0 | J22: 0 | K22: 0 | V22: 6
A23: 100021 | B23: احمد عثمان | C23: فنى | D23: 2000 | E23: 500 | F23: 100 | G23: 86.66666667 | H23: 10.83333333 | I23: 16.25 | J23: 21.66666667 | K23: 21.66666667 | L23: 500 | M23: 50 | N23: 600 | O23: 300 | Q23: 100 | R23: 50 | S23: 100 | T23: 5000 | U23: 15 | V23: 6 | W23: 130 | X23: 90
A24: 100022 | B24: مصطفى العربى | C24: مساعد امين مخزن | D24: 3500 | E24: 2500 | F24: 1000 | G24: 233.3333333 | H24: 29.16666667 | I24: 43.75 | J24: 58.33333333 | K24: 58.33333333 | L24: 750 | N24: 350 | O24: 400 | P24: 300 | Q24: 25 | R24: 100 | U24: 21 | V24: 6 | W24: 128 | X24: 90
A25: 100023 | B25: منتصر عماره | C25: امين مخزن | D25: 5000 | E25: 4000 | F25: 1000 | G25: 333.3333333 | H25: 41.66666667 | I25: 62.5 | J25: 83.33333333 | K25: 83.33333333 | L25: 1500 | N25: 750 | O25: 300 | P25: 150 | Q25: 50 | S25: 30 | U25: 30
A26: 100024 | G26: 0 | H26: 0 | I26: 0 | J26: 0 | K26: 0
A27: 100025 | G27: 0 | H27: 0 | I27: 0 | J27: 0 | K27: 0
A28: 100026 | G28: 0 | H28: 0 | I28: 0 | J28: 0 | K28: 0
A29: 100027 | G29: 0 | H29: 0 | I29: 0 | J29: 0 | K29: 0
A30: 100028 | G30: 0 | H30: 0 | I30: 0 | J30: 0 | K30: 0
A31: 100029 | G31: 0 | H31: 0 | I31: 0 | J31: 0 | K31: 0
A32: 100030 | G32: 0 | H32: 0 | I32: 0 | J32: 0 | K32: 0
G33: 0 | H33: 0 | I33: 0 | J33: 0 | K33: 0
G34: 0 | H34: 0 | I34: 0 | J34: 0 | K34: 0
G35: 0 | H35: 0 | I35: 0 | J35: 0 | K35: 0
G36: 0 | H36: 0 | I36: 0 | J36: 0 | K36: 0
G37: 0 | H37: 0 | I37: 0 | J37: 0 | K37: 0
G38: 0 | H38: 0 | I38: 0 | J38: 0 | K38: 0
G39: 0 | H39: 0 | I39: 0 | J39: 0 | K39: 0
G40: 0 | H40: 0 | I40: 0 | J40: 0 | K40: 0
G41: 0 | H41: 0 | I41: 0 | J41: 0 | K41: 0
G42: 0 | H42: 0 | I42: 0 | J42: 0 | K42: 0
G43: 0 | H43: 0 | I43: 0 | J43: 0 | K43: 0
G44: 0 | H44: 0 | I44: 0 | J44: 0 | K44: 0
G45: 0 | H45: 0 | I45: 0 | J45: 0 | K45: 0
G46: 0 | H46: 0 | I46: 0 | J46: 0 | K46: 0
G47: 0 | H47: 0 | I47: 0 | J47: 0 | K47: 0
G48: 0 | H48: 0 | I48: 0 | J48: 0 | K48: 0
G49: 0 | H49: 0 | I49: 0 | J49: 0 | K49: 0
G50: 0 | H50: 0 | I50: 0 | J50: 0 | K50: 0
G51: 0 | H51: 0 | I51: 0 | J51: 0 | K51: 0
G52: 0 | H52: 0 | I52: 0 | J52: 0 | K52: 0
G53: 0 | H53: 0 | I53: 0 | J53: 0 | K53: 0
G54: 0 | H54: 0 | I54: 0 | J54: 0 | K54: 0
G55: 0 | H55: 0 | I55: 0 | J55: 0 | K55: 0
G56: 0 | H56: 0 | I56: 0 | J56: 0 | K56: 0
G57: 0 | H57: 0 | I57: 0 | J57: 0 | K57: 0
G58: 0 | H58: 0 | I58: 0 | J58: 0 | K58: 0
G59: 0 | H59: 0 | I59: 0 | J59: 0 | K59: 0
G60: 0 | H60: 0 | I60: 0 | J60: 0 | K60: 0
G61: 0 | H61: 0 | I61: 0 | J61: 0 | K61: 0
G62: 0 | H62: 0 | I62: 0 | J62: 0 | K62: 0
G63: 0 | H63: 0 | I63: 0 | J63: 0 | K63: 0
G64: 0 | H64: 0 | I64: 0 | J64: 0 | K64: 0
G65: 0 | H65: 0 | I65: 0 | J65: 0 | K65: 0
G66: 0 | H66: 0 | I66: 0 | J66: 0 | K66: 0
G67: 0 | H67: 0 | I67: 0 | J67: 0 | K67: 0
G68: =SUM(D68+F68+E68)/30 -> 0 | H68: =G68/8 -> 0 | I68: =H68*1.5 -> 0 | J68: =H68*2 -> 0 | K68: =H68*2 -> 0
G69: 0 | H69: 0 | I69: 0 | J69: 0 | K69: 0
G70: 0 | H70: 0 | I70: 0 | J70: 0 | K70: 0
G71: 0 | H71: 0 | I71: 0 | J71: 0 | K71: 0
G72: 0 | H72: 0 | I72: 0 | J72: 0 | K72: 0
G73: 0 | H73: 0 | I73: 0 | J73: 0 | K73: 0
G74: 0 | H74: 0 | I74: 0 | J74: 0 | K74: 0
G75: 0 | H75: 0 | I75: 0 | J75: 0 | K75: 0
G76: 0 | H76: 0 | I76: 0 | J76: 0 | K76: 0
G77: 0 | H77: 0 | I77: 0 | J77: 0 | K77: 0
G78: 0 | H78: 0 | I78: 0 | J78: 0 | K78: 0
G79: 0 | H79: 0 | I79: 0 | J79: 0 | K79: 0
G80: 0 | H80: 0 | I80: 0 | J80: 0 | K80: 0
G81: 0 | H81: 0 | I81: 0 | J81: 0 | K81: 0
G82: 0 | H82: 0 | I82: 0 | J82: 0 | K82: 0
G83: 0 | H83: 0 | I83: 0 | J83: 0 | K83: 0
G84: 0 | H84: 0 | I84: 0 | J84: 0 | K84: 0
G85: 0 | H85: 0 | I85: 0 | J85: 0 | K85: 0
G86: 0 | H86: 0 | I86: 0 | J86: 0 | K86: 0
G87: 0 | H87: 0 | I87: 0 | J87: 0 | K87: 0
G88: 0 | H88: 0 | I88: 0 | J88: 0 | K88: 0
G89: 0 | H89: 0 | I89: 0 | J89: 0 | K89: 0
G90: 0 | H90: 0 | I90: 0 | J90: 0 | K90: 0
G91: 0 | H91: 0 | I91: 0 | J91: 0 | K91: 0
G92: 0 | H92: 0 | I92: 0 | J92: 0 | K92: 0
G93: 0 | H93: 0 | I93: 0 | J93: 0 | K93: 0
G94: 0 | H94: 0 | I94: 0 | J94: 0 | K94: 0
G95: 0 | H95: 0 | I95: 0 | J95: 0 | K95: 0
G96: 0 | H96: 0 | I96: 0 | J96: 0 | K96: 0
G97: 0 | H97: 0 | I97: 0 | J97: 0 | K97: 0
G98: 0 | H98: 0 | I98: 0 | J98: 0 | K98: 0
G99: 0 | H99: 0 | I99: 0 | J99: 0 | K99: 0
G100: 0 | H100: 0 | I100: 0 | J100: 0 | K100: 0
G101: 0 | H101: 0 | I101: 0 | J101: 0 | K101: 0
G102: 0 | H102: 0 | I102: 0 | J102: 0 | K102: 0
G103: 0 | H103: 0 | I103: 0 | J103: 0 | K103: 0
G104: 0 | H104: 0 | I104: 0 | J104: 0 | K104: 0
G105: 0 | H105: 0 | I105: 0 | J105: 0 | K105: 0
G106: 0 | H106: 0 | I106: 0 | J106: 0 | K106: 0
G107: 0 | H107: 0 | I107: 0 | J107: 0 | K107: 0
G108: 0 | H108: 0 | I108: 0 | J108: 0 | K108: 0
G109: 0 | H109: 0 | I109: 0 | J109: 0 | K109: 0
G110: 0 | H110: 0 | I110: 0 | J110: 0 | K110: 0
G111: 0 | H111: 0 | I111: 0 | J111: 0 | K111: 0
G112: 0 | H112: 0 | I112: 0 | J112: 0 | K112: 0
G113: 0 | H113: 0 | I113: 0 | J113: 0 | K113: 0
G114: 0 | H114: 0 | I114: 0 | J114: 0 | K114: 0
G115: 0 | H115: 0 | I115: 0 | J115: 0 | K115: 0
G116: 0 | H116: 0 | I116: 0 | J116: 0 | K116: 0
G117: 0 | H117: 0 | I117: 0 | J117: 0 | K117: 0
G118: 0 | H118: 0 | I118: 0 | J118: 0 | K118: 0
G119: 0 | H119: 0 | I119: 0 | J119: 0 | K119: 0
G120: 0 | H120: 0 | I120: 0 | J120: 0 | K120: 0
G121: 0 | H121: 0 | I121: 0 | J121: 0 | K121: 0
G122: 0 | H122: 0 | I122: 0 | J122: 0 | K122: 0
G123: 0 | H123: 0 | I123: 0 | J123: 0 | K123: 0
G124: 0 | H124: 0 | I124: 0 | J124: 0 | K124: 0
G125: 0 | H125: 0 | I125: 0 | J125: 0 | K125: 0
G126: 0 | H126: 0 | I126: 0 | J126: 0 | K126: 0
G127: 0 | H127: 0 | I127: 0 | J127: 0 | K127: 0
G128: 0 | H128: 0 | I128: 0 | J128: 0 | K128: 0
G129: 0 | H129: 0 | I129: 0 | J129: 0 | K129: 0
G130: 0 | H130: 0 | I130: 0 | J130: 0 | K130: 0
G131: 0 | H131: 0 | I131: 0 | J131: 0 | K131: 0
G132: =SUM(D132+F132+E132)/30 -> 0 | H132: =G132/8 -> 0 | I132: =H132*1.5 -> 0 | J132: =H132*2 -> 0 | K132: =H132*2 -> 0
G133: 0 | H133: 0 | I133: 0 | J133: 0 | K133: 0
G134: 0 | H134: 0 | I134: 0 | J134: 0 | K134: 0
G135: 0 | H135: 0 | I135: 0 | J135: 0 | K135: 0
G136: 0 | H136: 0 | I136: 0 | J136: 0 | K136: 0
G137: 0 | H137: 0 | I137: 0 | J137: 0 | K137: 0
G138: 0 | H138: 0 | I138: 0 | J138: 0 | K138: 0
G139: 0 | H139: 0 | I139: 0 | J139: 0 | K139: 0
G140: 0 | H140: 0 | I140: 0 | J140: 0 | K140: 0
G141: 0 | H141: 0 | I141: 0 | J141: 0 | K141: 0
G142: 0 | H142: 0 | I142: 0 | J142: 0 | K142: 0
G143: 0 | H143: 0 | I143: 0 | J143: 0 | K143: 0
G144: 0 | H144: 0 | I144: 0 | J144: 0 | K144: 0
G145: 0 | H145: 0 | I145: 0 | J145: 0 | K145: 0
G146: 0 | H146: 0 | I146: 0 | J146: 0 | K146: 0
G147: 0 | H147: 0 | I147: 0 | J147: 0 | K147: 0
G148: 0 | H148: 0 | I148: 0 | J148: 0 | K148: 0
G149: 0 | H149: 0 | I149: 0 | J149: 0 | K149: 0
G150: 0 | H150: 0 | I150: 0 | J150: 0 | K150: 0
G151: 0 | H151: 0 | I151: 0 | J151: 0 | K151: 0

Sheet Input
A1: 2022 | C1: مدخلات شهر | J1: ديسمبر
A3: الاسم | B3: =IFERROR(VLOOKUP(A6,'قائمة الموظفين'!A:C,2,0),"") -> يسرى موافى | C3: اجمالى المستحق | E3: =H4+M4+N4+O4+P4+Q4+T4+U4+V4+W4+X4+Y4+Z4+AA4 -> -683.5380498 | F3: الصافى | G3: =E3+E4 -> -724.7463831 | K3: =IFERROR(#REF!*VLOOKUP($A6,'قائمة الموظفين'!$A$3:$V$500,7,0),"") ->  | L3: =IF(K37=0,0,IF(K37=1,0.25,IF(K37=2,0.75,IF(K37=3,1.75,K37-2+0.75)))) -> 8.75 | AB3: القرض المتبقى
A4: الوظيفه | B4: =IFERROR(VLOOKUP(A6,'قائمة الموظفين'!A1:C1048575,3,0),"") -> فنى | C4: اجمالى الاستقطاعات | E4: =K4+L4+R4+S4+AB4+AC37+AD37+AE37 -> -41.20833333 | H4: =IFERROR($H37*VLOOKUP($A6,'قائمة الموظفين'!$A$3:$V$500,8,0),"") -> 3501.229745 | J4: =J37 -> -172.3680556 | K4: =IF(OR(K37=0,K37=1),0,IF(K37=2,0.25,IF(K37=3,0.75,K37-3+0.75))) -> 7.75 | L4: =IFERROR($L37*VLOOKUP($A6,'قائمة الموظفين'!$A$3:$X$500,8,0),"") -> -48.95833333 | M4: =IFERROR($M37*VLOOKUP($A6,'قائمة الموظفين'!$A$3:$X$500,9,0),"") -> -4606.434462 | N4: =IFERROR($N37*VLOOKUP($A6,'قائمة الموظفين'!$A$3:$X$500,10,0),"") -> 0 | O4: =IFERROR($O37*VLOOKUP($A6,'قائمة الموظفين'!$A$3:$X$500,11,0),"") -> 0 | P4: =IFERROR($P37*VLOOKUP($A6,'قائمة الموظفين'!$A$3:$X$500,7,0),"") -> 0 | Q4: =IFERROR($Q37*VLOOKUP($A6,'قائمة الموظفين'!$A$3:$X$500,7,0),"") -> 0 | R4: =IFERROR(-$R37*VLOOKUP($A6,'قائمة الموظفين'!$A$3:$X$500,7,0),"") -> 0 | S4: =IFERROR(-$S37*2*VLOOKUP($A6,'قائمة الموظفين'!$A$3:$X$500,7,0),"") -> 0 | T4: =T37 -> 0 | U4: 238.3333333 | V4: 128.3333333 | W4: 0 | X4: 18.33333333 | Y4: 0 | Z4: =Z37 -> 36.66666667 | AA4: =IFERROR(AA37*VLOOKUP($A6,'قائمة الموظفين'!$A$3:$X$500,7,0),"") -> 0 | AB4: =IFERROR(-AB37*VLOOKUP($A6,'قائمة الموظفين'!$A$3:$X$500,7,0),"") -> 0 | AC4: =IFERROR(VLOOKUP($A6,'قائمة الموظفين'!$A$3:$X$500,20,0),"") -> -9000 | AD4: =IFERROR(VLOOKUP($A6,'قائمة الموظفين'!$A$3:$X$500,23,0),"") -> -140 | AE4: =IFERROR(VLOOKUP($A6,'قائمة الموظفين'!$A$3:$X$500,24,0),"") -> -100
A5: الكود | B5: اليوم | C5: التــــــــــــاريخ | D5: اذن تأخير | E5: الحضور | F5: الانصراف | G5: عدد الساعات | H5: الفعلى | I5: عدد الاضافى | J5: التأخير ساعات | K5: عدد التأخيرات | L5: الفاقد | M5: اضافى 1 | N5: اضافى2 | O5: عطلات | P5: اعتيادى 21 | Q5: عارضه 6 | R5: غياب باذن | S5: غياب بدون اذن | T5: بدل اغتراب | U5: بدل مواصلات | V5: بدل وجبه | W5: بدل غلاء معيشه | X5: بدل موبايل | Y5: بدل ملبس | Z5: بدل طبيعة عمل | AA5: مكافات | AB5: جزاء | AC5: قرض | AD5: ت اجتماعى | AE5: ت طبى خاص
A6: 230014 | B6: =C6 -> 2022-12-01 | C6: =IF(MONTH(DATE($A$1,VLOOKUP($J$1,الرئيسية!$Z$4:$AA$15,2,0),ROWS($A$1:A1)))>VLOOKUP($J$1,الرئيسية!$Z$4:$AA$15,2,0),"",DATE($A$1,VLOOKUP($J$1,الرئيسية!$Z$4:$AA$15,2,0),ROWS($A$1:A1))) -> 2022-12-01 | E6: =IFERROR(INDEX('مواعيد البصمه'!$F$3:$F$1000,MATCH(1,INDEX(($A$6='مواعيد البصمه'!$A$3:$A$1000)*(C6='مواعيد البصمه'!$D$3:$D$1000),0,1),0)),"") -> 8.55 | F6: =IFERROR(INDEX('مواعيد البصمه'!$G$3:$G$1000,MATCH(1,INDEX(($A$6='مواعيد البصمه'!$A$3:$A$1000)*(C6='مواعيد البصمه'!$D$3:$D$1000),0,1),0)),"") -> 12.3 | G6: =IFERROR($F6-E6,"") -> 3.75 | H6: =IFERROR(IF($E6=9.25,G6+0.25,F6-E6),"") -> 3.75 | I6: =IFERROR(IF($F6>17,$F6-17,0),"") -> 0 | J6: =IFERROR(IF($E6>9.25,E6-9,0),"") -> 0 | K6: =IFERROR(IF(D6="اذن تاخير",0,IF($J6>0,1,0)),"") -> 0 | L6: =IFERROR(IF(F6>=17,0,IF(F6=0,0,F6-17)),"") -> -4.7 | M6: =IFERROR(IF($I6>3,3,I6),"") -> 0 | N6: =IFERROR(P3SI(I6>3,I6-3,0),"") ->  | T6: =IF($G6>=1,VLOOKUP($A$6,'قائمة الموظفين'!$A$3:$V$500,13,0)/30,0) -> 0 | U6: =IF($G6>=1,VLOOKUP($A$6,'قائمة الموظفين'!$A$3:$V$500,14,0)/30,0) -> 21.66666667 | V6: =IF($G6>=1,VLOOKUP($A$6,'قائمة الموظفين'!$A$3:$V$500,15,0)/30,0) -> 11.66666667 | W6: =IF($G6>=1,VLOOKUP($A$6,'قائمة الموظفين'!$A$3:$V$500,16,0)/30,0) -> 0 | X6: =IF($G6>=1,VLOOKUP($A$6,'قائمة الموظفين'!$A$3:$V$500,17,0)/30,0) -> 1.666666667 | Y6: =IF($G6>=1,VLOOKUP($A$6,'قائمة الموظفين'!$A$3:$V$500,18,0)/30,0) -> 0 | Z6: =IF($G6>=1,VLOOKUP($A$6,'قائمة الموظفين'!$A$3:$V$500,19,0)/30,0) -> 3.333333333
B7: =C7 -> 2022-12-02 | C7: =IF(MONTH(DATE($A$1,VLOOKUP($J$1,الرئيسية!$Z$4:$AA$15,2,0),ROWS($A$1:A2)))>VLOOKUP($J$1,الرئيسية!$Z$4:$AA$15,2,0),"",DATE($A$1,VLOOKUP($J$1,الرئيسية!$Z$4:$AA$15,2,0),ROWS($A$1:A2))) -> 2022-12-02 | E7: =IFERROR(INDEX('مواعيد البصمه'!$F$3:$F$1000,MATCH(1,INDEX(($A$6='مواعيد البصمه'!$A$3:$A$1000)*(C7='مواعيد البصمه'!$D$3:$D$1000),0,1),0)),"") ->  | F7: =IFERROR(INDEX('مواعيد البصمه'!$G$3:$G$1000,MATCH(1,INDEX(($A$6='مواعيد البصمه'!$A$3:$A$1000)*(C7='مواعيد البصمه'!$D$3:$D$1000),0,1),0)),"") ->  | G7: =IFERROR($F7-E7,"") ->  | H7: =IFERROR(IF($E7=9.25,G7+0.25,F7-E7),"") ->  | I7: =IFERROR(IF($F7>17,$F7-17,0),"") ->  | J7: =IFERROR(IF($E7>9.25,E7-9,0),"") ->  | K7: =IFERROR(IF(D7="اذن تاخير",0,IF($J7>0,1,0)),"") -> 1 | L7: =IFERROR(IF(F7>=17,0,IF(F7=0,0,F7-17)),"") -> 0 | M7: =IFERROR(IF($I7>3,3,I7),"") -> 3 | N7: =IFERROR(P3SI(I7>3,I7-3,0),"") ->  | T7: =IF($G7>=1,VLOOKUP($A$6,'قائمة الموظفين'!$A$3:$V$500,13,0)/30,0) -> 0 | U7: =IF($G7>=1,VLOOKUP($A$6,'قائمة الموظفين'!$A$3:$V$500,14,0)/30,0) -> 21.66666667 | V7: =IF($G7>=1,VLOOKUP($A$6,'قائمة الموظفين'!$A$3:$V$500,15,0)/30,0) -> 11.66666667 | W7: =IF($G7>=1,VLOOKUP($A$6,'قائمة الموظفين'!$A$3:$V$500,16,0)/30,0) -> 0 | X7: =IF($G7>=1,VLOOKUP($A$6,'قائمة الموظفين'!$A$3:$V$500,17,0)/30,0) -> 1.666666667 | Y7: =IF($G7>=1,VLOOKUP($A$6,'قائمة الموظفين'!$A$3:$V$500,18,0)/30,0) -> 0 | Z7: =IF($G7>=1,VLOOKUP($A$6,'قائمة الموظفين'!$A$3:$V$500,19,0)/30,0) -> 3.333333333
B8: 2022-12-03 | C8: =IF(MONTH(DATE($A$1,VLOOKUP($J$1,الرئيسية!$Z$4:$AA$15,2,0),ROWS($A$1:A3)))>VLOOKUP($J$1,الرئيسية!$Z$4:$AA$15,2,0),"",DATE($A$1,VLOOKUP($J$1,الرئيسية!$Z$4:$AA$15,2,0),ROWS($A$1:A3))) -> 2022-12-03 | E8: =IFERROR(INDEX('مواعيد البصمه'!$F$3:$F$1000,MATCH(1,INDEX(($A$6='مواعيد البصمه'!$A$3:$A$1000)*(C8='مواعيد البصمه'!$D$3:$D$1000),0,1),0)),"") -> 08:49 | F8: =IFERROR(INDEX('مواعيد البصمه'!$G$3:$G$1000,MATCH(1,INDEX(($A$6='مواعيد البصمه'!$A$3:$A$1000)*(C8='مواعيد البصمه'!$D$3:$D$1000),0,1),0)),"") -> 17:24 | G8: 0.3576388889 | H8: 0.3576388889 | I8: -16.275 | J8: -8.632638889 | K8: 0 | L8: 0 | M8: -16.275 | N8: =IFERROR(P3SI(I8>3,I8-3,0),"") ->  | T8: =IF($G8>=1,VLOOKUP($A$6,'قائمة الموظفين'!$A$3:$V$500,13,0)/30,0) -> 0 | U8: =IF($G8>=1,VLOOKUP($A$6,'قائمة الموظفين'!$A$3:$V$500,14,0)/30,0) -> 0 | V8: =IF($G8>=1,VLOOKUP($A$6,'قائمة الموظفين'!$A$3:$V$500,15,0)/30,0) -> 0 | W8: =IF($G8>=1,VLOOKUP($A$6,'قائمة الموظفين'!$A$3:$V$500,16,0)/30,0) -> 0 | X8: =IF($G8>=1,VLOOKUP($A$6,'قائمة الموظفين'!$A$3:$V$500,17,0)/30,0) -> 0 | Y8: =IF($G8>=1,VLOOKUP($A$6,'قائمة الموظفين'!$A$3:$V$500,18,0)/30,0) -> 0 | Z8: =IF($G8>=1,VLOOKUP($A$6,'قائمة الموظفين'!$A$3:$V$500,19,0)/30,0) -> 0
B9: 2022-12-04 | C9: =IF(MONTH(DATE($A$1,VLOOKUP($J$1,الرئيسية!$Z$4:$AA$15,2,0),ROWS($A$1:A4)))>VLOOKUP($J$1,الرئيسية!$Z$4:$AA$15,2,0),"",DATE($A$1,VLOOKUP($J$1,الرئيسية!$Z$4:$AA$15,2,0),ROWS($A$1:A4))) -> 2022-12-04 | E9: =IFERROR(INDEX('مواعيد البصمه'!$F$3:$F$1000,MATCH(1,INDEX(($A$6='مواعيد البصمه'!$A$3:$A$1000)*(C9='مواعيد البصمه'!$D$3:$D$1000),0,1),0)),"") -> 09:10 | F9: =IFERROR(INDEX('مواعيد البصمه'!$G$3:$G$1000,MATCH(1,INDEX(($A$6='مواعيد البصمه'!$A$3:$A$1000)*(C9='مواعيد البصمه'!$D$3:$D$1000),0,1),0)),"") -> 19:09 | G9: 0.4159722222 | H9: 0.4159722222 | I9: -16.20208333 | J9: -8.618055556 | K9: 0 | L9: 0 | M9: -16.20208333 | N9: =IFERROR(P3SI(I9>3,I9-3,0),"") ->  | T9: =IF($G9>=1,VLOOKUP($A$6,'قائمة الموظفين'!$A$3:$V$500,13,0)/30,0) -> 0 | U9: =IF($G9>=1,VLOOKUP($A$6,'قائمة الموظفين'!$A$3:$V$500,14,0)/30,0) -> 0 | V9: =IF($G9>=1,VLOOKUP($A$6,'قائمة الموظفين'!$A$3:$V$500,15,0)/30,0) -> 0 | W9: =IF($G9>=1,VLOOKUP($A$6,'قائمة الموظفين'!$A$3:$V$500,16,0)/30,0) -> 0 | X9: =IF($G9>=1,VLOOKUP($A$6,'قائمة الموظفين'!$A$3:$V$500,17,0)/30,0) -> 0 | Y9: =IF($G9>=1,VLOOKUP($A$6,'قائمة الموظفين'!$A$3:$V$500,18,0)/30,0) -> 0 | Z9: =IF($G9>=1,VLOOKUP($A$6,'قائمة الموظفين'!$A$3:$V$500,19,0)/30,0) -> 0
B10: 2022-12-05 | C10: =IF(MONTH(DATE($A$1,VLOOKUP($J$1,الرئيسية!$Z$4:$AA$15,2,0),ROWS($A$1:A5)))>VLOOKUP($J$1,الرئيسية!$Z$4:$AA$15,2,0),"",DATE($A$1,VLOOKUP($J$1,الرئيسية!$Z$4:$AA$15,2,0),ROWS($A$1:A5))) -> 2022-12-05 | E10: =IFERROR(INDEX('مواعيد البصمه'!$F$3:$F$1000,MATCH(1,INDEX(($A$6='مواعيد البصمه'!$A$3:$A$1000)*(C10='مواعيد البصمه'!$D$3:$D$1000),0,1),0)),"") -> 08:13 | F10: =IFERROR(INDEX('مواعيد البصمه'!$G$3:$G$1000,MATCH(1,INDEX(($A$6='مواعيد البصمه'!$A$3:$A$1000)*(C10='مواعيد البصمه'!$D$3:$D$1000),0,1),0)),"") -> 18:42 | G10: 0.4368055556 | H10: 0.4368055556 | I10: -16.22083333 | J10: -8.657638889 | K10: 0 | L10: 0 | M10: -16.22083333 | N10: =IFERROR(P3SI(I10>3,I10-3,0),"") ->  | T10: =IF($G10>=1,VLOOKUP($A$6,'قائمة الموظفين'!$A$3:$V$500,13,0)/30,0) -> 0 | U10: =IF($G10>=1,VLOOKUP($A$6,'قائمة الموظفين'!$A$3:$V$500,14,0)/30,0) -> 0 | V10: =IF($G10>=1,VLOOKUP($A$6,'قائمة الموظفين'!$A$3:$V$500,15,0)/30,0) -> 0 | W10: =IF($G10>=1,VLOOKUP($A$6,'قائمة الموظفين'!$A$3:$V$500,16,0)/30,0) -> 0 | X10: =IF($G10>=1,VLOOKUP($A$6,'قائمة الموظفين'!$A$3:$V$500,17,0)/30,0) -> 0 | Y10: =IF($G10>=1,VLOOKUP($A$6,'قائمة الموظفين'!$A$3:$V$500,18,0)/30,0) -> 0 | Z10: =IF($G10>=1,VLOOKUP($A$6,'قائمة الموظفين'!$A$3:$V$500,19,0)/30,0) -> 0
B11: 2022-12-06 | C11: =IF(MONTH(DATE($A$1,VLOOKUP($J$1,الرئيسية!$Z$4:$AA$15,2,0),ROWS($A$1:A6)))>VLOOKUP($J$1,الرئيسية!$Z$4:$AA$15,2,0),"",DATE($A$1,VLOOKUP($J$1,الرئيسية!$Z$4:$AA$15,2,0),ROWS($A$1:A6))) -> 2022-12-06 | E11: =IFERROR(INDEX('مواعيد البصمه'!$F$3:$F$1000,MATCH(1,INDEX(($A$6='مواعيد البصمه'!$A$3:$A$1000)*(C11='مواعيد البصمه'!$D$3:$D$1000),0,1),0)),"") -> 09:08 | F11: =IFERROR(INDEX('مواعيد البصمه'!$G$3:$G$1000,MATCH(1,INDEX(($A$6='مواعيد البصمه'!$A$3:$A$1000)*(C11='مواعيد البصمه'!$D$3:$D$1000),0,1),0)),"") -> 09:08 | G11: 0 | H11: 0 | I11: -16.61944444 | J11: -8.619444444 | K11: 0 | L11: 0 | M11: -16.61944444 | N11: =IFERROR(P3SI(I11>3,I11-3,0),"") ->  | T11: =IF($G11>=1,VLOOKUP($A$6,'قائمة الموظفين'!$A$3:$V$500,13,0)/30,0) -> 0 | U11: =IF($G11>=1,VLOOKUP($A$6,'قائمة الموظفين'!$A$3:$V$500,14,0)/30,0) -> 0 | V11: =IF($G11>=1,VLOOKUP($A$6,'قائمة الموظفين'!$A$3:$V$500,15,0)/30,0) -> 0 | W11: =IF($G11>=1,VLOOKUP($A$6,'قائمة الموظفين'!$A$3:$V$500,16,0)/30,0) -> 0 | X11: =IF($G11>=1,VLOOKUP($A$6,'قائمة الموظفين'!$A$3:$V$500,17,0)/30,0) -> 0 | Y11: =IF($G11>=1,VLOOKUP($A$6,'قائمة الموظفين'!$A$3:$V$500,18,0)/30,0) -> 0 | Z11: =IF($G11>=1,VLOOKUP($A$6,'قائمة الموظفين'!$A$3:$V$500,19,0)/30,0) -> 0
B12: 2022-12-07 | C12: =IF(MONTH(DATE($A$1,VLOOKUP($J$1,الرئيسية!$Z$4:$AA$15,2,0),ROWS($A$1:A7)))>VLOOKUP($J$1,الرئيسية!$Z$4:$AA$15,2,0),"",DATE($A$1,VLOOKUP($J$1,الرئيسية!$Z$4:$AA$15,2,0),ROWS($A$1:A7))) -> 2022-12-07 | E12: =IFERROR(INDEX('مواعيد البصمه'!$F$3:$F$1000,MATCH(1,INDEX(($A$6='مواعيد البصمه'!$A$3:$A$1000)*(C12='مواعيد البصمه'!$D$3:$D$1000),0,1),0)),"") ->  | F12: =IFERROR(INDEX('مواعيد البصمه'!$G$3:$G$1000,MATCH(1,INDEX(($A$6='مواعيد البصمه'!$A$3:$A$1000)*(C12='مواعيد البصمه'!$D$3:$D$1000),0,1),0)),"") ->  | K12: 1 | L12: 0 | M12: 3 | N12: =IFERROR(P3SI(I12>3,I12-3,0),"") ->  | T12: =IF($G12>=1,VLOOKUP($A$6,'قائمة الموظفين'!$A$3:$V$500,13,0)/30,0) -> 0 | U12: =IF($G12>=1,VLOOKUP($A$6,'قائمة الموظفين'!$A$3:$V$500,14,0)/30,0) -> 21.66666667 | V12: =IF($G12>=1,VLOOKUP($A$6,'قائمة الموظفين'!$A$3:$V$500,15,0)/30,0) -> 11.66666667 | W12: =IF($G12>=1,VLOOKUP($A$6,'قائمة الموظفين'!$A$3:$V$500,16,0)/30,0) -> 0 | X12: =IF($G12>=1,VLOOKUP($A$6,'قائمة الموظفين'!$A$3:$V$500,17,0)/30,0) -> 1.666666667 | Y12: =IF($G12>=1,VLOOKUP($A$6,'قائمة الموظفين'!$A$3:$V$500,18,0)/30,0) -> 0 | Z12: =IF($G12>=1,VLOOKUP($A$6,'قائمة الموظفين'!$A$3:$V$500,19,0)/30,0) -> 3.333333333
B13: 2022-12-08 | C13: =IF(MONTH(DATE($A$1,VLOOKUP($J$1,الرئيسية!$Z$4:$AA$15,2,0),ROWS($A$1:A8)))>VLOOKUP($J$1,الرئيسية!$Z$4:$AA$15,2,0),"",DATE($A$1,VLOOKUP($J$1,الرئيسية!$Z$4:$AA$15,2,0),ROWS($A$1:A8))) -> 2022-12-08 | E13: =IFERROR(INDEX('مواعيد البصمه'!$F$3:$F$1000,MATCH(1,INDEX(($A$6='مواعيد البصمه'!$A$3:$A$1000)*(C13='مواعيد البصمه'!$D$3:$D$1000),0,1),0)),"") ->  | F13: =IFERROR(INDEX('مواعيد البصمه'!$G$3:$G$1000,MATCH(1,INDEX(($A$6='مواعيد البصمه'!$A$3:$A$1000)*(C13='مواعيد البصمه'!$D$3:$D$1000),0,1),0)),"") ->  | K13: 1 | L13: 0 | M13: 3 | N13: =IFERROR(P3SI(I13>3,I13-3,0),"") ->  | T13: =IF($G13>=1,VLOOKUP($A$6,'قائمة الموظفين'!$A$3:$V$500,13,0)/30,0) -> 0 | U13: =IF($G13>=1,VLOOKUP($A$6,'قائمة الموظفين'!$A$3:$V$500,14,0)/30,0) -> 21.66666667 | V13: =IF($G13>=1,VLOOKUP($A$6,'قائمة الموظفين'!$A$3:$V$500,15,0)/30,0) -> 11.66666667 | W13: =IF($G13>=1,VLOOKUP($A$6,'قائمة الموظفين'!$A$3:$V$500,16,0)/30,0) -> 0 | X13: =IF($G13>=1,VLOOKUP($A$6,'قائمة الموظفين'!$A$3:$V$500,17,0)/30,0) -> 1.666666667 | Y13: =IF($G13>=1,VLOOKUP($A$6,'قائمة الموظفين'!$A$3:$V$500,18,0)/30,0) -> 0 | Z13: =IF($G13>=1,VLOOKUP($A$6,'قائمة الموظفين'!$A$3:$V$500,19,0)/30,0) -> 3.333333333
B14: 2022-12-09 | C14: =IF(MONTH(DATE($A$1,VLOOKUP($J$1,الرئيسية!$Z$4:$AA$15,2,0),ROWS($A$1:A9)))>VLOOKUP($J$1,الرئيسية!$Z$4:$AA$15,2,0),"",DATE($A$1,VLOOKUP($J$1,الرئيسية!$Z$4:$AA$15,2,0),ROWS($A$1:A9))) -> 2022-12-09 | E14: =IFERROR(INDEX('مواعيد البصمه'!$F$3:$F$1000,MATCH(1,INDEX(($A$6='مواعيد البصمه'!$A$3:$A$1000)*(C14='مواعيد البصمه'!$D$3:$D$1000),0,1),0)),"") ->  | F14: =IFERROR(INDEX('مواعيد البصمه'!$G$3:$G$1000,MATCH(1,INDEX(($A$6='مواعيد البصمه'!$A$3:$A$1000)*(C14='مواعيد البصمه'!$D$3:$D$1000),0,1),0)),"") ->  | K14: 1 | L14: 0 | M14: 3 | N14: =IFERROR(P3SI(I14>3,I14-3,0),"") ->  | T14: =IF($G14>=1,VLOOKUP($A$6,'قائمة الموظفين'!$A$3:$V$500,13,0)/30,0) -> 0 | U14: =IF($G14>=1,VLOOKUP($A$6,'قائمة الموظفين'!$A$3:$V$500,14,0)/30,0) -> 21.66666667 | V14: =IF($G14>=1,VLOOKUP($A$6,'قائمة الموظفين'!$A$3:$V$500,15,0)/30,0) -> 11.66666667 | W14: =IF($G14>=1,VLOOKUP($A$6,'قائمة الموظفين'!$A$3:$V$500,16,0)/30,0) -> 0 | X14: =IF($G14>=1,VLOOKUP($A$6,'قائمة الموظفين'!$A$3:$V$500,17,0)/30,0) -> 1.666666667 | Y14: =IF($G14>=1,VLOOKUP($A$6,'قائمة الموظفين'!$A$3:$V$500,18,0)/30,0) -> 0 | Z14: =IF($G14>=1,VLOOKUP($A$6,'قائمة الموظفين'!$A$3:$V$500,19,0)/30,0) -> 3.333333333
B15: 2022-12-10 | C15: =IF(MONTH(DATE($A$1,VLOOKUP($J$1,الرئيسية!$Z$4:$AA$15,2,0),ROWS($A$1:A10)))>VLOOKUP($J$1,الرئيسية!$Z$4:$AA$15,2,0),"",DATE($A$1,VLOOKUP($J$1,الرئيسية!$Z$4:$AA$15,2,0),ROWS($A$1:A10))) -> 2022-12-10 | E15: =IFERROR(INDEX('مواعيد البصمه'!$F$3:$F$1000,MATCH(1,INDEX(($A$6='مواعيد البصمه'!$A$3:$A$1000)*(C15='مواعيد البصمه'!$D$3:$D$1000),0,1),0)),"") -> 09:13 | F15: =IFERROR(INDEX('مواعيد البصمه'!$G$3:$G$1000,MATCH(1,INDEX(($A$6='مواعيد البصمه'!$A$3:$A$1000)*(C15='مواعيد البصمه'!$D$3:$D$1000),0,1),0)),"") -> 17:07 | G15: 0.3291666667 | H15: 0.3291666667 | I15: -16.28680556 | J15: -8.615972222 | K15: 0 | L15: 0 | M15: -16.28680556 | N15: =IFERROR(P3SI(I15>3,I15-3,0),"") ->  | T15: =IF($G15>=1,VLOOKUP($A$6,'قائمة الموظفين'!$A$3:$V$500,13,0)/30,0) -> 0 | U15: =IF($G15>=1,VLOOKUP($A$6,'قائمة الموظفين'!$A$3:$V$500,14,0)/30,0) -> 0 | V15: =IF($G15>=1,VLOOKUP($A$6,'قائمة الموظفين'!$A$3:$V$500,15,0)/30,0) -> 0 | W15: =IF($G15>=1,VLOOKUP($A$6,'قائمة الموظفين'!$A$3:$V$500,16,0)/30,0) -> 0 | X15: =IF($G15>=1,VLOOKUP($A$6,'قائمة الموظفين'!$A$3:$V$500,17,0)/30,0) -> 0 | Y15: =IF($G15>=1,VLOOKUP($A$6,'قائمة الموظفين'!$A$3:$V$500,18,0)/30,0) -> 0 | Z15: =IF($G15>=1,VLOOKUP($A$6,'قائمة الموظفين'!$A$3:$V$500,19,0)/30,0) -> 0
B16: 2022-12-11 | C16: =IF(MONTH(DATE($A$1,VLOOKUP($J$1,الرئيسية!$Z$4:$AA$15,2,0),ROWS($A$1:A11)))>VLOOKUP($J$1,الرئيسية!$Z$4:$AA$15,2,0),"",DATE($A$1,VLOOKUP($J$1,الرئيسية!$Z$4:$AA$15,2,0),ROWS($A$1:A11))) -> 2022-12-11 | E16: =IFERROR(INDEX('مواعيد البصمه'!$F$3:$F$1000,MATCH(1,INDEX(($A$6='مواعيد البصمه'!$A$3:$A$1000)*(C16='مواعيد البصمه'!$D$3:$D$1000),0,1),0)),"") -> 09:07 | F16: =IFERROR(INDEX('مواعيد البصمه'!$G$3:$G$1000,MATCH(1,INDEX(($A$6='مواعيد البصمه'!$A$3:$A$1000)*(C16='مواعيد البصمه'!$D$3:$D$1000),0,1),0)),"") -> 17:33 | G16: 0.3513888889 | H16: 0.3513888889 | I16: -16.26875 | J16: -8.620138889 | K16: 0 | L16: 0 | M16: -16.26875 | N16: =IFERROR(P3SI(I16>3,I16-3,0),"") ->  | T16: =IF($G16>=1,VLOOKUP($A$6,'قائمة الموظفين'!$A$3:$V$500,13,0)/30,0) -> 0 | U16: =IF($G16>=1,VLOOKUP($A$6,'قائمة الموظفين'!$A$3:$V$500,14,0)/30,0) -> 0 | V16: =IF($G16>=1,VLOOKUP($A$6,'قائمة الموظفين'!$A$3:$V$500,15,0)/30,0) -> 0 | W16: =IF($G16>=1,VLOOKUP($A$6,'قائمة الموظفين'!$A$3:$V$500,16,0)/30,0) -> 0 | X16: =IF($G16>=1,VLOOKUP($A$6,'قائمة الموظفين'!$A$3:$V$500,17,0)/30,0) -> 0 | Y16: =IF($G16>=1,VLOOKUP($A$6,'قائمة الموظفين'!$A$3:$V$500,18,0)/30,0) -> 0 | Z16: =IF($G16>=1,VLOOKUP($A$6,'قائمة الموظفين'!$A$3:$V$500,19,0)/30,0) -> 0
B17: 2022-12-12 | C17: =IF(MONTH(DATE($A$1,VLOOKUP($J$1,الرئيسية!$Z$4:$AA$15,2,0),ROWS($A$1:A12)))>VLOOKUP($J$1,الرئيسية!$Z$4:$AA$15,2,0),"",DATE($A$1,VLOOKUP($J$1,الرئيسية!$Z$4:$AA$15,2,0),ROWS($A$1:A12))) -> 2022-12-12 | E17: =IFERROR(INDEX('مواعيد البصمه'!$F$3:$F$1000,MATCH(1,INDEX(($A$6='مواعيد البصمه'!$A$3:$A$1000)*(C17='مواعيد البصمه'!$D$3:$D$1000),0,1),0)),"") -> 09:03 | F17: =IFERROR(INDEX('مواعيد البصمه'!$G$3:$G$1000,MATCH(1,INDEX(($A$6='مواعيد البصمه'!$A$3:$A$1000)*(C17='مواعيد البصمه'!$D$3:$D$1000),0,1),0)),"") -> 19:04 | G17: 0.4173611111 | H17: 0.4173611111 | I17: -16.20555556 | J17: -8.622916667 | K17: 0 | L17: 0 | M17: -16.20555556 | N17: =IFERROR(P3SI(I17>3,I17-3,0),"") ->  | T17: =IF($G17>=1,VLOOKUP($A$6,'قائمة الموظفين'!$A$3:$V$500,13,0)/30,0) -> 0 | U17: =IF($G17>=1,VLOOKUP($A$6,'قائمة الموظفين'!$A$3:$V$500,14,0)/30,0) -> 0 | V17: =IF($G17>=1,VLOOKUP($A$6,'قائمة الموظفين'!$A$3:$V$500,15,0)/30,0) -> 0 | W17: =IF($G17>=1,VLOOKUP($A$6,'قائمة الموظفين'!$A$3:$V$500,16,0)/30,0) -> 0 | X17: =IF($G17>=1,VLOOKUP($A$6,'قائمة الموظفين'!$A$3:$V$500,17,0)/30,0) -> 0 | Y17: =IF($G17>=1,VLOOKUP($A$6,'قائمة الموظفين'!$A$3:$V$500,18,0)/30,0) -> 0 | Z17: =IF($G17>=1,VLOOKUP($A$6,'قائمة الموظفين'!$A$3:$V$500,19,0)/30,0) -> 0
B18: 2022-12-13 | C18: =IF(MONTH(DATE($A$1,VLOOKUP($J$1,الرئيسية!$Z$4:$AA$15,2,0),ROWS($A$1:A13)))>VLOOKUP($J$1,الرئيسية!$Z$4:$AA$15,2,0),"",DATE($A$1,VLOOKUP($J$1,الرئيسية!$Z$4:$AA$15,2,0),ROWS($A$1:A13))) -> 2022-12-13 | E18: =IFERROR(INDEX('مواعيد البصمه'!$F$3:$F$1000,MATCH(1,INDEX(($A$6='مواعيد البصمه'!$A$3:$A$1000)*(C18='مواعيد البصمه'!$D$3:$D$1000),0,1),0)),"") -> 09:12 | F18: =IFERROR(INDEX('مواعيد البصمه'!$G$3:$G$1000,MATCH(1,INDEX(($A$6='مواعيد البصمه'!$A$3:$A$1000)*(C18='مواعيد البصمه'!$D$3:$D$1000),0,1),0)),"") -> 18:06 | G18: 0.3708333333 | H18: 0.3708333333 | I18: -16.24583333 | J18: -8.616666667 | K18: 0 | L18: 0 | M18: -16.24583333 | N18: =IFERROR(P3SI(I18>3,I18-3,0),"") ->  | T18: =IF($G18>=1,VLOOKUP($A$6,'قائمة الموظفين'!$A$3:$V$500,13,0)/30,0) -> 0 | U18: =IF($G18>=1,VLOOKUP($A$6,'قائمة الموظفين'!$A$3:$V$500,14,0)/30,0) -> 0 | V18: =IF($G18>=1,VLOOKUP($A$6,'قائمة الموظفين'!$A$3:$V$500,15,0)/30,0) -> 0 | W18: =IF($G18>=1,VLOOKUP($A$6,'قائمة الموظفين'!$A$3:$V$500,16,0)/30,0) -> 0 | X18: =IF($G18>=1,VLOOKUP($A$6,'قائمة الموظفين'!$A$3:$V$500,17,0)/30,0) -> 0 | Y18: =IF($G18>=1,VLOOKUP($A$6,'قائمة الموظفين'!$A$3:$V$500,18,0)/30,0) -> 0 | Z18: =IF($G18>=1,VLOOKUP($A$6,'قائمة الموظفين'!$A$3:$V$500,19,0)/30,0) -> 0
B19: 2022-12-14 | C19: =IF(MONTH(DATE($A$1,VLOOKUP($J$1,الرئيسية!$Z$4:$AA$15,2,0),ROWS($A$1:A14)))>VLOOKUP($J$1,الرئيسية!$Z$4:$AA$15,2,0),"",DATE($A$1,VLOOKUP($J$1,الرئيسية!$Z$4:$AA$15,2,0),ROWS($A$1:A14))) -> 2022-12-14 | E19: =IFERROR(INDEX('مواعيد البصمه'!$F$3:$F$1000,MATCH(1,INDEX(($A$6='مواعيد البصمه'!$A$3:$A$1000)*(C19='مواعيد البصمه'!$D$3:$D$1000),0,1),0)),"") -> 09:17 | F19: =IFERROR(INDEX('مواعيد البصمه'!$G$3:$G$1000,MATCH(1,INDEX(($A$6='مواعيد البصمه'!$A$3:$A$1000)*(C19='مواعيد البصمه'!$D$3:$D$1000),0,1),0)),"") -> 19:57 | G19: 0.4444444444 | H19: 0.4444444444 | I19: -16.16875 | J19: -8.613194444 | K19: 0 | L19: 0 | M19: -16.16875 | N19: =IFERROR(P3SI(I19>3,I19-3,0),"") ->  | T19: =IF($G19>=1,VLOOKUP($A$6,'قائمة الموظفين'!$A$3:$V$500,13,0)/30,0) -> 0 | U19: =IF($G19>=1,VLOOKUP($A$6,'قائمة الموظفين'!$A$3:$V$500,14,0)/30,0) -> 0 | V19: =IF($G19>=1,VLOOKUP($A$6,'قائمة الموظفين'!$A$3:$V$500,15,0)/30,0) -> 0 | W19: =IF($G19>=1,VLOOKUP($A$6,'قائمة الموظفين'!$A$3:$V$500,16,0)/30,0) -> 0 | X19: =IF($G19>=1,VLOOKUP($A$6,'قائمة الموظفين'!$A$3:$V$500,17,0)/30,0) -> 0 | Y19: =IF($G19>=1,VLOOKUP($A$6,'قائمة الموظفين'!$A$3:$V$500,18,0)/30,0) -> 0 | Z19: =IF($G19>=1,VLOOKUP($A$6,'قائمة الموظفين'!$A$3:$V$500,19,0)/30,0) -> 0
B20: 2022-12-15 | C20: =IF(MONTH(DATE($A$1,VLOOKUP($J$1,الرئيسية!$Z$4:$AA$15,2,0),ROWS($A$1:A15)))>VLOOKUP($J$1,الرئيسية!$Z$4:$AA$15,2,0),"",DATE($A$1,VLOOKUP($J$1,الرئيسية!$Z$4:$AA$15,2,0),ROWS($A$1:A15))) -> 2022-12-15 | E20: =IFERROR(INDEX('مواعيد البصمه'!$F$3:$F$1000,MATCH(1,INDEX(($A$6='مواعيد البصمه'!$A$3:$A$1000)*(C20='مواعيد البصمه'!$D$3:$D$1000),0,1),0)),"") ->  | F20: =IFERROR(INDEX('مواعيد البصمه'!$G$3:$G$1000,MATCH(1,INDEX(($A$6='مواعيد البصمه'!$A$3:$A$1000)*(C20='مواعيد البصمه'!$D$3:$D$1000),0,1),0)),"") ->  | K20: 1 | L20: 0 | M20: 3 | N20: =IFERROR(P3SI(I20>3,I20-3,0),"") ->  | T20: =IF($G20>=1,VLOOKUP($A$6,'قائمة الموظفين'!$A$3:$V$500,13,0)/30,0) -> 0 | U20: =IF($G20>=1,VLOOKUP($A$6,'قائمة الموظفين'!$A$3:$V$500,14,0)/30,0) -> 21.66666667 | V20: =IF($G20>=1,VLOOKUP($A$6,'قائمة الموظفين'!$A$3:$V$500,15,0)/30,0) -> 11.66666667 | W20: =IF($G20>=1,VLOOKUP($A$6,'قائمة الموظفين'!$A$3:$V$500,16,0)/30,0) -> 0 | X20: =IF($G20>=1,VLOOKUP($A$6,'قائمة الموظفين'!$A$3:$V$500,17,0)/30,0) -> 1.666666667 | Y20: =IF($G20>=1,VLOOKUP($A$6,'قائمة الموظفين'!$A$3:$V$500,18,0)/30,0) -> 0 | Z20: =IF($G20>=1,VLOOKUP($A$6,'قائمة الموظفين'!$A$3:$V$500,19,0)/30,0) -> 3.333333333
B21: 2022-12-16 | C21: =IF(MONTH(DATE($A$1,VLOOKUP($J$1,الرئيسية!$Z$4:$AA$15,2,0),ROWS($A$1:A16)))>VLOOKUP($J$1,الرئيسية!$Z$4:$AA$15,2,0),"",DATE($A$1,VLOOKUP($J$1,الرئيسية!$Z$4:$AA$15,2,0),ROWS($A$1:A16))) -> 2022-12-16 | E21: =IFERROR(INDEX('مواعيد البصمه'!$F$3:$F$1000,MATCH(1,INDEX(($A$6='مواعيد البصمه'!$A$3:$A$1000)*(C21='مواعيد البصمه'!$D$3:$D$1000),0,1),0)),"") ->  | F21: =IFERROR(INDEX('مواعيد البصمه'!$G$3:$G$1000,MATCH(1,INDEX(($A$6='مواعيد البصمه'!$A$3:$A$1000)*(C21='مواعيد البصمه'!$D$3:$D$1000),0,1),0)),"") ->  | K21: 1 | L21: 0 | M21: 3 | N21: =IFERROR(P3SI(I21>3,I21-3,0),"") ->  | T21: =IF($G21>=1,VLOOKUP($A$6,'قائمة الموظفين'!$A$3:$V$500,13,0)/30,0) -> 0 | U21: =IF($G21>=1,VLOOKUP($A$6,'قائمة الموظفين'!$A$3:$V$500,14,0)/30,0) -> 21.66666667 | V21: =IF($G21>=1,VLOOKUP($A$6,'قائمة الموظفين'!$A$3:$V$500,15,0)/30,0) -> 11.66666667 | W21: =IF($G21>=1,VLOOKUP($A$6,'قائمة الموظفين'!$A$3:$V$500,16,0)/30,0) -> 0 | X21: =IF($G21>=1,VLOOKUP($A$6,'قائمة الموظفين'!$A$3:$V$500,17,0)/30,0) -> 1.666666667 | Y21: =IF($G21>=1,VLOOKUP($A$6,'قائمة الموظفين'!$A$3:$V$500,18,0)/30,0) -> 0 | Z21: =IF($G21>=1,VLOOKUP($A$6,'قائمة الموظفين'!$A$3:$V$500,19,0)/30,0) -> 3.333333333
B22: 2022-12-17 | C22: =IF(MONTH(DATE($A$1,VLOOKUP($J$1,الرئيسية!$Z$4:$AA$15,2,0),ROWS($A$1:A17)))>VLOOKUP($J$1,الرئيسية!$Z$4:$AA$15,2,0),"",DATE($A$1,VLOOKUP($J$1,الرئيسية!$Z$4:$AA$15,2,0),ROWS($A$1:A17))) -> 2022-12-17 | E22: =IFERROR(INDEX('مواعيد البصمه'!$F$3:$F$1000,MATCH(1,INDEX(($A$6='مواعيد البصمه'!$A$3:$A$1000)*(C22='مواعيد البصمه'!$D$3:$D$1000),0,1),0)),"") ->  | F22: =IFERROR(INDEX('مواعيد البصمه'!$G$3:$G$1000,MATCH(1,INDEX(($A$6='مواعيد البصمه'!$A$3:$A$1000)*(C22='مواعيد البصمه'!$D$3:$D$1000),0,1),0)),"") ->  | K22: 1 | L22: 0 | M22: 3 | N22: =IFERROR(P3SI(I22>3,I22-3,0),"") ->  | T22: =IF($G22>=1,VLOOKUP($A$6,'قائمة الموظفين'!$A$3:$V$500,13,0)/30,0) -> 0 | U22: =IF($G22>=1,VLOOKUP($A$6,'قائمة الموظفين'!$A$3:$V$500,14,0)/30,0) -> 21.66666667 | V22: =IF($G22>=1,VLOOKUP($A$6,'قائمة الموظفين'!$A$3:$V$500,15,0)/30,0) -> 11.66666667 | W22: =IF($G22>=1,VLOOKUP($A$6,'قائمة الموظفين'!$A$3:$V$500,16,0)/30,0) -> 0 | X22: =IF($G22>=1,VLOOKUP($A$6,'قائمة الموظفين'!$A$3:$V$500,17,0)/30,0) -> 1.666666667 | Y22: =IF($G22>=1,VLOOKUP($A$6,'قائمة الموظفين'!$A$3:$V$500,18,0)/30,0) -> 0 | Z22: =IF($G22>=1,VLOOKUP($A$6,'قائمة الموظفين'!$A$3:$V$500,19,0)/30,0) -> 3.333333333
B23: 2022-12-18 | C23: =IF(MONTH(DATE($A$1,VLOOKUP($J$1,الرئيسية!$Z$4:$AA$15,2,0),ROWS($A$1:A18)))>VLOOKUP($J$1,الرئيسية!$Z$4:$AA$15,2,0),"",DATE($A$1,VLOOKUP($J$1,الرئيسية!$Z$4:$AA$15,2,0),ROWS($A$1:A18))) -> 2022-12-18 | E23: =IFERROR(INDEX('مواعيد البصمه'!$F$3:$F$1000,MATCH(1,INDEX(($A$6='مواعيد البصمه'!$A$3:$A$1000)*(C23='مواعيد البصمه'!$D$3:$D$1000),0,1),0)),"") -> 09:17 | F23: =IFERROR(INDEX('مواعيد البصمه'!$G$3:$G$1000,MATCH(1,INDEX(($A$6='مواعيد البصمه'!$A$3:$A$1000)*(C23='مواعيد البصمه'!$D$3:$D$1000),0,1),0)),"") -> 17:04 | G23: 0.3243055556 | H23: 0.3243055556 | I23: -16.28888889 | J23: -8.613194444 | K23: 0 | L23: 0 | M23: -16.28888889 | N23: =IFERROR(P3SI(I23>3,I23-3,0),"") ->  | T23: =IF($G23>=1,VLOOKUP($A$6,'قائمة الموظفين'!$A$3:$V$500,13,0)/30,0) -> 0 | U23: =IF($G23>=1,VLOOKUP($A$6,'قائمة الموظفين'!$A$3:$V$500,14,0)/30,0) -> 0 | V23: =IF($G23>=1,VLOOKUP($A$6,'قائمة الموظفين'!$A$3:$V$500,15,0)/30,0) -> 0 | W23: =IF($G23>=1,VLOOKUP($A$6,'قائمة الموظفين'!$A$3:$V$500,16,0)/30,0) -> 0 | X23: =IF($G23>=1,VLOOKUP($A$6,'قائمة الموظفين'!$A$3:$V$500,17,0)/30,0) -> 0 | Y23: =IF($G23>=1,VLOOKUP($A$6,'قائمة الموظفين'!$A$3:$V$500,18,0)/30,0) -> 0 | Z23: =IF($G23>=1,VLOOKUP($A$6,'قائمة الموظفين'!$A$3:$V$500,19,0)/30,0) -> 0
B24: 2022-12-19 | C24: =IF(MONTH(DATE($A$1,VLOOKUP($J$1,الرئيسية!$Z$4:$AA$15,2,0),ROWS($A$1:A19)))>VLOOKUP($J$1,الرئيسية!$Z$4:$AA$15,2,0),"",DATE($A$1,VLOOKUP($J$1,الرئيسية!$Z$4:$AA$15,2,0),ROWS($A$1:A19))) -> 2022-12-19 | E24: =IFERROR(INDEX('مواعيد البصمه'!$F$3:$F$1000,MATCH(1,INDEX(($A$6='مواعيد البصمه'!$A$3:$A$1000)*(C24='مواعيد البصمه'!$D$3:$D$1000),0,1),0)),"") -> 09:08 | F24: =IFERROR(INDEX('مواعيد البصمه'!$G$3:$G$1000,MATCH(1,INDEX(($A$6='مواعيد البصمه'!$A$3:$A$1000)*(C24='مواعيد البصمه'!$D$3:$D$1000),0,1),0)),"") -> 18:07 | G24: 0.3743055556 | H24: 0.3743055556 | I24: -16.24513889 | J24: -8.619444444 | K24: 0 | L24: 0 | M24: -16.24513889 | N24: =IFERROR(P3SI(I24>3,I24-3,0),"") ->  | T24: =IF($G24>=1,VLOOKUP($A$6,'قائمة الموظفين'!$A$3:$V$500,13,0)/30,0) -> 0 | U24: =IF($G24>=1,VLOOKUP($A$6,'قائمة الموظفين'!$A$3:$V$500,14,0)/30,0) -> 0 | V24: =IF($G24>=1,VLOOKUP($A$6,'قائمة الموظفين'!$A$3:$V$500,15,0)/30,0) -> 0 | W24: =IF($G24>=1,VLOOKUP($A$6,'قائمة الموظفين'!$A$3:$V$500,16,0)/30,0) -> 0 | X24: =IF($G24>=1,VLOOKUP($A$6,'قائمة الموظفين'!$A$3:$V$500,17,0)/30,0) -> 0 | Y24: =IF($G24>=1,VLOOKUP($A$6,'قائمة الموظفين'!$A$3:$V$500,18,0)/30,0) -> 0 | Z24: =IF($G24>=1,VLOOKUP($A$6,'قائمة الموظفين'!$A$3:$V$500,19,0)/30,0) -> 0
B25: 2022-12-20 | C25: =IF(MONTH(DATE($A$1,VLOOKUP($J$1,الرئيسية!$Z$4:$AA$15,2,0),ROWS($A$1:A20)))>VLOOKUP($J$1,الرئيسية!$Z$4:$AA$15,2,0),"",DATE($A$1,VLOOKUP($J$1,الرئيسية!$Z$4:$AA$15,2,0),ROWS($A$1:A20))) -> 2022-12-20 | E25: =IFERROR(INDEX('مواعيد البصمه'!$F$3:$F$1000,MATCH(1,INDEX(($A$6='مواعيد البصمه'!$A$3:$A$1000)*(C25='مواعيد البصمه'!$D$3:$D$1000),0,1),0)),"") -> 09:23 | F25: =IFERROR(INDEX('مواعيد البصمه'!$G$3:$G$1000,MATCH(1,INDEX(($A$6='مواعيد البصمه'!$A$3:$A$1000)*(C25='مواعيد البصمه'!$D$3:$D$1000),0,1),0)),"") -> 19:10 | G25: 0.4076388889 | H25: 0.4076388889 | I25: -16.20138889 | J25: -8.609027778 | K25: 0 | L25: 0 | M25: -16.20138889 | N25: =IFERROR(P3SI(I25>3,I25-3,0),"") ->  | T25: =IF($G25>=1,VLOOKUP($A$6,'قائمة الموظفين'!$A$3:$V$500,13,0)/30,0) -> 0 | U25: =IF($G25>=1,VLOOKUP($A$6,'قائمة الموظفين'!$A$3:$V$500,14,0)/30,0) -> 0 | V25: =IF($G25>=1,VLOOKUP($A$6,'قائمة الموظفين'!$A$3:$V$500,15,0)/30,0) -> 0 | W25: =IF($G25>=1,VLOOKUP($A$6,'قائمة الموظفين'!$A$3:$V$500,16,0)/30,0) -> 0 | X25: =IF($G25>=1,VLOOKUP($A$6,'قائمة الموظفين'!$A$3:$V$500,17,0)/30,0) -> 0 | Y25: =IF($G25>=1,VLOOKUP($A$6,'قائمة الموظفين'!$A$3:$V$500,18,0)/30,0) -> 0 | Z25: =IF($G25>=1,VLOOKUP($A$6,'قائمة الموظفين'!$A$3:$V$500,19,0)/30,0) -> 0
B26: 2022-12-21 | C26: =IF(MONTH(DATE($A$1,VLOOKUP($J$1,الرئيسية!$Z$4:$AA$15,2,0),ROWS($A$1:A21)))>VLOOKUP($J$1,الرئيسية!$Z$4:$AA$15,2,0),"",DATE($A$1,VLOOKUP($J$1,الرئيسية!$Z$4:$AA$15,2,0),ROWS($A$1:A21))) -> 2022-12-21 | E26: =IFERROR(INDEX('مواعيد البصمه'!$F$3:$F$1000,MATCH(1,INDEX(($A$6='مواعيد البصمه'!$A$3:$A$1000)*(C26='مواعيد البصمه'!$D$3:$D$1000),0,1),0)),"") -> 09:51 | F26: =IFERROR(INDEX('مواعيد البصمه'!$G$3:$G$1000,MATCH(1,INDEX(($A$6='مواعيد البصمه'!$A$3:$A$1000)*(C26='مواعيد البصمه'!$D$3:$D$1000),0,1),0)),"") -> 19:30 | G26: 0.4020833333 | H26: 0.4020833333 | I26: -16.1875 | J26: -8.589583333 | K26: 0 | L26: 0 | M26: -16.1875 | N26: =IFERROR(P3SI(I26>3,I26-3,0),"") ->  | T26: =IF($G26>=1,VLOOKUP($A$6,'قائمة الموظفين'!$A$3:$V$500,13,0)/30,0) -> 0 | U26: =IF($G26>=1,VLOOKUP($A$6,'قائمة الموظفين'!$A$3:$V$500,14,0)/30,0) -> 0 | V26: =IF($G26>=1,VLOOKUP($A$6,'قائمة الموظفين'!$A$3:$V$500,15,0)/30,0) -> 0 | W26: =IF($G26>=1,VLOOKUP($A$6,'قائمة الموظفين'!$A$3:$V$500,16,0)/30,0) -> 0 | X26: =IF($G26>=1,VLOOKUP($A$6,'قائمة الموظفين'!$A$3:$V$500,17,0)/30,0) -> 0 | Y26: =IF($G26>=1,VLOOKUP($A$6,'قائمة الموظفين'!$A$3:$V$500,18,0)/30,0) -> 0 | Z26: =IF($G26>=1,VLOOKUP($A$6,'قائمة الموظفين'!$A$3:$V$500,19,0)/30,0) -> 0
B27: 2022-12-22 | C27: =IF(MONTH(DATE($A$1,VLOOKUP($J$1,الرئيسية!$Z$4:$AA$15,2,0),ROWS($A$1:A22)))>VLOOKUP($J$1,الرئيسية!$Z$4:$AA$15,2,0),"",DATE($A$1,VLOOKUP($J$1,الرئيسية!$Z$4:$AA$15,2,0),ROWS($A$1:A22))) -> 2022-12-22 | E27: =IFERROR(INDEX('مواعيد البصمه'!$F$3:$F$1000,MATCH(1,INDEX(($A$6='مواعيد البصمه'!$A$3:$A$1000)*(C27='مواعيد البصمه'!$D$3:$D$1000),0,1),0)),"") -> 09:08 | F27: =IFERROR(INDEX('مواعيد البصمه'!$G$3:$G$1000,MATCH(1,INDEX(($A$6='مواعيد البصمه'!$A$3:$A$1000)*(C27='مواعيد البصمه'!$D$3:$D$1000),0,1),0)),"") -> 13:17 | G27: 0.1729166667 | H27: 0.1729166667 | I27: -16.44652778 | J27: -8.619444444 | K27: 0 | L27: 0 | M27: -16.44652778 | N27: =IFERROR(P3SI(I27>3,I27-3,0),"") ->  | T27: =IF($G27>=1,VLOOKUP($A$6,'قائمة الموظفين'!$A$3:$V$500,13,0)/30,0) -> 0 | U27: =IF($G27>=1,VLOOKUP($A$6,'قائمة الموظفين'!$A$3:$V$500,14,0)/30,0) -> 0 | V27: =IF($G27>=1,VLOOKUP($A$6,'قائمة الموظفين'!$A$3:$V$500,15,0)/30,0) -> 0 | W27: =IF($G27>=1,VLOOKUP($A$6,'قائمة الموظفين'!$A$3:$V$500,16,0)/30,0) -> 0 | X27: =IF($G27>=1,VLOOKUP($A$6,'قائمة الموظفين'!$A$3:$V$500,17,0)/30,0) -> 0 | Y27: =IF($G27>=1,VLOOKUP($A$6,'قائمة الموظفين'!$A$3:$V$500,18,0)/30,0) -> 0 | Z27: =IF($G27>=1,VLOOKUP($A$6,'قائمة الموظفين'!$A$3:$V$500,19,0)/30,0) -> 0
B28: 2022-12-23 | C28: =IF(MONTH(DATE($A$1,VLOOKUP($J$1,الرئيسية!$Z$4:$AA$15,2,0),ROWS($A$1:A23)))>VLOOKUP($J$1,الرئيسية!$Z$4:$AA$15,2,0),"",DATE($A$1,VLOOKUP($J$1,الرئيسية!$Z$4:$AA$15,2,0),ROWS($A$1:A23))) -> 2022-12-23 | E28: =IFERROR(INDEX('مواعيد البصمه'!$F$3:$F$1000,MATCH(1,INDEX(($A$6='مواعيد البصمه'!$A$3:$A$1000)*(C28='مواعيد البصمه'!$D$3:$D$1000),0,1),0)),"") ->  | F28: =IFERROR(INDEX('مواعيد البصمه'!$G$3:$G$1000,MATCH(1,INDEX(($A$6='مواعيد البصمه'!$A$3:$A$1000)*(C28='مواعيد البصمه'!$D$3:$D$1000),0,1),0)),"") ->  | K28: 1 | L28: 0 | M28: 3 | N28: =IFERROR(P3SI(I28>3,I28-3,0),"") ->  | T28: =IF($G28>=1,VLOOKUP($A$6,'قائمة الموظفين'!$A$3:$V$500,13,0)/30,0) -> 0 | U28: =IF($G28>=1,VLOOKUP($A$6,'قائمة الموظفين'!$A$3:$V$500,14,0)/30,0) -> 21.66666667 | V28: =IF($G28>=1,VLOOKUP($A$6,'قائمة الموظفين'!$A$3:$V$500,15,0)/30,0) -> 11.66666667 | W28: =IF($G28>=1,VLOOKUP($A$6,'قائمة الموظفين'!$A$3:$V$500,16,0)/30,0) -> 0 | X28: =IF($G28>=1,VLOOKUP($A$6,'قائمة الموظفين'!$A$3:$V$500,17,0)/30,0) -> 1.666666667 | Y28: =IF($G28>=1,VLOOKUP($A$6,'قائمة الموظفين'!$A$3:$V$500,18,0)/30,0) -> 0 | Z28: =IF($G28>=1,VLOOKUP($A$6,'قائمة الموظفين'!$A$3:$V$500,19,0)/30,0) -> 3.333333333
B29: 2022-12-24 | C29: =IF(MONTH(DATE($A$1,VLOOKUP($J$1,الرئيسية!$Z$4:$AA$15,2,0),ROWS($A$1:A24)))>VLOOKUP($J$1,الرئيسية!$Z$4:$AA$15,2,0),"",DATE($A$1,VLOOKUP($J$1,الرئيسية!$Z$4:$AA$15,2,0),ROWS($A$1:A24))) -> 2022-12-24 | E29: =IFERROR(INDEX('مواعيد البصمه'!$F$3:$F$1000,MATCH(1,INDEX(($A$6='مواعيد البصمه'!$A$3:$A$1000)*(C29='مواعيد البصمه'!$D$3:$D$1000),0,1),0)),"") -> 08:53 | F29: =IFERROR(INDEX('مواعيد البصمه'!$G$3:$G$1000,MATCH(1,INDEX(($A$6='مواعيد البصمه'!$A$3:$A$1000)*(C29='مواعيد البصمه'!$D$3:$D$1000),0,1),0)),"") -> 18:54 | G29: 0.4173611111 | H29: 0.4173611111 | I29: -16.2125 | J29: -8.629861111 | K29: 0 | L29: 0 | M29: -16.2125 | N29: =IFERROR(P3SI(I29>3,I29-3,0),"") ->  | T29: =IF($G29>=1,VLOOKUP($A$6,'قائمة الموظفين'!$A$3:$V$500,13,0)/30,0) -> 0 | U29: =IF($G29>=1,VLOOKUP($A$6,'قائمة الموظفين'!$A$3:$V$500,14,0)/30,0) -> 0 | V29: =IF($G29>=1,VLOOKUP($A$6,'قائمة الموظفين'!$A$3:$V$500,15,0)/30,0) -> 0 | W29: =IF($G29>=1,VLOOKUP($A$6,'قائمة الموظفين'!$A$3:$V$500,16,0)/30,0) -> 0 | X29: =IF($G29>=1,VLOOKUP($A$6,'قائمة الموظفين'!$A$3:$V$500,17,0)/30,0) -> 0 | Y29: =IF($G29>=1,VLOOKUP($A$6,'قائمة الموظفين'!$A$3:$V$500,18,0)/30,0) -> 0 | Z29: =IF($G29>=1,VLOOKUP($A$6,'قائمة الموظفين'!$A$3:$V$500,19,0)/30,0) -> 0
B30: 2022-12-25 | C30: =IF(MONTH(DATE($A$1,VLOOKUP($J$1,الرئيسية!$Z$4:$AA$15,2,0),ROWS($A$1:A25)))>VLOOKUP($J$1,الرئيسية!$Z$4:$AA$15,2,0),"",DATE($A$1,VLOOKUP($J$1,الرئيسية!$Z$4:$AA$15,2,0),ROWS($A$1:A25))) -> 2022-12-25 | E30: =IFERROR(INDEX('مواعيد البصمه'!$F$3:$F$1000,MATCH(1,INDEX(($A$6='مواعيد البصمه'!$A$3:$A$1000)*(C30='مواعيد البصمه'!$D$3:$D$1000),0,1),0)),"") -> 09:10 | F30: =IFERROR(INDEX('مواعيد البصمه'!$G$3:$G$1000,MATCH(1,INDEX(($A$6='مواعيد البصمه'!$A$3:$A$1000)*(C30='مواعيد البصمه'!$D$3:$D$1000),0,1),0)),"") -> 21:33 | G30: 0.5159722222 | H30: 0.5159722222 | I30: -16.10208333 | J30: -8.618055556 | K30: 0 | L30: 0 | M30: -16.10208333 | N30: =IFERROR(P3SI(I30>3,I30-3,0),"") ->  | T30: =IF($G30>=1,VLOOKUP($A$6,'قائمة الموظفين'!$A$3:$V$500,13,0)/30,0) -> 0 | U30: =IF($G30>=1,VLOOKUP($A$6,'قائمة الموظفين'!$A$3:$V$500,14,0)/30,0) -> 0 | V30: =IF($G30>=1,VLOOKUP($A$6,'قائمة الموظفين'!$A$3:$V$500,15,0)/30,0) -> 0 | W30: =IF($G30>=1,VLOOKUP($A$6,'قائمة الموظفين'!$A$3:$V$500,16,0)/30,0) -> 0 | X30: =IF($G30>=1,VLOOKUP($A$6,'قائمة الموظفين'!$A$3:$V$500,17,0)/30,0) -> 0 | Y30: =IF($G30>=1,VLOOKUP($A$6,'قائمة الموظفين'!$A$3:$V$500,18,0)/30,0) -> 0 | Z30: =IF($G30>=1,VLOOKUP($A$6,'قائمة الموظفين'!$A$3:$V$500,19,0)/30,0) -> 0
B31: 2022-12-26 | C31: =IF(MONTH(DATE($A$1,VLOOKUP($J$1,الرئيسية!$Z$4:$AA$15,2,0),ROWS($A$1:A26)))>VLOOKUP($J$1,الرئيسية!$Z$4:$AA$15,2,0),"",DATE($A$1,VLOOKUP($J$1,الرئيسية!$Z$4:$AA$15,2,0),ROWS($A$1:A26))) -> 2022-12-26 | E31: =IFERROR(INDEX('مواعيد البصمه'!$F$3:$F$1000,MATCH(1,INDEX(($A$6='مواعيد البصمه'!$A$3:$A$1000)*(C31='مواعيد البصمه'!$D$3:$D$1000),0,1),0)),"") -> 09:18 | F31: =IFERROR(INDEX('مواعيد البصمه'!$G$3:$G$1000,MATCH(1,INDEX(($A$6='مواعيد البصمه'!$A$3:$A$1000)*(C31='مواعيد البصمه'!$D$3:$D$1000),0,1),0)),"") -> 20:24 | G31: 0.4625 | H31: 0.4625 | I31: -16.15 | J31: -8.6125 | K31: 0 | L31: 0 | M31: -16.15 | N31: =IFERROR(P3SI(I31>3,I31-3,0),"") ->  | T31: =IF($G31>=1,VLOOKUP($A$6,'قائمة الموظفين'!$A$3:$V$500,13,0)/30,0) -> 0 | U31: =IF($G31>=1,VLOOKUP($A$6,'قائمة الموظفين'!$A$3:$V$500,14,0)/30,0) -> 0 | V31: =IF($G31>=1,VLOOKUP($A$6,'قائمة الموظفين'!$A$3:$V$500,15,0)/30,0) -> 0 | W31: =IF($G31>=1,VLOOKUP($A$6,'قائمة الموظفين'!$A$3:$V$500,16,0)/30,0) -> 0 | X31: =IF($G31>=1,VLOOKUP($A$6,'قائمة الموظفين'!$A$3:$V$500,17,0)/30,0) -> 0 | Y31: =IF($G31>=1,VLOOKUP($A$6,'قائمة الموظفين'!$A$3:$V$500,18,0)/30,0) -> 0 | Z31: =IF($G31>=1,VLOOKUP($A$6,'قائمة الموظفين'!$A$3:$V$500,19,0)/30,0) -> 0
B32: 2022-12-27 | C32: =IF(MONTH(DATE($A$1,VLOOKUP($J$1,الرئيسية!$Z$4:$AA$15,2,0),ROWS($A$1:A27)))>VLOOKUP($J$1,الرئيسية!$Z$4:$AA$15,2,0),"",DATE($A$1,VLOOKUP($J$1,الرئيسية!$Z$4:$AA$15,2,0),ROWS($A$1:A27))) -> 2022-12-27 | E32: =IFERROR(INDEX('مواعيد البصمه'!$F$3:$F$1000,MATCH(1,INDEX(($A$6='مواعيد البصمه'!$A$3:$A$1000)*(C32='مواعيد البصمه'!$D$3:$D$1000),0,1),0)),"") -> 09:23 | F32: =IFERROR(INDEX('مواعيد البصمه'!$G$3:$G$1000,MATCH(1,INDEX(($A$6='مواعيد البصمه'!$A$3:$A$1000)*(C32='مواعيد البصمه'!$D$3:$D$1000),0,1),0)),"") -> 20:11 | G32: 0.45 | H32: 0.45 | I32: -16.15902778 | J32: -8.609027778 | K32: 0 | L32: 0 | M32: -16.15902778 | N32: =IFERROR(P3SI(I32>3,I32-3,0),"") ->  | T32: =IF($G32>=1,VLOOKUP($A$6,'قائمة الموظفين'!$A$3:$V$500,13,0)/30,0) -> 0 | U32: =IF($G32>=1,VLOOKUP($A$6,'قائمة الموظفين'!$A$3:$V$500,14,0)/30,0) -> 0 | V32: =IF($G32>=1,VLOOKUP($A$6,'قائمة الموظفين'!$A$3:$V$500,15,0)/30,0) -> 0 | W32: =IF($G32>=1,VLOOKUP($A$6,'قائمة الموظفين'!$A$3:$V$500,16,0)/30,0) -> 0 | X32: =IF($G32>=1,VLOOKUP($A$6,'قائمة الموظفين'!$A$3:$V$500,17,0)/30,0) -> 0 | Y32: =IF($G32>=1,VLOOKUP($A$6,'قائمة الموظفين'!$A$3:$V$500,18,0)/30,0) -> 0 | Z32: =IF($G32>=1,VLOOKUP($A$6,'قائمة الموظفين'!$A$3:$V$500,19,0)/30,0) -> 0
B33: 2022-12-28 | C33: =IF(MONTH(DATE($A$1,VLOOKUP($J$1,الرئيسية!$Z$4:$AA$15,2,0),ROWS($A$1:A28)))>VLOOKUP($J$1,الرئيسية!$Z$4:$AA$15,2,0),"",DATE($A$1,VLOOKUP($J$1,الرئيسية!$Z$4:$AA$15,2,0),ROWS($A$1:A28))) -> 2022-12-28 | E33: =IFERROR(INDEX('مواعيد البصمه'!$F$3:$F$1000,MATCH(1,INDEX(($A$6='مواعيد البصمه'!$A$3:$A$1000)*(C33='مواعيد البصمه'!$D$3:$D$1000),0,1),0)),"") -> 09:15 | F33: =IFERROR(INDEX('مواعيد البصمه'!$G$3:$G$1000,MATCH(1,INDEX(($A$6='مواعيد البصمه'!$A$3:$A$1000)*(C33='مواعيد البصمه'!$D$3:$D$1000),0,1),0)),"") -> 21:53 | G33: 0.5263888889 | H33: 0.5263888889 | I33: -16.08819444 | J33: -8.614583333 | K33: 0 | L33: 0 | M33: -16.08819444 | N33: =IFERROR(P3SI(I33>3,I33-3,0),"") ->  | T33: =IF($G33>=1,VLOOKUP($A$6,'قائمة الموظفين'!$A$3:$V$500,13,0)/30,0) -> 0 | U33: =IF($G33>=1,VLOOKUP($A$6,'قائمة الموظفين'!$A$3:$V$500,14,0)/30,0) -> 0 | V33: =IF($G33>=1,VLOOKUP($A$6,'قائمة الموظفين'!$A$3:$V$500,15,0)/30,0) -> 0 | W33: =IF($G33>=1,VLOOKUP($A$6,'قائمة الموظفين'!$A$3:$V$500,16,0)/30,0) -> 0 | X33: =IF($G33>=1,VLOOKUP($A$6,'قائمة الموظفين'!$A$3:$V$500,17,0)/30,0) -> 0 | Y33: =IF($G33>=1,VLOOKUP($A$6,'قائمة الموظفين'!$A$3:$V$500,18,0)/30,0) -> 0 | Z33: =IF($G33>=1,VLOOKUP($A$6,'قائمة الموظفين'!$A$3:$V$500,19,0)/30,0) -> 0
B34: 2022-12-29 | C34: =IF(MONTH(DATE($A$1,VLOOKUP($J$1,الرئيسية!$Z$4:$AA$15,2,0),ROWS($A$1:A29)))>VLOOKUP($J$1,الرئيسية!$Z$4:$AA$15,2,0),"",DATE($A$1,VLOOKUP($J$1,الرئيسية!$Z$4:$AA$15,2,0),ROWS($A$1:A29))) -> 2022-12-29 | E34: =IFERROR(INDEX('مواعيد البصمه'!$F$3:$F$1000,MATCH(1,INDEX(($A$6='مواعيد البصمه'!$A$3:$A$1000)*(C34='مواعيد البصمه'!$D$3:$D$1000),0,1),0)),"") -> 09:12 | F34: =IFERROR(INDEX('مواعيد البصمه'!$G$3:$G$1000,MATCH(1,INDEX(($A$6='مواعيد البصمه'!$A$3:$A$1000)*(C34='مواعيد البصمه'!$D$3:$D$1000),0,1),0)),"") -> 18:18 | G34: 0.3791666667 | H34: 0.3791666667 | I34: -16.2375 | J34: -8.616666667 | K34: 0 | L34: 0 | M34: -16.2375 | N34: =IFERROR(P3SI(I34>3,I34-3,0),"") ->  | T34: =IF($G34>=1,VLOOKUP($A$6,'قائمة الموظفين'!$A$3:$V$500,13,0)/30,0) -> 0 | U34: =IF($G34>=1,VLOOKUP($A$6,'قائمة الموظفين'!$A$3:$V$500,14,0)/30,0) -> 0 | V34: =IF($G34>=1,VLOOKUP($A$6,'قائمة الموظفين'!$A$3:$V$500,15,0)/30,0) -> 0 | W34: =IF($G34>=1,VLOOKUP($A$6,'قائمة الموظفين'!$A$3:$V$500,16,0)/30,0) -> 0 | X34: =IF($G34>=1,VLOOKUP($A$6,'قائمة الموظفين'!$A$3:$V$500,17,0)/30,0) -> 0 | Y34: =IF($G34>=1,VLOOKUP($A$6,'قائمة الموظفين'!$A$3:$V$500,18,0)/30,0) -> 0 | Z34: =IF($G34>=1,VLOOKUP($A$6,'قائمة الموظفين'!$A$3:$V$500,19,0)/30,0) -> 0
B35: 2022-12-30 | C35: =IF(MONTH(DATE($A$1,VLOOKUP($J$1,الرئيسية!$Z$4:$AA$15,2,0),ROWS($A$1:A30)))>VLOOKUP($J$1,الرئيسية!$Z$4:$AA$15,2,0),"",DATE($A$1,VLOOKUP($J$1,الرئيسية!$Z$4:$AA$15,2,0),ROWS($A$1:A30))) -> 2022-12-30 | E35: =IFERROR(INDEX('مواعيد البصمه'!$F$3:$F$1000,MATCH(1,INDEX(($A$6='مواعيد البصمه'!$A$3:$A$1000)*(C35='مواعيد البصمه'!$D$3:$D$1000),0,1),0)),"") ->  | F35: =IFERROR(INDEX('مواعيد البصمه'!$G$3:$G$1000,MATCH(1,INDEX(($A$6='مواعيد البصمه'!$A$3:$A$1000)*(C35='مواعيد البصمه'!$D$3:$D$1000),0,1),0)),"") ->  | K35: 1 | L35: 0 | M35: 3 | N35: =IFERROR(P3SI(I35>3,I35-3,0),"") ->  | T35: =IF($G35>=1,VLOOKUP($A$6,'قائمة الموظفين'!$A$3:$V$500,13,0)/30,0) -> 0 | U35: =IF($G35>=1,VLOOKUP($A$6,'قائمة الموظفين'!$A$3:$V$500,14,0)/30,0) -> 21.66666667 | V35: =IF($G35>=1,VLOOKUP($A$6,'قائمة الموظفين'!$A$3:$V$500,15,0)/30,0) -> 11.66666667 | W35: =IF($G35>=1,VLOOKUP($A$6,'قائمة الموظفين'!$A$3:$V$500,16,0)/30,0) -> 0 | X35: =IF($G35>=1,VLOOKUP($A$6,'قائمة الموظفين'!$A$3:$V$500,17,0)/30,0) -> 1.666666667 | Y35: =IF($G35>=1,VLOOKUP($A$6,'قائمة الموظفين'!$A$3:$V$500,18,0)/30,0) -> 0 | Z35: =IF($G35>=1,VLOOKUP($A$6,'قائمة الموظفين'!$A$3:$V$500,19,0)/30,0) -> 3.333333333
B36: 2022-12-31 | C36: =IF(MONTH(DATE($A$1,VLOOKUP($J$1,الرئيسية!$Z$4:$AA$15,2,0),ROWS($A$1:A31)))>VLOOKUP($J$1,الرئيسية!$Z$4:$AA$15,2,0),"",DATE($A$1,VLOOKUP($J$1,الرئيسية!$Z$4:$AA$15,2,0),ROWS($A$1:A31))) -> 2022-12-31 | E36: =IFERROR(INDEX('مواعيد البصمه'!$F$3:$F$1000,MATCH(1,INDEX(($A$6='مواعيد البصمه'!$A$3:$A$1000)*(C36='مواعيد البصمه'!$D$3:$D$1000),0,1),0)),"") ->  | F36: =IFERROR(INDEX('مواعيد البصمه'!$G$3:$G$1000,MATCH(1,INDEX(($A$6='مواعيد البصمه'!$A$3:$A$1000)*(C36='مواعيد البصمه'!$D$3:$D$1000),0,1),0)),"") ->  | K36: 1 | L36: 0 | M36: 3 | N36: =IFERROR(P3SI(I36>3,I36-3,0),"") ->  | T36: =IF($G36>=1,VLOOKUP($A$6,'قائمة الموظفين'!$A$3:$V$500,13,0)/30,0) -> 0 | U36: =IF($G36>=1,VLOOKUP($A$6,'قائمة الموظفين'!$A$3:$V$500,14,0)/30,0) -> 21.66666667 | V36: =IF($G36>=1,VLOOKUP($A$6,'قائمة الموظفين'!$A$3:$V$500,15,0)/30,0) -> 11.66666667 | W36: =IF($G36>=1,VLOOKUP($A$6,'قائمة الموظفين'!$A$3:$V$500,16,0)/30,0) -> 0 | X36: =IF($G36>=1,VLOOKUP($A$6,'قائمة الموظفين'!$A$3:$V$500,17,0)/30,0) -> 1.666666667 | Y36: =IF($G36>=1,VLOOKUP($A$6,'قائمة الموظفين'!$A$3:$V$500,18,0)/30,0) -> 0 | Z36: =IF($G36>=1,VLOOKUP($A$6,'قائمة الموظفين'!$A$3:$V$500,19,0)/30,0) -> 3.333333333
C37: عدد ايام الحضور | E37: 31 | F37: 31 | G37: =SUM(G6:G36) -> 11.30625 | H37: =SUM(H6:H36)-I37 -> 336.1180556 | I37: =SUM(I6:I36) -> -324.8118056 | J37: -172.3680556 | K37: =SUM(K6:K36) -> 10 | L37: -4.7 | M37: -294.8118056 | N37: 0 | O37: =SUM(O6:O36) -> 0 | P37: 0 | Q37: 0 | R37: 0 | S37: 0 | T37: =SUM(T6:T36) -> 0 | U37: =SUM(U6:U36) -> 238.3333333 | V37: 128.3333333 | W37: 0 | X37: 18.33333333 | Y37: 0 | Z37: 36.66666667 | AA37: 0 | AB37: =SUM(AB6:AB36) -> 0 | AC37: =SUM(AC6:AC36) -> 0 | AD37: =IF(AD6="يخصم",AD4,0) -> 0 | AE37: =IF(AE6="يخصم",AE4,0) -> 0
E38: 11645.16667 | F38: الصافى
E39: -666.6666667
E40: الحضور | F40: الانصراف
E41: 9 | F41: 17
E42: 9.5 | F42: 17
E43: 10 | F43: 17
E44: 11 | F44: 17
E45: 10 | F45: 18
E46: 9 | F46: 18
E47: 9.25 | F47: 17
E48: 9 | F48: 17
E49: 9 | F49: 17
E50: 9 | F50: 17
E51: 9 | F51: 17
E52: 9 | F52: 17
E53: 9 | F53: 17
E54: 9 | F54: 17
E55: 9 | F55: 17
E56: 9 | F56: 17
E57: 9 | F57: 17
E58: 9 | F58: 17
E59: 9 | F59: 17
E60: 9 | F60: 17
E61: 9 | F61: 17
E62: 9 | F62: 17
E63: 9 | F63: 17
E64: 9 | F64: 17
E65: 9 | F65: 17
E66: 9 | F66: 17
E67: 9 | F67: 17
E68: 9 | F68: 17
E69: 9 | F69: 17
E70: 9 | F70: 17
E71: 9 | F71: 17

Sheet مواعيد البصمه
A1: First & Last
A2: Employee ID | B2: First Name | C2: Department | D2: Date | E2: Weekday | F2: First Punch | G2: Last Punch | H2: Total Time | I2: HELPER COLUMN
A3: 230012 | B3: Ahmedemam | C3: Showrooms | D3: 2022-12-01 | E3: Thursday | F3: 08:51 | G3: 13:54 | H3: 05:03 | I3: 230012#2022-12-01
A4: 230012 | B4: Ahmedemam | C4: Showrooms | D4: 2022-12-03 | E4: Saturday | F4: 08:49 | G4: 17:24 | H4: 08:34 | I4: 230012#2022-12-03
A5: 230012 | B5: Ahmedemam | C5: Showrooms | D5: 2022-12-04 | E5: Sunday | F5: 09:10 | G5: 19:09 | H5: 09:59 | I5: 230012#2022-12-04
A6: 230012 | B6: Ahmedemam | C6: Showrooms | D6: 2022-12-05 | E6: Monday | F6: 08:13 | G6: 18:42 | H6: 10:29 | I6: 230012#2022-12-05
A7: 230012 | B7: Ahmedemam | C7: Showrooms | D7: 2022-12-06 | E7: Tuesday | F7: 09:08 | G7: 09:08 | H7: 00:00 | I7: 230012#2022-12-06
A8: 230012 | B8: Ahmedemam | C8: Showrooms | D8: 2022-12-10 | E8: Saturday | F8: 09:13 | G8: 17:07 | H8: 07:54 | I8: 230012#2022-12-10
A9: 230012 | B9: Ahmedemam | C9: Showrooms | D9: 2022-12-11 | E9: Sunday | F9: 09:07 | G9: 17:33 | H9: 08:26 | I9: 230012#2022-12-11
A10: 230012 | B10: Ahmedemam | C10: Showrooms | D10: 2022-12-12 | E10: Monday | F10: 09:03 | G10: 19:04 | H10: 10:00 | I10: 230012#2022-12-12
A11: 230012 | B11: Ahmedemam | C11: Showrooms | D11: 2022-12-13 | E11: Tuesday | F11: 09:12 | G11: 18:06 | H11: 08:53 | I11: 230012#2022-12-13
A12: 230012 | B12: Ahmedemam | C12: Showrooms | D12: 2022-12-14 | E12: Wednesday | F12: 09:17 | G12: 19:57 | H12: 10:39 | I12: 230012#2022-12-14
A13: 230012 | B13: Ahmedemam | C13: Showrooms | D13: 2022-12-18 | E13: Sunday | F13: 09:17 | G13: 17:04 | H13: 07:46 | I13: 230012#2022-12-18
A14: 230012 | B14: Ahmedemam | C14: Showrooms | D14: 2022-12-19 | E14: Monday | F14: 09:08 | G14: 18:07 | H14: 08:59 | I14: 230012#2022-12-19
A15: 230012 | B15: Ahmedemam | C15: Showrooms | D15: 2022-12-20 | E15: Tuesday | F15: 09:23 | G15: 19:10 | H15: 09:46 | I15: 230012#2022-12-20
A16: 230012 | B16: Ahmedemam | C16: Showrooms | D16: 2022-12-21 | E16: Wednesday | F16: 09:51 | G16: 19:30 | H16: 09:39 | I16: 230012#2022-12-21
A17: 230012 | B17: Ahmedemam | C17: Showrooms | D17: 2022-12-22 | E17: Thursday | F17: 09:08 | G17: 13:17 | H17: 04:09 | I17: 230012#2022-12-22
A18: 230012 | B18: Ahmedemam | C18: Showrooms | D18: 2022-12-24 | E18: Saturday | F18: 08:53 | G18: 18:54 | H18: 10:01 | I18: 230012#2022-12-24
A19: 230012 | B19: Ahmedemam | C19: Showrooms | D19: 2022-12-25 | E19: Sunday | F19: 09:10 | G19: 21:33 | H19: 12:22 | I19: 230012#2022-12-25
A20: 230012 | B20: Ahmedemam | C20: Showrooms | D20: 2022-12-26 | E20: Monday | F20: 09:18 | G20: 20:24 | H20: 11:06 | I20: 230012#2022-12-26
A21: 230012 | B21: Ahmedemam | C21: Showrooms | D21: 2022-12-27 | E21: Tuesday | F21: 09:23 | G21: 20:11 | H21: 10:47 | I21: 230012#2022-12-27
A22: 230012 | B22: Ahmedemam | C22: Showrooms | D22: 2022-12-28 | E22: Wednesday | F22: 09:15 | G22: 21:53 | H22: 12:37 | I22: 230012#2022-12-28
A23: 230012 | B23: Ahmedemam | C23: Showrooms | D23: 2022-12-29 | E23: Thursday | F23: 09:12 | G23: 18:18 | H23: 09:06 | I23: 230012#2022-12-29
A24: 230013 | B24: mohamed emam | C24: Showrooms | D24: 2022-12-01 | E24: Thursday | F24: 8.45 | G24: 12.55 | H24: 05:03 | I24: 230013#2022-12-01
A25: 230013 | B25: mohamed emam | C25: Showrooms | D25: 2022-12-03 | E25: Saturday | F25: 08:49 | G25: 17:24 | H25: 08:34 | I25: 230013#2022-12-03
A26: 230013 | B26: mohamed emam | C26: Showrooms | D26: 2022-12-04 | E26: Sunday | F26: 09:10 | G26: 19:09 | H26: 09:59 | I26: 230013#2022-12-04
A27: 230013 | B27: mohamed emam | C27: Showrooms | D27: 2022-12-05 | E27: Monday | F27: 08:13 | G27: 18:42 | H27: 10:29 | I27: 230013#2022-12-05
A28: 230013 | B28: mohamed emam | C28: Showrooms | D28: 2022-12-06 | E28: Tuesday | F28: 09:08 | G28: 09:08 | H28: 00:00 | I28: 230013#2022-12-06
A29: 230013 | B29: mohamed emam | C29: Showrooms | D29: 2022-12-10 | E29: Saturday | F29: 09:13 | G29: 17:07 | H29: 07:54 | I29: 230013#2022-12-10
A30: 230013 | B30: mohamed emam | C30: Showrooms | D30: 2022-12-11 | E30: Sunday | F30: 09:07 | G30: 17:33 | H30: 08:26 | I30: 230013#2022-12-11
A31: 230013 | B31: mohamed emam | C31: Showrooms | D31: 2022-12-12 | E31: Monday | F31: 09:03 | G31: 19:04 | H31: 10:00 | I31: 230013#2022-12-12
A32: 230013 | B32: mohamed emam | C32: Showrooms | D32: 2022-12-13 | E32: Tuesday | F32: 09:12 | G32: 18:06 | H32: 08:53 | I32: 230013#2022-12-13
A33: 230013 | B33: mohamed emam | C33: Showrooms | D33: 2022-12-14 | E33: Wednesday | F33: 09:17 | G33: 19:57 | H33: 10:39 | I33: 230013#2022-12-14
A34: 230013 | B34: mohamed emam | C34: Showrooms | D34: 2022-12-18 | E34: Sunday | F34: 09:17 | G34: 17:04 | H34: 07:46 | I34: 230013#2022-12-18
A35: 230013 | B35: mohamed emam | C35: Showrooms | D35: 2022-12-19 | E35: Monday | F35: 09:08 | G35: 18:07 | H35: 08:59 | I35: 230013#2022-12-19
A36: 230013 | B36: mohamed emam | C36: Showrooms | D36: 2022-12-20 | E36: Tuesday | F36: 09:23 | G36: 19:10 | H36: 09:46 | I36: 230013#2022-12-20
A37: 230013 | B37: mohamed emam | C37: Showrooms | D37: 2022-12-21 | E37: Wednesday | F37: 09:51 | G37: 19:30 | H37: 09:39 | I37: 230013#2022-12-21
A38: 230013 | B38: mohamed emam | C38: Showrooms | D38: 2022-12-22 | E38: Thursday | F38: 09:08 | G38: 13:17 | H38: 04:09 | I38: 230013#2022-12-22
A39: 230013 | B39: mohamed emam | C39: Showrooms | D39: 2022-12-24 | E39: Saturday | F39: 08:53 | G39: 18:54 | H39: 10:01 | I39: 230013#2022-12-24
A40: 230013 | B40: mohamed emam | C40: Showrooms | D40: 2022-12-25 | E40: Sunday | F40: 09:10 | G40: 21:33 | H40: 12:22 | I40: 230013#2022-12-25
A41: 230013 | B41: mohamed emam | C41: Showrooms | D41: 2022-12-26 | E41: Monday | F41: 09:18 | G41: 20:24 | H41: 11:06 | I41: 230013#2022-12-26
A42: 230013 | B42: mohamed emam | C42: Showrooms | D42: 2022-12-27 | E42: Tuesday | F42: 09:23 | G42: 20:11 | H42: 10:47 | I42: 230013#2022-12-27
A43: 230013 | B43: mohamed emam | C43: Showrooms | D43: 2022-12-28 | E43: Wednesday | F43: 09:15 | G43: 21:53 | H43: 12:37 | I43: 230013#2022-12-28
A44: 230013 | B44: mohamed emam | C44: Showrooms | D44: 2022-12-29 | E44: Thursday | F44: 09:12 | G44: 18:18 | H44: 09:06 | I44: 230013#2022-12-29
A45: 230014 | B45: emad emam | C45: Showrooms | D45: 2022-12-01 | E45: Thursday | F45: 8.55 | G45: 12.3 | H45: 05:03 | I45: 230014#2022-12-01
A46: 230014 | B46: emad emam | C46: Showrooms | D46: 2022-12-03 | E46: Saturday | F46: 08:49 | G46: 17:24 | H46: 08:34 | I46: 230014#2022-12-03
A47: 230014 | B47: emad emam | C47: Showrooms | D47: 2022-12-04 | E47: Sunday | F47: 09:10 | G47: 19:09 | H47: 09:59 | I47: 230014#2022-12-04
A48: 230014 | B48: emad emam | C48: Showrooms | D48: 2022-12-05 | E48: Monday | F48: 08:13 | G48: 18:42 | H48: 10:29 | I48: 230014#2022-12-05
A49: 230014 | B49: emad emam | C49: Showrooms | D49: 2022-12-06 | E49: Tuesday | F49: 09:08 | G49: 09:08 | H49: 00:00 | I49: 230014#2022-12-06
A50: 230014 | B50: emad emam | C50: Showrooms | D50: 2022-12-10 | E50: Saturday | F50: 09:13 | G50: 17:07 | H50: 07:54 | I50: 230014#2022-12-10
A51: 230014 | B51: emad emam | C51: Showrooms | D51: 2022-12-11 | E51: Sunday | F51: 09:07 | G51: 17:33 | H51: 08:26 | I51: 230014#2022-12-11
A52: 230014 | B52: emad emam | C52: Showrooms | D52: 2022-12-12 | E52: Monday | F52: 09:03 | G52: 19:04 | H52: 10:00 | I52: 230014#2022-12-12
A53: 230014 | B53: emad emam | C53: Showrooms | D53: 2022-12-13 | E53: Tuesday | F53: 09:12 | G53: 18:06 | H53: 08:53 | I53: 230014#2022-12-13
A54: 230014 | B54: emad emam | C54: Showrooms | D54: 2022-12-14 | E54: Wednesday | F54: 09:17 | G54: 19:57 | H54: 10:39 | I54: 230014#2022-12-14
A55: 230014 | B55: emad emam | C55: Showrooms | D55: 2022-12-18 | E55: Sunday | F55: 09:17 | G55: 17:04 | H55: 07:46 | I55: 230014#2022-12-18
A56: 230014 | B56: emad emam | C56: Showrooms | D56: 2022-12-19 | E56: Monday | F56: 09:08 | G56: 18:07 | H56: 08:59 | I56: 230014#2022-12-19
A57: 230014 | B57: emad emam | C57: Showrooms | D57: 2022-12-20 | E57: Tuesday | F57: 09:23 | G57: 19:10 | H57: 09:46 | I57: 230014#2022-12-20
A58: 230014 | B58: emad emam | C58: Showrooms | D58: 2022-12-21 | E58: Wednesday | F58: 09:51 | G58: 19:30 | H58: 09:39 | I58: 230014#2022-12-21
A59: 230014 | B59: emad emam | C59: Showrooms | D59: 2022-12-22 | E59: Thursday | F59: 09:08 | G59: 13:17 | H59: 04:09 | I59: 230014#2022-12-22
A60: 230014 | B60: emad emam | C60: Showrooms | D60: 2022-12-24 | E60: Saturday | F60: 08:53 | G60: 18:54 | H60: 10:01 | I60: 230014#2022-12-24
A61: 230014 | B61: emad emam | C61: Showrooms | D61: 2022-12-25 | E61: Sunday | F61: 09:10 | G61: 21:33 | H61: 12:22 | I61: 230014#2022-12-25
A62: 230014 | B62: emad emam | C62: Showrooms | D62: 2022-12-26 | E62: Monday | F62: 09:18 | G62: 20:24 | H62: 11:06 | I62: 230014#2022-12-26
A63: 230014 | B63: emad emam | C63: Showrooms | D63: 2022-12-27 | E63: Tuesday | F63: 09:23 | G63: 20:11 | H63: 10:47 | I63: 230014#2022-12-27
A64: 230014 | B64: emad emam | C64: Showrooms | D64: 2022-12-28 | E64: Wednesday | F64: 09:15 | G64: 21:53 | H64: 12:37 | I64: 230014#2022-12-28
A65: 230014 | B65: emad emam | C65: Showrooms | D65: 2022-12-29 | E65: Thursday | F65: 09:12 | G65: 18:18 | H65: 09:06 | I65: 230014#2022-12-29
A66: 230015 | B66: hosam emam | C66: Showrooms | D66: 2022-12-01 | E66: Thursday | F66: 08:51 | G66: 13:54 | H66: 05:03 | I66: 230015#2022-12-01
A67: 230015 | B67: hosam emam | C67: Showrooms | D67: 2022-12-03 | E67: Saturday | F67: 08:49 | G67: 17:24 | H67: 08:34 | I67: 230015#2022-12-03
A68: 230015 | B68: hosam emam | C68: Showrooms | D68: 2022-12-04 | E68: Sunday | F68: 09:10 | G68: 19:09 | H68: 09:59 | I68: 230015#2022-12-04
A69: 230015 | B69: hosam emam | C69: Showrooms | D69: 2022-12-05 | E69: Monday | F69: 08:13 | G69: 18:42 | H69: 10:29 | I69: 230015#2022-12-05
A70: 230015 | B70: hosam emam | C70: Showrooms | D70: 2022-12-06 | E70: Tuesday | F70: 09:08 | G70: 09:08 | H70: 00:00 | I70: 230015#2022-12-06
A71: 230015 | B71: hosam emam | C71: Showrooms | D71: 2022-12-10 | E71: Saturday | F71: 09:13 | G71: 17:07 | H71: 07:54 | I71: 230015#2022-12-10
A72: 230015 | B72: hosam emam | C72: Showrooms | D72: 2022-12-11 | E72: Sunday | F72: 09:07 | G72: 17:33 | H72: 08:26 | I72: 230015#2022-12-11
A73: 230015 | B73: hosam emam | C73: Showrooms | D73: 2022-12-12 | E73: Monday | F73: 09:03 | G73: 19:04 | H73: 10:00 | I73: 230015#2022-12-12
A74: 230015 | B74: hosam emam | C74: Showrooms | D74: 2022-12-13 | E74: Tuesday | F74: 09:12 | G74: 18:06 | H74: 08:53 | I74: 230015#2022-12-13
A75: 230015 | B75: hosam emam | C75: Showrooms | D75: 2022-12-14 | E75: Wednesday | F75: 09:17 | G75: 19:57 | H75: 10:39 | I75: 230015#2022-12-14
A76: 230015 | B76: hosam emam | C76: Showrooms | D76: 2022-12-18 | E76: Sunday | F76: 09:17 | G76: 17:04 | H76: 07:46 | I76: 230015#2022-12-18
A77: 230015 | B77: hosam emam | C77: Showrooms | D77: 2022-12-19 | E77: Monday | F77: 09:08 | G77: 18:07 | H77: 08:59 | I77: 230015#2022-12-19
A78: 230015 | B78: hosam emam | C78: Showrooms | D78: 2022-12-20 | E78: Tuesday | F78: 09:23 | G78: 19:10 | H78: 09:46 | I78: 230015#2022-12-20
A79: 230015 | B79: hosam emam | C79: Showrooms | D79: 2022-12-21 | E79: Wednesday | F79: 09:51 | G79: 19:30 | H79: 09:39 | I79: 230015#2022-12-21
A80: 230015 | B80: hosam emam | C80: Showrooms | D80: 2022-12-22 | E80: Thursday | F80: 09:08 | G80: 13:17 | H80: 04:09 | I80: 230015#2022-12-22
A81: 230015 | B81: hosam emam | C81: Showrooms | D81: 2022-12-24 | E81: Saturday | F81: 08:53 | G81: 18:54 | H81: 10:01 | I81: 230015#2022-12-24
A82: 230015 | B82: hosam emam | C82: Showrooms | D82: 2022-12-25 | E82: Sunday | F82: 09:10 | G82: 21:33 | H82: 12:22 | I82: 230015#2022-12-25
A83: 230015 | B83: hosam emam | C83: Showrooms | D83: 2022-12-26 | E83: Monday | F83: 09:18 | G83: 20:24 | H83: 11:06 | I83: 230015#2022-12-26
A84: 230015 | B84: hosam emam | C84: Showrooms | D84: 2022-12-27 | E84: Tuesday | F84: 09:23 | G84: 20:11 | H84: 10:47 | I84: 230015#2022-12-27
A85: 230015 | B85: hosam emam | C85: Showrooms | D85: 2022-12-28 | E85: Wednesday | F85: 09:15 | G85: 21:53 | H85: 12:37 | I85: 230015#2022-12-28
A86: 230015 | B86: hosam emam | C86: Showrooms | D86: 2022-12-29 | E86: Thursday | F86: 09:12 | G86: 18:18 | H86: 09:06 | I86: 230015#2022-12-29

Sheet Data
A1: م | B1: الحافز | C1: الوظيفه | D1: الراتب الاساسى | E1: التامينات | F1: الكود | G1: الاسم | H1: الوظيفه | I1: التاخيرات
A2: 1 | B2: 3000 | C2: مدير ادارى | D2: 5000 | E2: يخصم | I2: 1 | J2: سماح | K2: 0
A3: 2 | B3: 2000 | C3: رئيس قسم | D3: 4000 | E3: لا يخصم | F3: 100001 | G3: احمد امام | H3: رئيس قسم | I3: 2 | J3: ربع يوم | K3: 0.25
A4: 3 | B4: 1500 | C4: فنى | D4: 3500 | F4: 100002 | G4: احمد السيد | H4: امين مخزن | I4: 3 | J4: نصف يوم | K4: 0.5
A5: 4 | B5: 1200 | C5: مساعد فنى | D5: 3000 | F5: 100003 | G5: يسرى موافى | H5: فنى | I5: 4 | J5: يوم | K5: =1+K4+K3 -> 1.75
A6: 5 | B6: 1000 | C6: عامل | D6: 2800 | F6: 100004 | G6: صالح محمد | H6: عامل | I6: 5 | J6: يوم | K6: =1+K5 -> 2.75
A7: 6 | B7: 1500 | C7: امين مخزن | D7: 3400 | F7: 100005 | G7: مراد الشافعى | H7: عامل | I7: 6 | J7: يوم | K7: =1+K6 -> 3.75
A8: 7 | B8: 1100 | C8: مساعد امين مخزن | D8: 3000 | F8: 100006 | G8: محمد على | H8: مدير ادارى | I8: 7 | J8: يوم | K8: =1+K7 -> 4.75
A9: 8 | B9: 4000 | C9: مدير حسابات | D9: 6000 | F9: 100007 | G9: عبد الواحد السيد | H9: عامل | I9: 8 | J9: يوم | K9: 5.75
A10: 9 | B10: 2800 | C10: محاسب | D10: 3800 | F10: 100008 | G10: احمد فتحى | H10: مساعد فنى | I10: 9 | J10: يوم | K10: 6.75
A11: 10 | B11: 2500 | C11: سائق | D11: 4200 | E11: اذن تاخير | F11: 100009 | G11: احمد منصور | H11: امين مخزن | I11: 10 | J11: يوم | K11: 7.75
F12: 100010 | G12: محمد صلاح | H12: مساعد امين مخزن | I12: 11 | J12: يوم | K12: 8.75
F13: 100011 | G13: احمد مصطفى | H13: مدير حسابات | I13: 12 | J13: يوم | K13: 9.75
F14: 100012 | G14: احمد سعيد | H14: محاسب | I14: 13 | J14: يوم | K14: 10.75
F15: 100013 | G15: محمد رمضان | H15: محاسب | I15: 14 | J15: يوم | K15: 11.75
F16: 100014 | G16: محمد شعبان | H16: رئيس قسم | I16: 15 | J16: يوم | K16: 12.75
F17: 100015 | G17: احمد كرم | H17: مساعد فنى | I17: 16 | J17: يوم | K17: 13.75
F18: 100016 | G18: اسامه محمود | H18: مدير حسابات | I18: 17 | J18: يوم | K18: 14.75
F19: 100017 | G19: محمد الداخلى | H19: مدير ادارى | I19: 18 | J19: يوم | K19: 15.75
F20: 100018 | G20: محمد عبد العزيز | H20: مساعد امين مخزن | I20: 19 | J20: يوم | K20: 16.75
F21: 100019 | G21: هانى محمد | H21: محاسب | I21: 20 | J21: يوم | K21: 17.75
F22: 100020 | G22: محمد حقار | H22: سائق | I22: 21 | J22: يوم | K22: 18.75
I23: 22 | J23: يوم | K23: 19.75
I24: 23 | J24: يوم | K24: 20.75
I25: 24 | J25: يوم | K25: 21.75
I26: 25 | J26: يوم | K26: 22.75
I27: 26 | J27: يوم | K27: 23.75
I28: 27 | J28: يوم | K28: 24.75
I29: 28 | J29: يوم | K29: 25.75
I30: 29 | J30: يوم | K30: 26.75
I31: 30 | J31: يوم | K31: 27.75
I32: 31 | J32: يوم | K32: 28.75

Sheet يناير
A1: الكود | B1: اليوم | C1: التــــــــــــاريخ | E1: الحضور | F1: الانصراف | G1: عدد الساعات | H1: الفعلى | I1: عدد الاضافى | J1: التأخير ساعات | K1: عدد التأخيرات | L1: الفاقد | M1: اضافى 1 | N1: اضافى2 | O1: عطلات | P1: اعتيادى 21 | Q1: عارضه 6 | R1: غياب باذن | S1: غياب بدون اذن | T1: بدل اغتراب | U1: بدل مواصلات | V1: بدل وجبه | W1: بدل غلاء معيشه | X1: بدل موبايل | Y1: بدل ملبس | Z1: بدل طبيعة عمل | AA1: مكافات | AB1: جزاء | AC1: قرض | AD1: ت اجتماعى | AE1: ت طبى خاص
A2: الاسم | B2: احمد امام | C2: اجمالى المستحق | E2: 430 | F2: الصافى | G2: 134.5 | L2: 1.75 | AB2: القرض المتبقى | AC2: 12000
A3: الوظيفه | B3: مدير ادارى | C3: اجمالى الاستقطاعات | E3: -295.5 | H3: 300 | J3: 5 | K3: 0.75 | L3: -56.25 | M3: 0 | N3: 0 | O3: 0 | P3: 0 | Q3: 0 | R3: 0 | S3: 0 | T3: 10 | U3: 60 | V3: 25 | W3: 15 | X3: 10 | Y3: 5 | Z3: 5 | AA3: 0 | AB3: 0 | AC3: 12000 | AD3: -140 | AE3: -100
A4: الكود | B4: اليوم | C4: التــــــــــــاريخ | D4: اذن تأخير | E4: الحضور | F4: الانصراف | G4: عدد الساعات | H4: الفعلى | I4: عدد الاضافى | J4: التأخير ساعات | K4: عدد التأخيرات | L4: الفاقد | M4: اضافى 1 | N4: اضافى2 | O4: عطلات | P4: اعتيادى 21 | Q4: عارضه 6 | R4: غياب باذن | S4: غياب بدون اذن | T4: بدل اغتراب | U4: بدل مواصلات | V4: بدل وجبه | W4: بدل غلاء معيشه | X4: بدل موبايل | Y4: بدل ملبس | Z4: بدل طبيعة عمل | AA4: مكافات | AB4: جزاء | AC4: قرض | AD4: ت اجتماعى | AE4: ت طبى خاص
A5: 100001 | B5: 2023-01-01 | C5: 2023-01-01 | E5: 10 | F5: 14 | G5: 4 | H5: 4 | I5: 0 | J5: 1 | K5: 1 | L5: -3 | M5: 0 | N5: 0 | T5: 3.333333333 | U5: 20 | V5: 8.333333333 | W5: 5 | X5: 3.333333333 | Y5: 1.666666667 | Z5: 1.666666667 | AD5: يخصم | AE5: يخصم
B6: 2023-01-02 | C6: 2023-01-02 | E6: 11 | F6: 17 | G6: 6 | H6: 6 | I6: 0 | J6: 2 | K6: 1 | L6: 0 | M6: 0 | N6: 0 | T6: 3.333333333 | U6: 20 | V6: 8.333333333 | W6: 5 | X6: 3.333333333 | Y6: 1.666666667 | Z6: 1.666666667
B7: 2023-01-03 | C7: 2023-01-03 | E7: 11 | F7: 17 | G7: 6 | H7: 6 | I7: 0 | J7: 2 | K7: 1 | L7: 0 | M7: 0 | N7: 0 | T7: 3.333333333 | U7: 20 | V7: 8.333333333 | W7: 5 | X7: 3.333333333 | Y7: 1.666666667 | Z7: 1.666666667
B8: 2023-01-04 | C8: 2023-01-04 | G8: 0 | H8: 0 | I8: 0 | J8: 0 | K8: 0 | L8: 0 | M8: 0 | N8: 0 | T8: 0 | U8: 0 | V8: 0 | W8: 0 | X8: 0 | Y8: 0 | Z8: 0
B9: 2023-01-05 | C9: 2023-01-05 | G9: 0 | H9: 0 | I9: 0 | J9: 0 | K9: 0 | L9: 0 | M9: 0 | N9: 0 | T9: 0 | U9: 0 | V9: 0 | W9: 0 | X9: 0 | Y9: 0 | Z9: 0
B10: 2023-01-06 | C10: 2023-01-06 | G10: 0 | H10: 0 | I10: 0 | J10: 0 | K10: 0 | L10: 0 | M10: 0 | N10: 0 | T10: 0 | U10: 0 | V10: 0 | W10: 0 | X10: 0 | Y10: 0 | Z10: 0
B11: 2023-01-07 | C11: 2023-01-07 | G11: 0 | H11: 0 | I11: 0 | J11: 0 | K11: 0 | L11: 0 | M11: 0 | N11: 0 | T11: 0 | U11: 0 | V11: 0 | W11: 0 | X11: 0 | Y11: 0 | Z11: 0
B12: 2023-01-08 | C12: 2023-01-08 | G12: 0 | H12: 0 | I12: 0 | J12: 0 | K12: 0 | L12: 0 | M12: 0 | N12: 0 | T12: 0 | U12: 0 | V12: 0 | W12: 0 | X12: 0 | Y12: 0 | Z12: 0
B13: 2023-01-09 | C13: 2023-01-09 | G13: 0 | H13: 0 | I13: 0 | J13: 0 | K13: 0 | L13: 0 | M13: 0 | N13: 0 | T13: 0 | U13: 0 | V13: 0 | W13: 0 | X13: 0 | Y13: 0 | Z13: 0
B14: 2023-01-10 | C14: 2023-01-10 | G14: 0 | H14: 0 | I14: 0 | J14: 0 | K14: 0 | L14: 0 | M14: 0 | N14: 0 | T14: 0 | U14: 0 | V14: 0 | W14: 0 | X14: 0 | Y14: 0 | Z14: 0
B15: 2023-01-11 | C15: 2023-01-11 | G15: 0 | H15: 0 | I15: 0 | J15: 0 | K15: 0 | L15: 0 | M15: 0 | N15: 0 | T15: 0 | U15: 0 | V15: 0 | W15: 0 | X15: 0 | Y15: 0 | Z15: 0
B16: 2023-01-12 | C16: 2023-01-12 | G16: 0 | H16: 0 | I16: 0 | J16: 0 | K16: 0 | L16: 0 | M16: 0 | N16: 0 | T16: 0 | U16: 0 | V16: 0 | W16: 0 | X16: 0 | Y16: 0 | Z16: 0
B17: 2023-01-13 | C17: 2023-01-13 | G17: 0 | H17: 0 | I17: 0 | J17: 0 | K17: 0 | L17: 0 | M17: 0 | N17: 0 | T17: 0 | U17: 0 | V17: 0 | W17: 0 | X17: 0 | Y17: 0 | Z17: 0
B18: 2023-01-14 | C18: 2023-01-14 | G18: 0 | H18: 0 | I18: 0 | J18: 0 | K18: 0 | L18: 0 | M18: 0 | N18: 0 | T18: 0 | U18: 0 | V18: 0 | W18: 0 | X18: 0 | Y18: 0 | Z18: 0
B19: 2023-01-15 | C19: 2023-01-15 | G19: 0 | H19: 0 | I19: 0 | J19: 0 | K19: 0 | L19: 0 | M19: 0 | N19: 0 | T19: 0 | U19: 0 | V19: 0 | W19: 0 | X19: 0 | Y19: 0 | Z19: 0
B20: 2023-01-16 | C20: 2023-01-16 | G20: 0 | H20: 0 | I20: 0 | J20: 0 | K20: 0 | L20: 0 | M20: 0 | N20: 0 | T20: 0 | U20: 0 | V20: 0 | W20: 0 | X20: 0 | Y20: 0 | Z20: 0
B21: 2023-01-17 | C21: 2023-01-17 | G21: 0 | H21: 0 | I21: 0 | J21: 0 | K21: 0 | L21: 0 | M21: 0 | N21: 0 | T21: 0 | U21: 0 | V21: 0 | W21: 0 | X21: 0 | Y21: 0 | Z21: 0
B22: 2023-01-18 | C22: 2023-01-18 | G22: 0 | H22: 0 | I22: 0 | J22: 0 | K22: 0 | L22: 0 | M22: 0 | N22: 0 | T22: 0 | U22: 0 | V22: 0 | W22: 0 | X22: 0 | Y22: 0 | Z22: 0
B23: 2023-01-19 | C23: 2023-01-19 | G23: 0 | H23: 0 | I23: 0 | J23: 0 | K23: 0 | L23: 0 | M23: 0 | N23: 0 | T23: 0 | U23: 0 | V23: 0 | W23: 0 | X23: 0 | Y23: 0 | Z23: 0
B24: 2023-01-20 | C24: 2023-01-20 | G24: 0 | H24: 0 | I24: 0 | J24: 0 | K24: 0 | L24: 0 | M24: 0 | N24: 0 | T24: 0 | U24: 0 | V24: 0 | W24: 0 | X24: 0 | Y24: 0 | Z24: 0
B25: 2023-01-21 | C25: 2023-01-21 | G25: 0 | H25: 0 | I25: 0 | J25: 0 | K25: 0 | L25: 0 | M25: 0 | N25: 0 | T25: 0 | U25: 0 | V25: 0 | W25: 0 | X25: 0 | Y25: 0 | Z25: 0
B26: 2023-01-22 | C26: 2023-01-22 | G26: 0 | H26: 0 | I26: 0 | J26: 0 | K26: 0 | L26: 0 | M26: 0 | N26: 0 | T26: 0 | U26: 0 | V26: 0 | W26: 0 | X26: 0 | Y26: 0 | Z26: 0
B27: 2023-01-23 | C27: 2023-01-23 | G27: 0 | H27: 0 | I27: 0 | J27: 0 | K27: 0 | L27: 0 | M27: 0 | N27: 0 | T27: 0 | U27: 0 | V27: 0 | W27: 0 | X27: 0 | Y27: 0 | Z27: 0
B28: 2023-01-24 | C28: 2023-01-24 | G28: 0 | H28: 0 | I28: 0 | J28: 0 | K28: 0 | L28: 0 | M28: 0 | N28: 0 | T28: 0 | U28: 0 | V28: 0 | W28: 0 | X28: 0 | Y28: 0 | Z28: 0
B29: 2023-01-25 | C29: 2023-01-25 | G29: 0 | H29: 0 | I29: 0 | J29: 0 | K29: 0 | L29: 0 | M29: 0 | N29: 0 | T29: 0 | U29: 0 | V29: 0 | W29: 0 | X29: 0 | Y29: 0 | Z29: 0
B30: 2023-01-26 | C30: 2023-01-26 | G30: 0 | H30: 0 | I30: 0 | J30: 0 | K30: 0 | L30: 0 | M30: 0 | N30: 0 | T30: 0 | U30: 0 | V30: 0 | W30: 0 | X30: 0 | Y30: 0 | Z30: 0
B31: 2023-01-27 | C31: 2023-01-27 | G31: 0 | H31: 0 | I31: 0 | J31: 0 | K31: 0 | L31: 0 | M31: 0 | N31: 0 | T31: 0 | U31: 0 | V31: 0 | W31: 0 | X31: 0 | Y31: 0 | Z31: 0
B32: 2023-01-28 | C32: 2023-01-28 | G32: 0 | H32: 0 | I32: 0 | J32: 0 | K32: 0 | L32: 0 | M32: 0 | N32: 0 | T32: 0 | U32: 0 | V32: 0 | W32: 0 | X32: 0 | Y32: 0 | Z32: 0
B33: 2023-01-29 | C33: 2023-01-29 | G33: 0 | H33: 0 | I33: 0 | J33: 0 | K33: 0 | L33: 0 | M33: 0 | N33: 0 | T33: 0 | U33: 0 | V33: 0 | W33: 0 | X33: 0 | Y33: 0 | Z33: 0
B34: 2023-01-30 | C34: 2023-01-30 | G34: 0 | H34: 0 | I34: 0 | J34: 0 | K34: 0 | L34: 0 | M34: 0 | N34: 0 | T34: 0 | U34: 0 | V34: 0 | W34: 0 | X34: 0 | Y34: 0 | Z34: 0
B35: 2023-01-31 | C35: 2023-01-31 | G35: 0 | H35: 0 | I35: 0 | J35: 0 | K35: 0 | L35: 0 | M35: 0 | N35: 0 | T35: 0 | U35: 0 | V35: 0 | W35: 0 | X35: 0 | Y35: 0 | Z35: 0
C36: عدد ايام الحضور | E36: 31 | F36: 31 | G36: 16 | H36: 16 | I36: 0 | J36: 5 | K36: 3 | L36: -3 | M36: 0 | N36: 0 | O36: 0 | P36: 0 | Q36: 0 | R36: 0 | S36: 0 | T36: 10 | U36: 60 | V36: 25 | W36: 15 | X36: 10 | Y36: 5 | Z36: 5 | AA36: 0 | AB36: 0 | AC36: 0 | AD36: -140 | AE36: -100
A37: الاسم | B37: احمد السيد | C37: اجمالى المستحق | E37: 320 | F37: الصافى | G37: 43.25 | L37: 1.75 | AB37: القرض المتبقى | AC37: -10000
A38: الوظيفه | B38: امين مخزن | C38: اجمالى الاستقطاعات | E38: -276.75 | H38: 200 | J38: 5 | K38: 0.75 | L38: -37.5 | M38: 0 | N38: 0 | O38: 0 | P38: 0 | Q38: 0 | R38: 0 | S38: 0 | T38: 10 | U38: 60 | V38: 30 | W38: 15 | X38: 0 | Y38: 0 | Z38: 5 | AA38: 0 | AB38: 0 | AC38: -10000 | AD38: -140 | AE38: -100
A39: الكود | B39: اليوم | C39: التــــــــــــاريخ | D39: اذن تأخير | E39: الحضور | F39: الانصراف | G39: عدد الساعات | H39: الفعلى | I39: عدد الاضافى | J39: التأخير ساعات | K39: عدد التأخيرات | L39: الفاقد | M39: اضافى 1 | N39: اضافى2 | O39: عطلات | P39: اعتيادى 21 | Q39: عارضه 6 | R39: غياب باذن | S39: غياب بدون اذن | T39: بدل اغتراب | U39: بدل مواصلات | V39: بدل وجبه | W39: بدل غلاء معيشه | X39: بدل موبايل | Y39: بدل ملبس | Z39: بدل طبيعة عمل | AA39: مكافات | AB39: جزاء | AC39: قرض | AD39: ت اجتماعى | AE39: ت طبى خاص
A40: 100002 | B40: 2023-01-01 | C40: 2023-01-01 | E40: 10 | F40: 14 | G40: 4 | H40: 4 | I40: 0 | J40: 1 | K40: 1 | L40: -3 | M40: 0 | N40: 0 | T40: 3.333333333 | U40: 20 | V40: 10 | W40: 5 | X40: 0 | Y40: 0 | Z40: 1.666666667 | AD40: يخصم | AE40: يخصم
B41: 2023-01-02 | C41: 2023-01-02 | E41: 11 | F41: 17 | G41: 6 | H41: 6 | I41: 0 | J41: 2 | K41: 1 | L41: 0 | M41: 0 | N41: 0 | T41: 3.333333333 | U41: 20 | V41: 10 | W41: 5 | X41: 0 | Y41: 0 | Z41: 1.666666667
B42: 2023-01-03 | C42: 2023-01-03 | E42: 11 | F42: 17 | G42: 6 | H42: 6 | I42: 0 | J42: 2 | K42: 1 | L42: 0 | M42: 0 | N42: 0 | T42: 3.333333333 | U42: 20 | V42: 10 | W42: 5 | X42: 0 | Y42: 0 | Z42: 1.666666667
B43: 2023-01-04 | C43: 2023-01-04 | G43: 0 | H43: 0 | I43: 0 | J43: 0 | K43: 0 | L43: 0 | M43: 0 | N43: 0 | T43: 0 | U43: 0 | V43: 0 | W43: 0 | X43: 0 | Y43: 0 | Z43: 0
B44: 2023-01-05 | C44: 2023-01-05 | G44: 0 | H44: 0 | I44: 0 | J44: 0 | K44: 0 | L44: 0 | M44: 0 | N44: 0 | T44: 0 | U44: 0 | V44: 0 | W44: 0 | X44: 0 | Y44: 0 | Z44: 0
B45: 2023-01-06 | C45: 2023-01-06 | G45: 0 | H45: 0 | I45: 0 | J45: 0 | K45: 0 | L45: 0 | M45: 0 | N45: 0 | T45: 0 | U45: 0 | V45: 0 | W45: 0 | X45: 0 | Y45: 0 | Z45: 0
B46: 2023-01-07 | C46: 2023-01-07 | G46: 0 | H46: 0 | I46: 0 | J46: 0 | K46: 0 | L46: 0 | M46: 0 | N46: 0 | T46: 0 | U46: 0 | V46: 0 | W46: 0 | X46: 0 | Y46: 0 | Z46: 0
B47: 2023-01-08 | C47: 2023-01-08 | G47: 0 | H47: 0 | I47: 0 | J47: 0 | K47: 0 | L47: 0 | M47: 0 | N47: 0 | T47: 0 | U47: 0 | V47: 0 | W47: 0 | X47: 0 | Y47: 0 | Z47: 0
B48: 2023-01-09 | C48: 2023-01-09 | G48: 0 | H48: 0 | I48: 0 | J48: 0 | K48: 0 | L48: 0 | M48: 0 | N48: 0 | T48: 0 | U48: 0 | V48: 0 | W48: 0 | X48: 0 | Y48: 0 | Z48: 0
B49: 2023-01-10 | C49: 2023-01-10 | G49: 0 | H49: 0 | I49: 0 | J49: 0 | K49: 0 | L49: 0 | M49: 0 | N49: 0 | T49: 0 | U49: 0 | V49: 0 | W49: 0 | X49: 0 | Y49: 0 | Z49: 0
B50: 2023-01-11 | C50: 2023-01-11 | G50: 0 | H50: 0 | I50: 0 | J50: 0 | K50: 0 | L50: 0 | M50: 0 | N50: 0 | T50: 0 | U50: 0 | V50: 0 | W50: 0 | X50: 0 | Y50: 0 | Z50: 0
B51: 2023-01-12 | C51: 2023-01-12 | G51: 0 | H51: 0 | I51: 0 | J51: 0 | K51: 0 | L51: 0 | M51: 0 | N51: 0 | T51: 0 | U51: 0 | V51: 0 | W51: 0 | X51: 0 | Y51: 0 | Z51: 0
B52: 2023-01-13 | C52: 2023-01-13 | G52: 0 | H52: 0 | I52: 0 | J52: 0 | K52: 0 | L52: 0 | M52: 0 | N52: 0 | T52: 0 | U52: 0 | V52: 0 | W52: 0 | X52: 0 | Y52: 0 | Z52: 0
B53: 2023-01-14 | C53: 2023-01-14 | G53: 0 | H53: 0 | I53: 0 | J53: 0 | K53: 0 | L53: 0 | M53: 0 | N53: 0 | T53: 0 | U53: 0 | V53: 0 | W53: 0 | X53: 0 | Y53: 0 | Z53: 0
B54: 2023-01-15 | C54: 2023-01-15 | G54: 0 | H54: 0 | I54: 0 | J54: 0 | K54: 0 | L54: 0 | M54: 0 | N54: 0 | T54: 0 | U54: 0 | V54: 0 | W54: 0 | X54: 0 | Y54: 0 | Z54: 0
B55: 2023-01-16 | C55: 2023-01-16 | G55: 0 | H55: 0 | I55: 0 | J55: 0 | K55: 0 | L55: 0 | M55: 0 | N55: 0 | T55: 0 | U55: 0 | V55: 0 | W55: 0 | X55: 0 | Y55: 0 | Z55: 0
B56: 2023-01-17 | C56: 2023-01-17 | G56: 0 | H56: 0 | I56: 0 | J56: 0 | K56: 0 | L56: 0 | M56: 0 | N56: 0 | T56: 0 | U56: 0 | V56: 0 | W56: 0 | X56: 0 | Y56: 0 | Z56: 0
B57: 2023-01-18 | C57: 2023-01-18 | G57: 0 | H57: 0 | I57: 0 | J57: 0 | K57: 0 | L57: 0 | M57: 0 | N57: 0 | T57: 0 | U57: 0 | V57: 0 | W57: 0 | X57: 0 | Y57: 0 | Z57: 0
B58: 2023-01-19 | C58: 2023-01-19 | G58: 0 | H58: 0 | I58: 0 | J58: 0 | K58: 0 | L58: 0 | M58: 0 | N58: 0 | T58: 0 | U58: 0 | V58: 0 | W58: 0 | X58: 0 | Y58: 0 | Z58: 0
B59: 2023-01-20 | C59: 2023-01-20 | G59: 0 | H59: 0 | I59: 0 | J59: 0 | K59: 0 | L59: 0 | M59: 0 | N59: 0 | T59: 0 | U59: 0 | V59: 0 | W59: 0 | X59: 0 | Y59: 0 | Z59: 0
B60: 2023-01-21 | C60: 2023-01-21 | G60: 0 | H60: 0 | I60: 0 | J60: 0 | K60: 0 | L60: 0 | M60: 0 | N60: 0 | T60: 0 | U60: 0 | V60: 0 | W60: 0 | X60: 0 | Y60: 0 | Z60: 0
B61: 2023-01-22 | C61: 2023-01-22 | G61: 0 | H61: 0 | I61: 0 | J61: 0 | K61: 0 | L61: 0 | M61: 0 | N61: 0 | T61: 0 | U61: 0 | V61: 0 | W61: 0 | X61: 0 | Y61: 0 | Z61: 0
B62: 2023-01-23 | C62: 2023-01-23 | G62: 0 | H62: 0 | I62: 0 | J62: 0 | K62: 0 | L62: 0 | M62: 0 | N62: 0 | T62: 0 | U62: 0 | V62: 0 | W62: 0 | X62: 0 | Y62: 0 | Z62: 0
B63: 2023-01-24 | C63: 2023-01-24 | G63: 0 | H63: 0 | I63: 0 | J63: 0 | K63: 0 | L63: 0 | M63: 0 | N63: 0 | T63: 0 | U63: 0 | V63: 0 | W63: 0 | X63: 0 | Y63: 0 | Z63: 0
B64: 2023-01-25 | C64: 2023-01-25 | G64: 0 | H64: 0 | I64: 0 | J64: 0 | K64: 0 | L64: 0 | M64: 0 | N64: 0 | T64: 0 | U64: 0 | V64: 0 | W64: 0 | X64: 0 | Y64: 0 | Z64: 0
B65: 2023-01-26 | C65: 2023-01-26 | G65: 0 | H65: 0 | I65: 0 | J65: 0 | K65: 0 | L65: 0 | M65: 0 | N65: 0 | T65: 0 | U65: 0 | V65: 0 | W65: 0 | X65: 0 | Y65: 0 | Z65: 0
B66: 2023-01-27 | C66: 2023-01-27 | G66: 0 | H66: 0 | I66: 0 | J66: 0 | K66: 0 | L66: 0 | M66: 0 | N66: 0 | T66: 0 | U66: 0 | V66: 0 | W66: 0 | X66: 0 | Y66: 0 | Z66: 0
B67: 2023-01-28 | C67: 2023-01-28 | G67: 0 | H67: 0 | I67: 0 | J67: 0 | K67: 0 | L67: 0 | M67: 0 | N67: 0 | T67: 0 | U67: 0 | V67: 0 | W67: 0 | X67: 0 | Y67: 0 | Z67: 0
B68: 2023-01-29 | C68: 2023-01-29 | G68: 0 | H68: 0 | I68: 0 | J68: 0 | K68: 0 | L68: 0 | M68: 0 | N68: 0 | T68: 0 | U68: 0 | V68: 0 | W68: 0 | X68: 0 | Y68: 0 | Z68: 0
B69: 2023-01-30 | C69: 2023-01-30 | G69: 0 | H69: 0 | I69: 0 | J69: 0 | K69: 0 | L69: 0 | M69: 0 | N69: 0 | T69: 0 | U69: 0 | V69: 0 | W69: 0 | X69: 0 | Y69: 0 | Z69: 0
B70: 2023-01-31 | C70: 2023-01-31 | G70: 0 | H70: 0 | I70: 0 | J70: 0 | K70: 0 | L70: 0 | M70: 0 | N70: 0 | T70: 0 | U70: 0 | V70: 0 | W70: 0 | X70: 0 | Y70: 0 | Z70: 0
C71: عدد ايام الحضور | E71: 31 | F71: 31 | G71: 16 | H71: 16 | I71: 0 | J71: 5 | K71: 3 | L71: -3 | M71: 0 | N71: 0 | O71: 0 | P71: 0 | Q71: 0 | R71: 0 | S71: 0 | T71: 10 | U71: 60 | V71: 30 | W71: 15 | X71: 0 | Y71: 0 | Z71: 5 | AA71: 0 | AB71: 0 | AC71: 0 | AD71: -140 | AE71: -100
A72: الاسم | B72: احمد امام | C72: اجمالى المستحق | E72: 430 | F72: الصافى | G72: 2134.5 | L72: 1.75 | AB72: القرض المتبقى
A73: الوظيفه | B73: مدير ادارى | C73: اجمالى الاستقطاعات | E73: 1704.5 | H73: 300 | J73: 5 | K73: 0.75 | L73: -56.25 | M73: 0 | N73: 0 | O73: 0 | P73: 0 | Q73: 0 | R73: 0 | S73: 0 | T73: 10 | U73: 60 | V73: 25 | W73: 15 | X73: 10 | Y73: 5 | Z73: 5 | AA73: 0 | AB73: 0 | AC73: 10000 | AD73: -140 | AE73: -100
A74: الكود | B74: اليوم | C74: التــــــــــــاريخ | D74: اذن تأخير | E74: الحضور | F74: الانصراف | G74: عدد الساعات | H74: الفعلى | I74: عدد الاضافى | J74: التأخير ساعات | K74: عدد التأخيرات | L74: الفاقد | M74: اضافى 1 | N74: اضافى2 | O74: عطلات | P74: اعتيادى 21 | Q74: عارضه 6 | R74: غياب باذن | S74: غياب بدون اذن | T74: بدل اغتراب | U74: بدل مواصلات | V74: بدل وجبه | W74: بدل غلاء معيشه | X74: بدل موبايل | Y74: بدل ملبس | Z74: بدل طبيعة عمل | AA74: مكافات | AB74: جزاء | AC74: قرض | AD74: ت اجتماعى | AE74: ت طبى خاص
A75: 100001 | B75: 2023-01-01 | C75: 2023-01-01 | E75: 10 | F75: 14 | G75: 4 | H75: 4 | I75: 0 | J75: 1 | K75: 1 | L75: -3 | M75: 0 | N75: 0 | T75: 3.333333333 | U75: 20 | V75: 8.333333333 | W75: 5 | X75: 3.333333333 | Y75: 1.666666667 | Z75: 1.666666667 | AC75: 2000 | AD75: يخصم | AE75: يخصم
B76: 2023-01-02 | C76: 2023-01-02 | E76: 11 | F76: 17 | G76: 6 | H76: 6 | I76: 0 | J76: 2 | K76: 1 | L76: 0 | M76: 0 | N76: 0 | T76: 3.333333333 | U76: 20 | V76: 8.333333333 | W76: 5 | X76: 3.333333333 | Y76: 1.666666667 | Z76: 1.666666667
B77: 2023-01-03 | C77: 2023-01-03 | E77: 11 | F77: 17 | G77: 6 | H77: 6 | I77: 0 | J77: 2 | K77: 1 | L77: 0 | M77: 0 | N77: 0 | T77: 3.333333333 | U77: 20 | V77: 8.333333333 | W77: 5 | X77: 3.333333333 | Y77: 1.666666667 | Z77: 1.666666667
B78: 2023-01-04 | C78: 2023-01-04 | G78: 0 | H78: 0 | I78: 0 | J78: 0 | K78: 0 | L78: 0 | M78: 0 | N78: 0 | T78: 0 | U78: 0 | V78: 0 | W78: 0 | X78: 0 | Y78: 0 | Z78: 0
B79: 2023-01-05 | C79: 2023-01-05 | G79: 0 | H79: 0 | I79: 0 | J79: 0 | K79: 0 | L79: 0 | M79: 0 | N79: 0 | T79: 0 | U79: 0 | V79: 0 | W79: 0 | X79: 0 | Y79: 0 | Z79: 0
B80: 2023-01-06 | C80: 2023-01-06 | G80: 0 | H80: 0 | I80: 0 | J80: 0 | K80: 0 | L80: 0 | M80: 0 | N80: 0 | T80: 0 | U80: 0 | V80: 0 | W80: 0 | X80: 0 | Y80: 0 | Z80: 0
B81: 2023-01-07 | C81: 2023-01-07 | G81: 0 | H81: 0 | I81: 0 | J81: 0 | K81: 0 | L81: 0 | M81: 0 | N81: 0 | T81: 0 | U81: 0 | V81: 0 | W81: 0 | X81: 0 | Y81: 0 | Z81: 0
B82: 2023-01-08 | C82: 2023-01-08 | G82: 0 | H82: 0 | I82: 0 | J82: 0 | K82: 0 | L82: 0 | M82: 0 | N82: 0 | T82: 0 | U82: 0 | V82: 0 | W82: 0 | X82: 0 | Y82: 0 | Z82: 0
B83: 2023-01-09 | C83: 2023-01-09 | G83: 0 | H83: 0 | I83: 0 | J83: 0 | K83: 0 | L83: 0 | M83: 0 | N83: 0 | T83: 0 | U83: 0 | V83: 0 | W83: 0 | X83: 0 | Y83: 0 | Z83: 0
B84: 2023-01-10 | C84: 2023-01-10 | G84: 0 | H84: 0 | I84: 0 | J84: 0 | K84: 0 | L84: 0 | M84: 0 | N84: 0 | T84: 0 | U84: 0 | V84: 0 | W84: 0 | X84: 0 | Y84: 0 | Z84: 0
B85: 2023-01-11 | C85: 2023-01-11 | G85: 0 | H85: 0 | I85: 0 | J85: 0 | K85: 0 | L85: 0 | M85: 0 | N85: 0 | T85: 0 | U85: 0 | V85: 0 | W85: 0 | X85: 0 | Y85: 0 | Z85: 0
B86: 2023-01-12 | C86: 2023-01-12 | G86: 0 | H86: 0 | I86: 0 | J86: 0 | K86: 0 | L86: 0 | M86: 0 | N86: 0 | T86: 0 | U86: 0 | V86: 0 | W86: 0 | X86: 0 | Y86: 0 | Z86: 0
B87: 2023-01-13 | C87: 2023-01-13 | G87: 0 | H87: 0 | I87: 0 | J87: 0 | K87: 0 | L87: 0 | M87: 0 | N87: 0 | T87: 0 | U87: 0 | V87: 0 | W87: 0 | X87: 0 | Y87: 0 | Z87: 0
B88: 2023-01-14 | C88: 2023-01-14 | G88: 0 | H88: 0 | I88: 0 | J88: 0 | K88: 0 | L88: 0 | M88: 0 | N88: 0 | T88: 0 | U88: 0 | V88: 0 | W88: 0 | X88: 0 | Y88: 0 | Z88: 0
B89: 2023-01-15 | C89: 2023-01-15 | G89: 0 | H89: 0 | I89: 0 | J89: 0 | K89: 0 | L89: 0 | M89: 0 | N89: 0 | T89: 0 | U89: 0 | V89: 0 | W89: 0 | X89: 0 | Y89: 0 | Z89: 0
B90: 2023-01-16 | C90: 2023-01-16 | G90: 0 | H90: 0 | I90: 0 | J90: 0 | K90: 0 | L90: 0 | M90: 0 | N90: 0 | T90: 0 | U90: 0 | V90: 0 | W90: 0 | X90: 0 | Y90: 0 | Z90: 0
B91: 2023-01-17 | C91: 2023-01-17 | G91: 0 | H91: 0 | I91: 0 | J91: 0 | K91: 0 | L91: 0 | M91: 0 | N91: 0 | T91: 0 | U91: 0 | V91: 0 | W91: 0 | X91: 0 | Y91: 0 | Z91: 0
B92: 2023-01-18 | C92: 2023-01-18 | G92: 0 | H92: 0 | I92: 0 | J92: 0 | K92: 0 | L92: 0 | M92: 0 | N92: 0 | T92: 0 | U92: 0 | V92: 0 | W92: 0 | X92: 0 | Y92: 0 | Z92: 0
B93: 2023-01-19 | C93: 2023-01-19 | G93: 0 | H93: 0 | I93: 0 | J93: 0 | K93: 0 | L93: 0 | M93: 0 | N93: 0 | T93: 0 | U93: 0 | V93: 0 | W93: 0 | X93: 0 | Y93: 0 | Z93: 0
B94: 2023-01-20 | C94: 2023-01-20 | G94: 0 | H94: 0 | I94: 0 | J94: 0 | K94: 0 | L94: 0 | M94: 0 | N94: 0 | T94: 0 | U94: 0 | V94: 0 | W94: 0 | X94: 0 | Y94: 0 | Z94: 0
B95: 2023-01-21 | C95: 2023-01-21 | G95: 0 | H95: 0 | I95: 0 | J95: 0 | K95: 0 | L95: 0 | M95: 0 | N95: 0 | T95: 0 | U95: 0 | V95: 0 | W95: 0 | X95: 0 | Y95: 0 | Z95: 0
B96: 2023-01-22 | C96: 2023-01-22 | G96: 0 | H96: 0 | I96: 0 | J96: 0 | K96: 0 | L96: 0 | M96: 0 | N96: 0 | T96: 0 | U96: 0 | V96: 0 | W96: 0 | X96: 0 | Y96: 0 | Z96: 0
B97: 2023-01-23 | C97: 2023-01-23 | G97: 0 | H97: 0 | I97: 0 | J97: 0 | K97: 0 | L97: 0 | M97: 0 | N97: 0 | T97: 0 | U97: 0 | V97: 0 | W97: 0 | X97: 0 | Y97: 0 | Z97: 0
B98: 2023-01-24 | C98: 2023-01-24 | G98: 0 | H98: 0 | I98: 0 | J98: 0 | K98: 0 | L98: 0 | M98: 0 | N98: 0 | T98: 0 | U98: 0 | V98: 0 | W98: 0 | X98: 0 | Y98: 0 | Z98: 0
B99: 2023-01-25 | C99: 2023-01-25 | G99: 0 | H99: 0 | I99: 0 | J99: 0 | K99: 0 | L99: 0 | M99: 0 | N99: 0 | T99: 0 | U99: 0 | V99: 0 | W99: 0 | X99: 0 | Y99: 0 | Z99: 0
B100: 2023-01-26 | C100: 2023-01-26 | G100: 0 | H100: 0 | I100: 0 | J100: 0 | K100: 0 | L100: 0 | M100: 0 | N100: 0 | T100: 0 | U100: 0 | V100: 0 | W100: 0 | X100: 0 | Y100: 0 | Z100: 0
B101: 2023-01-27 | C101: 2023-01-27 | G101: 0 | H101: 0 | I101: 0 | J101: 0 | K101: 0 | L101: 0 | M101: 0 | N101: 0 | T101: 0 | U101: 0 | V101: 0 | W101: 0 | X101: 0 | Y101: 0 | Z101: 0
B102: 2023-01-28 | C102: 2023-01-28 | G102: 0 | H102: 0 | I102: 0 | J102: 0 | K102: 0 | L102: 0 | M102: 0 | N102: 0 | T102: 0 | U102: 0 | V102: 0 | W102: 0 | X102: 0 | Y102: 0 | Z102: 0
B103: 2023-01-29 | C103: 2023-01-29 | G103: 0 | H103: 0 | I103: 0 | J103: 0 | K103: 0 | L103: 0 | M103: 0 | N103: 0 | T103: 0 | U103: 0 | V103: 0 | W103: 0 | X103: 0 | Y103: 0 | Z103: 0
B104: 2023-01-30 | C104: 2023-01-30 | G104: 0 | H104: 0 | I104: 0 | J104: 0 | K104: 0 | L104: 0 | M104: 0 | N104: 0 | T104: 0 | U104: 0 | V104: 0 | W104: 0 | X104: 0 | Y104: 0 | Z104: 0
B105: 2023-01-31 | C105: 2023-01-31 | G105: 0 | H105: 0 | I105: 0 | J105: 0 | K105: 0 | L105: 0 | M105: 0 | N105: 0 | T105: 0 | U105: 0 | V105: 0 | W105: 0 | X105: 0 | Y105: 0 | Z105: 0
C106: عدد ايام الحضور | E106: 31 | F106: 31 | G106: 16 | H106: 16 | I106: 0 | J106: 5 | K106: 3 | L106: -3 | M106: 0 | N106: 0 | O106: 0 | P106: 0 | Q106: 0 | R106: 0 | S106: 0 | T106: 10 | U106: 60 | V106: 25 | W106: 15 | X106: 10 | Y106: 5 | Z106: 5 | AA106: 0 | AB106: 0 | AC106: 2000 | AD106: -140 | AE106: -100
E107: 11645.16667 | F107: الصافى
E108: -666.6666667
E109: الحضور | F109: الانصراف
E110: 9 | F110: 17
E111: 9.5 | F111: 17
E112: 10 | F112: 17
E113: 11 | F113: 17
E114: 10 | F114: 18
E115: 9 | F115: 18
E116: 9.25 | F116: 17
E117: 9 | F117: 17
E118: 9 | F118: 17
E119: 9 | F119: 17
E120: 9 | F120: 17
E121: 9 | F121: 17
E122: 9 | F122: 17
E123: 9 | F123: 17
E124: 9 | F124: 17
E125: 9 | F125: 17
E126: 9 | F126: 17
E127: 9 | F127: 17
E128: 9 | F128: 17
E129: 9 | F129: 17
E130: 9 | F130: 17
E131: 9 | F131: 17
E132: 9 | F132: 17
E133: 9 | F133: 17
E134: 9 | F134: 17
E135: 9 | F135: 17
E136: 9 | F136: 17
E137: 9 | F137: 17
E138: 9 | F138: 17
E139: 9 | F139: 17
E140: 9 | F140: 17

Sheet فبراير
A1: الكود | B1: اليوم | C1: التــــــــــــاريخ | D1: الحضور | E1: الانصراف | F1: عدد الساعات | G1: الفعلى | H1: عدد الاضافى | I1: التأخير ساعات | J1: عدد التأخيرات | K1: الفاقد | L1: اضافى 1 | M1: اضافى2 | N1: عطلات | O1: اعتيادى 21 | P1: عارضه 6 | Q1: غياب باذن | R1: غياب بدون اذن | S1: بدل اغتراب | T1: بدل مواصلات | U1: بدل وجبه | V1: بدل غلاء معيشه | W1: بدل موبايل | X1: بدل ملبس | Y1: بدل طبيعة عمل | Z1: مكافات | AA1: جزاء | AB1: قرض | AC1: ت اجتماعى | AD1: ت طبى خاص
A2: الاسم | B2: احمد امام | C2: اجمالى المستحق | E2: 1895.833333 | F2: الصافى | G2: 1370.833333 | J2: 0.25 | K2: 37.5 | L2: 0.75 | AB2: القرض المتبقى | AC2: 12000
A3: الوظيفه | B3: مدير ادارى | C3: اجمالى الاستقطاعات | E3: -525 | H3: 1256.25 | J3: 7 | K3: 0.25 | L3: -112.5 | M3: 56.25 | N3: 0 | O3: 0 | P3: 0 | Q3: 0 | R3: -150 | S3: -300 | T3: 33.33333333 | U3: 200 | V3: 83.33333333 | W3: 50 | X3: 33.33333333 | Y3: 16.66666667 | Z3: 16.66666667 | AA3: 150 | AB3: 0 | AC3: 12000 | AD3: -140 | AE3: -100
A4: الكود | B4: اليوم | C4: التــــــــــــاريخ | D4: اذن تأخير | E4: الحضور | F4: الانصراف | G4: عدد الساعات | H4: الفعلى | I4: عدد الاضافى | J4: التأخير ساعات | K4: عدد التأخيرات | L4: الفاقد | M4: اضافى 1 | N4: اضافى2 | O4: عطلات | P4: اعتيادى 21 | Q4: عارضه 6 | R4: غياب باذن | S4: غياب بدون اذن | T4: بدل اغتراب | U4: بدل مواصلات | V4: بدل وجبه | W4: بدل غلاء معيشه | X4: بدل موبايل | Y4: بدل ملبس | Z4: بدل طبيعة عمل | AA4: مكافات | AB4: جزاء | AC4: قرض | AD4: ت اجتماعى | AE4: ت طبى خاص
A5: 100001 | B5: 2023-02-01 | C5: 2023-02-01 | E5: 9 | F5: 17 | G5: 8 | H5: 8 | I5: 0 | J5: 0 | K5: 0 | L5: 0 | M5: 0 | N5: 0 | T5: 3.333333333 | U5: 20 | V5: 8.333333333 | W5: 5 | X5: 3.333333333 | Y5: 1.666666667 | Z5: 1.666666667
B6: 2023-02-02 | C6: 2023-02-02 | E6: 10 | F6: 18 | G6: 8 | H6: 8 | I6: 1 | J6: 1 | K6: 1 | L6: 0 | M6: 1 | N6: 0 | T6: 3.333333333 | U6: 20 | V6: 8.333333333 | W6: 5 | X6: 3.333333333 | Y6: 1.666666667 | Z6: 1.666666667
B7: 2023-02-03 | C7: 2023-02-03 | D7: اذن تاخير | E7: 11 | F7: 18 | G7: 7 | H7: 7 | I7: 1 | J7: 2 | K7: 0 | L7: 0 | M7: 1 | N7: 0 | T7: 3.333333333 | U7: 20 | V7: 8.333333333 | W7: 5 | X7: 3.333333333 | Y7: 1.666666667 | Z7: 1.666666667
B8: 2023-02-04 | C8: 2023-02-04 | D8: اذن تاخير | E8: 10 | F8: 17 | G8: 7 | H8: 7 | I8: 0 | J8: 1 | K8: 0 | L8: 0 | M8: 0 | N8: 0 | T8: 3.333333333 | U8: 20 | V8: 8.333333333 | W8: 5 | X8: 3.333333333 | Y8: 1.666666667 | Z8: 1.666666667
B9: 2023-02-05 | C9: 2023-02-05 | E9: 9 | F9: 17 | G9: 8 | H9: 8 | I9: 0 | J9: 0 | K9: 0 | L9: 0 | M9: 0 | N9: 0 | T9: 3.333333333 | U9: 20 | V9: 8.333333333 | W9: 5 | X9: 3.333333333 | Y9: 1.666666667 | Z9: 1.666666667
B10: 2023-02-06 | C10: 2023-02-06 | D10: اذن تاخير | E10: 10 | F10: 17 | G10: 7 | H10: 7 | I10: 0 | J10: 1 | K10: 0 | L10: 0 | M10: 0 | N10: 0 | T10: 3.333333333 | U10: 20 | V10: 8.333333333 | W10: 5 | X10: 3.333333333 | Y10: 1.666666667 | Z10: 1.666666667 | AA10: 1
B11: 2023-02-07 | C11: 2023-02-07 | E11: 10 | F11: 16 | G11: 6 | H11: 6 | I11: 0 | J11: 1 | K11: 1 | L11: -1 | M11: 0 | N11: 0 | T11: 3.333333333 | U11: 20 | V11: 8.333333333 | W11: 5 | X11: 3.333333333 | Y11: 1.666666667 | Z11: 1.666666667
B12: 2023-02-08 | C12: 2023-02-08 | E12: 9 | F12: 15 | G12: 6 | H12: 6 | I12: 0 | J12: 0 | K12: 0 | L12: -2 | M12: 0 | N12: 0 | R12: 1 | T12: 3.333333333 | U12: 20 | V12: 8.333333333 | W12: 5 | X12: 3.333333333 | Y12: 1.666666667 | Z12: 1.666666667
B13: 2023-02-09 | C13: 2023-02-09 | E13: 9 | F13: 14 | G13: 5 | H13: 5 | I13: 0 | J13: 0 | K13: 0 | L13: -3 | M13: 0 | N13: 0 | S13: 1 | T13: 3.333333333 | U13: 20 | V13: 8.333333333 | W13: 5 | X13: 3.333333333 | Y13: 1.666666667 | Z13: 1.666666667
B14: 2023-02-10 | C14: 2023-02-10 | D14: اذن تاخير | E14: 10 | F14: 17 | G14: 7 | H14: 7 | I14: 0 | J14: 1 | K14: 0 | L14: 0 | M14: 0 | N14: 0 | T14: 3.333333333 | U14: 20 | V14: 8.333333333 | W14: 5 | X14: 3.333333333 | Y14: 1.666666667 | Z14: 1.666666667
B15: 2023-02-11 | C15: 2023-02-11 | G15: 0 | H15: 0 | I15: 0 | J15: 0 | K15: 0 | L15: 0 | M15: 0 | N15: 0 | T15: 0 | U15: 0 | V15: 0 | W15: 0 | X15: 0 | Y15: 0 | Z15: 0
B16: 2023-02-12 | C16: 2023-02-12 | G16: 0 | H16: 0 | I16: 0 | J16: 0 | K16: 0 | L16: 0 | M16: 0 | N16: 0 | T16: 0 | U16: 0 | V16: 0 | W16: 0 | X16: 0 | Y16: 0 | Z16: 0
B17: 2023-02-13 | C17: 2023-02-13 | G17: 0 | H17: 0 | I17: 0 | J17: 0 | K17: 0 | L17: 0 | M17: 0 | N17: 0 | T17: 0 | U17: 0 | V17: 0 | W17: 0 | X17: 0 | Y17: 0 | Z17: 0
B18: 2023-02-14 | C18: 2023-02-14 | G18: 0 | H18: 0 | I18: 0 | J18: 0 | K18: 0 | L18: 0 | M18: 0 | N18: 0 | T18: 0 | U18: 0 | V18: 0 | W18: 0 | X18: 0 | Y18: 0 | Z18: 0
B19: 2023-02-15 | C19: 2023-02-15 | G19: 0 | H19: 0 | I19: 0 | J19: 0 | K19: 0 | L19: 0 | M19: 0 | N19: 0 | T19: 0 | U19: 0 | V19: 0 | W19: 0 | X19: 0 | Y19: 0 | Z19: 0
B20: 2023-02-16 | C20: 2023-02-16 | G20: 0 | H20: 0 | I20: 0 | J20: 0 | K20: 0 | L20: 0 | M20: 0 | N20: 0 | T20: 0 | U20: 0 | V20: 0 | W20: 0 | X20: 0 | Y20: 0 | Z20: 0
B21: 2023-02-17 | C21: 2023-02-17 | G21: 0 | H21: 0 | I21: 0 | J21: 0 | K21: 0 | L21: 0 | M21: 0 | N21: 0 | T21: 0 | U21: 0 | V21: 0 | W21: 0 | X21: 0 | Y21: 0 | Z21: 0
B22: 2023-02-18 | C22: 2023-02-18 | G22: 0 | H22: 0 | I22: 0 | J22: 0 | K22: 0 | L22: 0 | M22: 0 | N22: 0 | T22: 0 | U22: 0 | V22: 0 | W22: 0 | X22: 0 | Y22: 0 | Z22: 0
B23: 2023-02-19 | C23: 2023-02-19 | G23: 0 | H23: 0 | I23: 0 | J23: 0 | K23: 0 | L23: 0 | M23: 0 | N23: 0 | T23: 0 | U23: 0 | V23: 0 | W23: 0 | X23: 0 | Y23: 0 | Z23: 0
B24: 2023-02-20 | C24: 2023-02-20 | G24: 0 | H24: 0 | I24: 0 | J24: 0 | K24: 0 | L24: 0 | M24: 0 | N24: 0 | T24: 0 | U24: 0 | V24: 0 | W24: 0 | X24: 0 | Y24: 0 | Z24: 0
B25: 2023-02-21 | C25: 2023-02-21 | G25: 0 | H25: 0 | I25: 0 | J25: 0 | K25: 0 | L25: 0 | M25: 0 | N25: 0 | T25: 0 | U25: 0 | V25: 0 | W25: 0 | X25: 0 | Y25: 0 | Z25: 0
B26: 2023-02-22 | C26: 2023-02-22 | G26: 0 | H26: 0 | I26: 0 | J26: 0 | K26: 0 | L26: 0 | M26: 0 | N26: 0 | T26: 0 | U26: 0 | V26: 0 | W26: 0 | X26: 0 | Y26: 0 | Z26: 0
B27: 2023-02-23 | C27: 2023-02-23 | G27: 0 | H27: 0 | I27: 0 | J27: 0 | K27: 0 | L27: 0 | M27: 0 | N27: 0 | T27: 0 | U27: 0 | V27: 0 | W27: 0 | X27: 0 | Y27: 0 | Z27: 0
B28: 2023-02-24 | C28: 2023-02-24 | G28: 0 | H28: 0 | I28: 0 | J28: 0 | K28: 0 | L28: 0 | M28: 0 | N28: 0 | T28: 0 | U28: 0 | V28: 0 | W28: 0 | X28: 0 | Y28: 0 | Z28: 0
B29: 2023-02-25 | C29: 2023-02-25 | G29: 0 | H29: 0 | I29: 0 | J29: 0 | K29: 0 | L29: 0 | M29: 0 | N29: 0 | T29: 0 | U29: 0 | V29: 0 | W29: 0 | X29: 0 | Y29: 0 | Z29: 0
B30: 2023-02-26 | C30: 2023-02-26 | G30: 0 | H30: 0 | I30: 0 | J30: 0 | K30: 0 | L30: 0 | M30: 0 | N30: 0 | T30: 0 | U30: 0 | V30: 0 | W30: 0 | X30: 0 | Y30: 0 | Z30: 0
B31: 2023-02-27 | C31: 2023-02-27 | G31: 0 | H31: 0 | I31: 0 | J31: 0 | K31: 0 | L31: 0 | M31: 0 | N31: 0 | T31: 0 | U31: 0 | V31: 0 | W31: 0 | X31: 0 | Y31: 0 | Z31: 0
B32: 2023-02-28 | C32: 2023-02-28 | G32: 0 | H32: 0 | I32: 0 | J32: 0 | K32: 0 | L32: 0 | M32: 0 | N32: 0 | T32: 0 | U32: 0 | V32: 0 | W32: 0 | X32: 0 | Y32: 0 | Z32: 0
G33: 0 | H33: 0 | I33: 0 | J33: 0 | K33: 0 | L33: 0 | M33: 0 | N33: 0 | T33: 0 | U33: 0 | V33: 0 | W33: 0 | X33: 0 | Y33: 0 | Z33: 0
G34: 0 | H34: 0 | I34: 0 | J34: 0 | K34: 0 | L34: 0 | M34: 0 | N34: 0 | T34: 0 | U34: 0 | V34: 0 | W34: 0 | X34: 0 | Y34: 0 | Z34: 0
G35: 0 | H35: 0 | I35: 0 | J35: 0 | K35: 0 | L35: 0 | M35: 0 | N35: 0 | T35: 0 | U35: 0 | V35: 0 | W35: 0 | X35: 0 | Y35: 0 | Z35: 0
C36: عدد ايام الحضور | E36: 31 | F36: 31 | G36: 69 | H36: 67 | I36: 2 | J36: 7 | K36: 2 | L36: -6 | M36: 2 | N36: 0 | O36: 0 | P36: 0 | Q36: 0 | R36: 1 | S36: 1 | T36: 33.33333333 | U36: 200 | V36: 83.33333333 | W36: 50 | X36: 33.33333333 | Y36: 16.66666667 | Z36: 16.66666667 | AA36: 1 | AB36: 0 | AC36: 0 | AD36: 0 | AE36: 0
A37: الاسم | B37: احمد السيد | C37: اجمالى المستحق | E37: 140 | F37: الصافى | J37: 0 | L37: 0 | AB37: القرض المتبقى | AC37: -10000
A38: الوظيفه | B38: امين مخزن | C38: اجمالى الاستقطاعات | H38: 100 | J38: 0 | L38: 0 | M38: 0 | N38: 0 | O38: 0 | P38: 0 | Q38: 0 | R38: 0 | S38: 0 | T38: 3.333333333 | U38: 20 | V38: 10 | W38: 5 | X38: 0 | Y38: 0 | Z38: 1.666666667 | AA38: 0 | AB38: 0 | AC38: -10000 | AD38: -140 | AE38: -100
A39: الكود | B39: اليوم | C39: التــــــــــــاريخ | D39: اذن تأخير | E39: الحضور | F39: الانصراف | G39: عدد الساعات | H39: الفعلى | I39: عدد الاضافى | J39: التأخير ساعات | K39: عدد التأخيرات | L39: الفاقد | M39: اضافى 1 | N39: اضافى2 | O39: عطلات | P39: اعتيادى 21 | Q39: عارضه 6 | R39: غياب باذن | S39: غياب بدون اذن | T39: بدل اغتراب | U39: بدل مواصلات | V39: بدل وجبه | W39: بدل غلاء معيشه | X39: بدل موبايل | Y39: بدل ملبس | Z39: بدل طبيعة عمل | AA39: مكافات | AB39: جزاء | AC39: قرض | AD39: ت اجتماعى | AE39: ت طبى خاص
A40: 100002 | B40: 2023-02-01 | C40: 2023-02-01 | G40: 0 | H40: 0 | I40: 0 | J40: 0 | K40: 0 | L40: 0 | M40: 0 | N40: 0 | T40: 0 | U40: 0 | V40: 0 | W40: 0 | X40: 0 | Y40: 0 | Z40: 0
B41: 2023-02-02 | C41: 2023-02-02 | G41: 0 | H41: 0 | I41: 0 | J41: 0 | K41: 0 | L41: 0 | M41: 0 | N41: 0 | T41: 0 | U41: 0 | V41: 0 | W41: 0 | X41: 0 | Y41: 0 | Z41: 0
B42: 2023-02-03 | C42: 2023-02-03 | G42: 0 | H42: 0 | I42: 0 | J42: 0 | K42: 0 | L42: 0 | M42: 0 | N42: 0 | T42: 0 | U42: 0 | V42: 0 | W42: 0 | X42: 0 | Y42: 0 | Z42: 0
B43: 2023-02-04 | C43: 2023-02-04 | G43: 0 | H43: 0 | I43: 0 | J43: 0 | K43: 0 | L43: 0 | M43: 0 | N43: 0 | T43: 0 | U43: 0 | V43: 0 | W43: 0 | X43: 0 | Y43: 0 | Z43: 0
B44: 2023-02-05 | C44: 2023-02-05 | G44: 0 | H44: 0 | I44: 0 | J44: 0 | K44: 0 | L44: 0 | M44: 0 | N44: 0 | T44: 0 | U44: 0 | V44: 0 | W44: 0 | X44: 0 | Y44: 0 | Z44: 0
B45: 2023-02-06 | C45: 2023-02-06 | G45: 0 | H45: 0 | I45: 0 | J45: 0 | K45: 0 | L45: 0 | M45: 0 | N45: 0 | T45: 0 | U45: 0 | V45: 0 | W45: 0 | X45: 0 | Y45: 0 | Z45: 0
B46: 2023-02-07 | C46: 2023-02-07 | G46: 0 | H46: 0 | I46: 0 | J46: 0 | K46: 0 | L46: 0 | M46: 0 | N46: 0 | T46: 0 | U46: 0 | V46: 0 | W46: 0 | X46: 0 | Y46: 0 | Z46: 0
B47: 2023-02-08 | C47: 2023-02-08 | G47: 0 | H47: 0 | I47: 0 | J47: 0 | K47: 0 | L47: 0 | M47: 0 | N47: 0 | T47: 0 | U47: 0 | V47: 0 | W47: 0 | X47: 0 | Y47: 0 | Z47: 0
B48: 2023-02-09 | C48: 2023-02-09 | G48: 0 | H48: 0 | I48: 0 | J48: 0 | K48: 0 | L48: 0 | M48: 0 | N48: 0 | T48: 0 | U48: 0 | V48: 0 | W48: 0 | X48: 0 | Y48: 0 | Z48: 0
B49: 2023-02-10 | C49: 2023-02-10 | G49: 0 | H49: 0 | I49: 0 | J49: 0 | K49: 0 | L49: 0 | M49: 0 | N49: 0 | T49: 0 | U49: 0 | V49: 0 | W49: 0 | X49: 0 | Y49: 0 | Z49: 0
B50: 2023-02-11 | C50: 2023-02-11 | E50: 9 | F50: 17 | G50: 8 | H50: 8 | I50: 0 | J50: 0 | K50: 0 | L50: 0 | M50: 0 | N50: 0 | T50: 3.333333333 | U50: 20 | V50: 10 | W50: 5 | X50: 0 | Y50: 0 | Z50: 1.666666667
B51: 2023-02-12 | C51: 2023-02-12 | G51: 0 | H51: 0 | I51: 0 | J51: 0 | K51: 0 | L51: 0 | M51: 0 | N51: 0 | T51: 0 | U51: 0 | V51: 0 | W51: 0 | X51: 0 | Y51: 0 | Z51: 0
B52: 2023-02-13 | C52: 2023-02-13 | G52: 0 | H52: 0 | I52: 0 | J52: 0 | K52: 0 | L52: 0 | M52: 0 | N52: 0 | T52: 0 | U52: 0 | V52: 0 | W52: 0 | X52: 0 | Y52: 0 | Z52: 0
B53: 2023-02-14 | C53: 2023-02-14 | G53: 0 | H53: 0 | I53: 0 | J53: 0 | K53: 0 | L53: 0 | M53: 0 | N53: 0 | T53: 0 | U53: 0 | V53: 0 | W53: 0 | X53: 0 | Y53: 0 | Z53: 0
B54: 2023-02-15 | C54: 2023-02-15 | G54: 0 | H54: 0 | I54: 0 | J54: 0 | K54: 0 | L54: 0 | M54: 0 | N54: 0 | T54: 0 | U54: 0 | V54: 0 | W54: 0 | X54: 0 | Y54: 0 | Z54: 0
B55: 2023-02-16 | C55: 2023-02-16 | G55: 0 | H55: 0 | I55: 0 | J55: 0 | K55: 0 | L55: 0 | M55: 0 | N55: 0 | T55: 0 | U55: 0 | V55: 0 | W55: 0 | X55: 0 | Y55: 0 | Z55: 0
B56: 2023-02-17 | C56: 2023-02-17 | G56: 0 | H56: 0 | I56: 0 | J56: 0 | K56: 0 | L56: 0 | M56: 0 | N56: 0 | T56: 0 | U56: 0 | V56: 0 | W56: 0 | X56: 0 | Y56: 0 | Z56: 0
B57: 2023-02-18 | C57: 2023-02-18 | G57: 0 | H57: 0 | I57: 0 | J57: 0 | K57: 0 | L57: 0 | M57: 0 | N57: 0 | T57: 0 | U57: 0 | V57: 0 | W57: 0 | X57: 0 | Y57: 0 | Z57: 0
B58: 2023-02-19 | C58: 2023-02-19 | G58: 0 | H58: 0 | I58: 0 | J58: 0 | K58: 0 | L58: 0 | M58: 0 | N58: 0 | T58: 0 | U58: 0 | V58: 0 | W58: 0 | X58: 0 | Y58: 0 | Z58: 0
B59: 2023-02-20 | C59: 2023-02-20 | G59: 0 | H59: 0 | I59: 0 | J59: 0 | K59: 0 | L59: 0 | M59: 0 | N59: 0 | T59: 0 | U59: 0 | V59: 0 | W59: 0 | X59: 0 | Y59: 0 | Z59: 0
B60: 2023-02-21 | C60: 2023-02-21 | G60: 0 | H60: 0 | I60: 0 | J60: 0 | K60: 0 | L60: 0 | M60: 0 | N60: 0 | T60: 0 | U60: 0 | V60: 0 | W60: 0 | X60: 0 | Y60: 0 | Z60: 0
B61: 2023-02-22 | C61: 2023-02-22 | G61: 0 | H61: 0 | I61: 0 | J61: 0 | K61: 0 | L61: 0 | M61: 0 | N61: 0 | T61: 0 | U61: 0 | V61: 0 | W61: 0 | X61: 0 | Y61: 0 | Z61: 0
B62: 2023-02-23 | C62: 2023-02-23 | G62: 0 | H62: 0 | I62: 0 | J62: 0 | K62: 0 | L62: 0 | M62: 0 | N62: 0 | T62: 0 | U62: 0 | V62: 0 | W62: 0 | X62: 0 | Y62: 0 | Z62: 0
B63: 2023-02-24 | C63: 2023-02-24 | G63: 0 | H63: 0 | I63: 0 | J63: 0 | K63: 0 | L63: 0 | M63: 0 | N63: 0 | T63: 0 | U63: 0 | V63: 0 | W63: 0 | X63: 0 | Y63: 0 | Z63: 0
B64: 2023-02-25 | C64: 2023-02-25 | G64: 0 | H64: 0 | I64: 0 | J64: 0 | K64: 0 | L64: 0 | M64: 0 | N64: 0 | T64: 0 | U64: 0 | V64: 0 | W64: 0 | X64: 0 | Y64: 0 | Z64: 0
B65: 2023-02-26 | C65: 2023-02-26 | G65: 0 | H65: 0 | I65: 0 | J65: 0 | K65: 0 | L65: 0 | M65: 0 | N65: 0 | T65: 0 | U65: 0 | V65: 0 | W65: 0 | X65: 0 | Y65: 0 | Z65: 0
B66: 2023-02-27 | C66: 2023-02-27 | G66: 0 | H66: 0 | I66: 0 | J66: 0 | K66: 0 | L66: 0 | M66: 0 | N66: 0 | T66: 0 | U66: 0 | V66: 0 | W66: 0 | X66: 0 | Y66: 0 | Z66: 0
B67: 2023-02-28 | C67: 2023-02-28 | G67: 0 | H67: 0 | I67: 0 | J67: 0 | K67: 0 | L67: 0 | M67: 0 | N67: 0 | T67: 0 | U67: 0 | V67: 0 | W67: 0 | X67: 0 | Y67: 0 | Z67: 0
G68: 0 | H68: 0 | I68: 0 | J68: 0 | K68: 0 | L68: 0 | M68: 0 | N68: 0 | T68: 0 | U68: 0 | V68: 0 | W68: 0 | X68: 0 | Y68: 0 | Z68: 0
G69: 0 | H69: 0 | I69: 0 | J69: 0 | K69: 0 | L69: 0 | M69: 0 | N69: 0 | T69: 0 | U69: 0 | V69: 0 | W69: 0 | X69: 0 | Y69: 0 | Z69: 0
G70: 0 | H70: 0 | I70: 0 | J70: 0 | K70: 0 | L70: 0 | M70: 0 | N70: 0 | T70: 0 | U70: 0 | V70: 0 | W70: 0 | X70: 0 | Y70: 0 | Z70: 0
C71: عدد ايام الحضور | E71: 31 | F71: 31 | G71: 8 | H71: 8 | I71: 0 | J71: 0 | K71: 0 | L71: 0 | M71: 0 | N71: 0 | O71: 0 | P71: 0 | Q71: 0 | R71: 0 | S71: 0 | T71: 3.333333333 | U71: 20 | V71: 10 | W71: 5 | X71: 0 | Y71: 0 | Z71: 1.666666667 | AA71: 0 | AB71: 0 | AC71: 0 | AD71: 0 | AE71: 0
E72: 11645.16667 | F72: الصافى
E73: -666.6666667
E74: الحضور | F74: الانصراف
E75: 9 | F75: 17
E76: 9.5 | F76: 17
E77: 10 | F77: 17
E78: 11 | F78: 17
E79: 10 | F79: 18
E80: 9 | F80: 18
E81: 9.25 | F81: 17
E82: 9 | F82: 17
E83: 9 | F83: 17
E84: 9 | F84: 17
E85: 9 | F85: 17
E86: 9 | F86: 17
E87: 9 | F87: 17
E88: 9 | F88: 17
E89: 9 | F89: 17
E90: 9 | F90: 17
E91: 9 | F91: 17
E92: 9 | F92: 17
E93: 9 | F93: 17
E94: 9 | F94: 17
E95: 9 | F95: 17
E96: 9 | F96: 17
E97: 9 | F97: 17
E98: 9 | F98: 17
E99: 9 | F99: 17
E100: 9 | F100: 17
E101: 9 | F101: 17
E102: 9 | F102: 17
E103: 9 | F103: 17
E104: 9 | F104: 17
E105: 9 | F105: 17

Sheet مارس
A1: الكود | B1: اليوم | C1: التــــــــــــاريخ | D1: الحضور | E1: الانصراف | F1: عدد الساعات | G1: الفعلى | H1: عدد الاضافى | I1: التأخير ساعات | J1: عدد التأخيرات | K1: الفاقد | L1: اضافى 1 | M1: اضافى2 | N1: عطلات | O1: اعتيادى 21 | P1: عارضه 6 | Q1: غياب باذن | R1: غياب بدون اذن | S1: بدل اغتراب | T1: بدل مواصلات | U1: بدل وجبه | V1: بدل غلاء معيشه | W1: بدل موبايل | X1: بدل ملبس | Y1: بدل طبيعة عمل | Z1: مكافات | AA1: جزاء | AB1: قرض | AC1: ت اجتماعى | AD1: ت طبى خاص

Sheet ابريل
A1: الكود | B1: اليوم | C1: التــــــــــــاريخ | D1: الحضور | E1: الانصراف | F1: عدد الساعات | G1: الفعلى | H1: عدد الاضافى | I1: التأخير ساعات | J1: عدد التأخيرات | K1: الفاقد | L1: اضافى 1 | M1: اضافى2 | N1: عطلات | O1: اعتيادى 21 | P1: عارضه 6 | Q1: غياب باذن | R1: غياب بدون اذن | S1: بدل اغتراب | T1: بدل مواصلات | U1: بدل وجبه | V1: بدل غلاء معيشه | W1: بدل موبايل | X1: بدل ملبس | Y1: بدل طبيعة عمل | Z1: مكافات | AA1: جزاء | AB1: قرض | AC1: ت اجتماعى | AD1: ت طبى خاص

Sheet مايو
A1: الكود | B1: اليوم | C1: التــــــــــــاريخ | D1: الحضور | E1: الانصراف | F1: عدد الساعات | G1: الفعلى | H1: عدد الاضافى | I1: التأخير ساعات | J1: عدد التأخيرات | K1: الفاقد | L1: اضافى 1 | M1: اضافى2 | N1: عطلات | O1: اعتيادى 21 | P1: عارضه 6 | Q1: غياب باذن | R1: غياب بدون اذن | S1: بدل اغتراب | T1: بدل مواصلات | U1: بدل وجبه | V1: بدل غلاء معيشه | W1: بدل موبايل | X1: بدل ملبس | Y1: بدل طبيعة عمل | Z1: مكافات | AA1: جزاء | AB1: قرض | AC1: ت اجتماعى | AD1: ت طبى خاص

Sheet يونيو
A1: الكود | B1: اليوم | C1: التــــــــــــاريخ | D1: الحضور | E1: الانصراف | F1: عدد الساعات | G1: الفعلى | H1: عدد الاضافى | I1: التأخير ساعات | J1: عدد التأخيرات | K1: الفاقد | L1: اضافى 1 | M1: اضافى2 | N1: عطلات | O1: اعتيادى 21 | P1: عارضه 6 | Q1: غياب باذن | R1: غياب بدون اذن | S1: بدل اغتراب | T1: بدل مواصلات | U1: بدل وجبه | V1: بدل غلاء معيشه | W1: بدل موبايل | X1: بدل ملبس | Y1: بدل طبيعة عمل | Z1: مكافات | AA1: جزاء | AB1: قرض | AC1: ت اجتماعى | AD1: ت طبى خاص

Sheet يوليو
A1: الكود | B1: اليوم | C1: التــــــــــــاريخ | D1: الحضور | E1: الانصراف | F1: عدد الساعات | G1: الفعلى | H1: عدد الاضافى | I1: التأخير ساعات | J1: عدد التأخيرات | K1: الفاقد | L1: اضافى 1 | M1: اضافى2 | N1: عطلات | O1: اعتيادى 21 | P1: عارضه 6 | Q1: غياب باذن | R1: غياب بدون اذن | S1: بدل اغتراب | T1: بدل مواصلات | U1: بدل وجبه | V1: بدل غلاء معيشه | W1: بدل موبايل | X1: بدل ملبس | Y1: بدل طبيعة عمل | Z1: مكافات | AA1: جزاء | AB1: قرض | AC1: ت اجتماعى | AD1: ت طبى خاص
Z33: 0 | AA33: 0 | AB33: 0

Sheet اغسطس
A1: الكود | B1: اليوم | C1: التــــــــــــاريخ | D1: الحضور | E1: الانصراف | F1: عدد الساعات | G1: الفعلى | H1: عدد الاضافى | I1: التأخير ساعات | J1: عدد التأخيرات | K1: الفاقد | L1: اضافى 1 | M1: اضافى2 | N1: عطلات | O1: اعتيادى 21 | P1: عارضه 6 | Q1: غياب باذن | R1: غياب بدون اذن | S1: بدل اغتراب | T1: بدل مواصلات | U1: بدل وجبه | V1: بدل غلاء معيشه | W1: بدل موبايل | X1: بدل ملبس | Y1: بدل طبيعة عمل | Z1: مكافات | AA1: جزاء | AB1: قرض | AC1: ت اجتماعى | AD1: ت طبى خاص

Sheet سبتمبر
A1: الكود | B1: اليوم | C1: التــــــــــــاريخ | D1: الحضور | E1: الانصراف | F1: عدد الساعات | G1: الفعلى | H1: عدد الاضافى | I1: التأخير ساعات | J1: عدد التأخيرات | K1: الفاقد | L1: اضافى 1 | M1: اضافى2 | N1: عطلات | O1: اعتيادى 21 | P1: عارضه 6 | Q1: غياب باذن | R1: غياب بدون اذن | S1: بدل اغتراب | T1: بدل مواصلات | U1: بدل وجبه | V1: بدل غلاء معيشه | W1: بدل موبايل | X1: بدل ملبس | Y1: بدل طبيعة عمل | Z1: مكافات | AA1: جزاء | AB1: قرض | AC1: ت اجتماعى | AD1: ت طبى خاص

Sheet اكتوبر
A1: الكود | B1: اليوم | C1: التــــــــــــاريخ | D1: الحضور | E1: الانصراف | F1: عدد الساعات | G1: الفعلى | H1: عدد الاضافى | I1: التأخير ساعات | J1: عدد التأخيرات | K1: الفاقد | L1: اضافى 1 | M1: اضافى2 | N1: عطلات | O1: اعتيادى 21 | P1: عارضه 6 | Q1: غياب باذن | R1: غياب بدون اذن | S1: بدل اغتراب | T1: بدل مواصلات | U1: بدل وجبه | V1: بدل غلاء معيشه | W1: بدل موبايل | X1: بدل ملبس | Y1: بدل طبيعة عمل | Z1: مكافات | AA1: جزاء | AB1: قرض | AC1: ت اجتماعى | AD1: ت طبى خاص

Sheet نوفمبر
A1: الكود | B1: اليوم | C1: التــــــــــــاريخ | D1: الحضور | E1: الانصراف | F1: عدد الساعات | G1: الفعلى | H1: عدد الاضافى | I1: التأخير ساعات | J1: عدد التأخيرات | K1: الفاقد | L1: اضافى 1 | M1: اضافى2 | N1: عطلات | O1: اعتيادى 21 | P1: عارضه 6 | Q1: غياب باذن | R1: غياب بدون اذن | S1: بدل اغتراب | T1: بدل مواصلات | U1: بدل وجبه | V1: بدل غلاء معيشه | W1: بدل موبايل | X1: بدل ملبس | Y1: بدل طبيعة عمل | Z1: مكافات | AA1: جزاء | AB1: قرض | AC1: ت اجتماعى | AD1: ت طبى خاص

Sheet ديسمبر
A1: الكود | B1: اليوم | C1: التــــــــــــاريخ | D1: الحضور | E1: الانصراف | F1: عدد الساعات | G1: الفعلى | H1: عدد الاضافى | I1: التأخير ساعات | J1: عدد التأخيرات | K1: الفاقد | L1: اضافى 1 | M1: اضافى2 | N1: عطلات | O1: اعتيادى 21 | P1: عارضه 6 | Q1: غياب باذن | R1: غياب بدون اذن | S1: بدل اغتراب | T1: بدل مواصلات | U1: بدل وجبه | V1: بدل غلاء معيشه | W1: بدل موبايل | X1: بدل ملبس | Y1: بدل طبيعة عمل | Z1: مكافات | AA1: جزاء | AB1: قرض | AC1: ت اجتماعى | AD1: ت طبى خاص
A2: الاسم | B2: احمد امام | C2: اجمالى المستحق | F2: الصافى | AB2: القرض المتبقى
A3: الوظيفه | B3: مدير ادارى | C3: اجمالى الاستقطاعات | L3: 0 | M3: 0 | N3: 0 | O3: 0 | P3: 0 | Q3: 0 | R3: 0 | S3: 0 | AA3: 0 | AB3: 0 | AC3: 12000 | AD3: -140 | AE3: -100
A4: الكود | B4: اليوم | C4: التــــــــــــاريخ | D4: اذن تأخير | E4: الحضور | F4: الانصراف | G4: عدد الساعات | H4: الفعلى | I4: عدد الاضافى | J4: التأخير ساعات | K4: عدد التأخيرات | L4: الفاقد | M4: اضافى 1 | N4: اضافى2 | O4: عطلات | P4: اعتيادى 21 | Q4: عارضه 6 | R4: غياب باذن | S4: غياب بدون اذن | T4: بدل اغتراب | U4: بدل مواصلات | V4: بدل وجبه | W4: بدل غلاء معيشه | X4: بدل موبايل | Y4: بدل ملبس | Z4: بدل طبيعة عمل | AA4: مكافات | AB4: جزاء | AC4: قرض | AD4: ت اجتماعى | AE4: ت طبى خاص
A5: 230012 | B5: 2022-12-01 | C5: 2022-12-01 | I5: 0 | L5: 0 | M5: 0 | N5: 0
B6: 2022-12-02 | C6: 2022-12-02 | G6: 0 | H6: 0 | I6: 0 | J6: 0 | K6: 0 | L6: 0 | M6: 0 | N6: 0 | T6: 0 | U6: 0 | V6: 0 | W6: 0 | X6: 0 | Y6: 0 | Z6: 0
B7: 2022-12-03 | C7: 2022-12-03 | D7: اذن تاخير | G7: 0 | H7: 0 | I7: 0 | J7: 0 | K7: 0 | L7: 0 | M7: 0 | N7: 0 | T7: 0 | U7: 0 | V7: 0 | W7: 0 | X7: 0 | Y7: 0 | Z7: 0
B8: 2022-12-04 | C8: 2022-12-04 | G8: 0 | H8: 0 | I8: 0 | J8: 0 | K8: 0 | L8: 0 | M8: 0 | N8: 0 | T8: 0 | U8: 0 | V8: 0 | W8: 0 | X8: 0 | Y8: 0 | Z8: 0
B9: 2022-12-05 | C9: 2022-12-05 | G9: 0 | H9: 0 | I9: 0 | J9: 0 | K9: 0 | L9: 0 | M9: 0 | N9: 0 | T9: 0 | U9: 0 | V9: 0 | W9: 0 | X9: 0 | Y9: 0 | Z9: 0
B10: 2022-12-06 | C10: 2022-12-06 | G10: 0 | H10: 0 | I10: 0 | J10: 0 | K10: 0 | L10: 0 | M10: 0 | N10: 0 | T10: 0 | U10: 0 | V10: 0 | W10: 0 | X10: 0 | Y10: 0 | Z10: 0
B11: 2022-12-07 | C11: 2022-12-07 | G11: 0 | H11: 0 | I11: 0 | J11: 0 | K11: 0 | L11: 0 | M11: 0 | N11: 0 | T11: 0 | U11: 0 | V11: 0 | W11: 0 | X11: 0 | Y11: 0 | Z11: 0
B12: 2022-12-08 | C12: 2022-12-08 | G12: 0 | H12: 0 | I12: 0 | J12: 0 | K12: 0 | L12: 0 | M12: 0 | N12: 0 | T12: 0 | U12: 0 | V12: 0 | W12: 0 | X12: 0 | Y12: 0 | Z12: 0
B13: 2022-12-09 | C13: 2022-12-09 | G13: 0 | H13: 0 | I13: 0 | J13: 0 | K13: 0 | L13: 0 | M13: 0 | N13: 0 | T13: 0 | U13: 0 | V13: 0 | W13: 0 | X13: 0 | Y13: 0 | Z13: 0
B14: 2022-12-10 | C14: 2022-12-10 | G14: 0 | H14: 0 | I14: 0 | J14: 0 | K14: 0 | L14: 0 | M14: 0 | N14: 0 | T14: 0 | U14: 0 | V14: 0 | W14: 0 | X14: 0 | Y14: 0 | Z14: 0
B15: 2022-12-11 | C15: 2022-12-11 | G15: 0 | H15: 0 | I15: 0 | J15: 0 | K15: 0 | L15: 0 | M15: 0 | N15: 0 | T15: 0 | U15: 0 | V15: 0 | W15: 0 | X15: 0 | Y15: 0 | Z15: 0
B16: 2022-12-12 | C16: 2022-12-12 | G16: 0 | H16: 0 | I16: 0 | J16: 0 | K16: 0 | L16: 0 | M16: 0 | N16: 0 | T16: 0 | U16: 0 | V16: 0 | W16: 0 | X16: 0 | Y16: 0 | Z16: 0
B17: 2022-12-13 | C17: 2022-12-13 | G17: 0 | H17: 0 | I17: 0 | J17: 0 | K17: 0 | L17: 0 | M17: 0 | N17: 0 | T17: 0 | U17: 0 | V17: 0 | W17: 0 | X17: 0 | Y17: 0 | Z17: 0
B18: 2022-12-14 | C18: 2022-12-14 | G18: 0 | H18: 0 | I18: 0 | J18: 0 | K18: 0 | L18: 0 | M18: 0 | N18: 0 | T18: 0 | U18: 0 | V18: 0 | W18: 0 | X18: 0 | Y18: 0 | Z18: 0
B19: 2022-12-15 | C19: 2022-12-15 | G19: 0 | H19: 0 | I19: 0 | J19: 0 | K19: 0 | L19: 0 | M19: 0 | N19: 0 | T19: 0 | U19: 0 | V19: 0 | W19: 0 | X19: 0 | Y19: 0 | Z19: 0
B20: 2022-12-16 | C20: 2022-12-16 | G20: 0 | H20: 0 | I20: 0 | J20: 0 | K20: 0 | L20: 0 | M20: 0 | N20: 0 | T20: 0 | U20: 0 | V20: 0 | W20: 0 | X20: 0 | Y20: 0 | Z20: 0
B21: 2022-12-17 | C21: 2022-12-17 | G21: 0 | H21: 0 | I21: 0 | J21: 0 | K21: 0 | L21: 0 | M21: 0 | N21: 0 | T21: 0 | U21: 0 | V21: 0 | W21: 0 | X21: 0 | Y21: 0 | Z21: 0
B22: 2022-12-18 | C22: 2022-12-18 | G22: 0 | H22: 0 | I22: 0 | J22: 0 | K22: 0 | L22: 0 | M22: 0 | N22: 0 | T22: 0 | U22: 0 | V22: 0 | W22: 0 | X22: 0 | Y22: 0 | Z22: 0
B23: 2022-12-19 | C23: 2022-12-19 | G23: 0 | H23: 0 | I23: 0 | J23: 0 | K23: 0 | L23: 0 | M23: 0 | N23: 0 | T23: 0 | U23: 0 | V23: 0 | W23: 0 | X23: 0 | Y23: 0 | Z23: 0
B24: 2022-12-20 | C24: 2022-12-20 | G24: 0 | H24: 0 | I24: 0 | J24: 0 | K24: 0 | L24: 0 | M24: 0 | N24: 0 | T24: 0 | U24: 0 | V24: 0 | W24: 0 | X24: 0 | Y24: 0 | Z24: 0
B25: 2022-12-21 | C25: 2022-12-21 | G25: 0 | H25: 0 | I25: 0 | J25: 0 | K25: 0 | L25: 0 | M25: 0 | N25: 0 | T25: 0 | U25: 0 | V25: 0 | W25: 0 | X25: 0 | Y25: 0 | Z25: 0
B26: 2022-12-22 | C26: 2022-12-22 | G26: 0 | H26: 0 | I26: 0 | J26: 0 | K26: 0 | L26: 0 | M26: 0 | N26: 0 | T26: 0 | U26: 0 | V26: 0 | W26: 0 | X26: 0 | Y26: 0 | Z26: 0
B27: 2022-12-23 | C27: 2022-12-23 | G27: 0 | H27: 0 | I27: 0 | J27: 0 | K27: 0 | L27: 0 | M27: 0 | N27: 0 | T27: 0 | U27: 0 | V27: 0 | W27: 0 | X27: 0 | Y27: 0 | Z27: 0
B28: 2022-12-24 | C28: 2022-12-24 | G28: 0 | H28: 0 | I28: 0 | J28: 0 | K28: 0 | L28: 0 | M28: 0 | N28: 0 | T28: 0 | U28: 0 | V28: 0 | W28: 0 | X28: 0 | Y28: 0 | Z28: 0
B29: 2022-12-25 | C29: 2022-12-25 | G29: 0 | H29: 0 | I29: 0 | J29: 0 | K29: 0 | L29: 0 | M29: 0 | N29: 0 | T29: 0 | U29: 0 | V29: 0 | W29: 0 | X29: 0 | Y29: 0 | Z29: 0
B30: 2022-12-26 | C30: 2022-12-26 | G30: 0 | H30: 0 | I30: 0 | J30: 0 | K30: 0 | L30: 0 | M30: 0 | N30: 0 | T30: 0 | U30: 0 | V30: 0 | W30: 0 | X30: 0 | Y30: 0 | Z30: 0
B31: 2022-12-27 | C31: 2022-12-27 | G31: 0 | H31: 0 | I31: 0 | J31: 0 | K31: 0 | L31: 0 | M31: 0 | N31: 0 | T31: 0 | U31: 0 | V31: 0 | W31: 0 | X31: 0 | Y31: 0 | Z31: 0
B32: 2022-12-28 | C32: 2022-12-28 | G32: 0 | H32: 0 | I32: 0 | J32: 0 | K32: 0 | L32: 0 | M32: 0 | N32: 0 | T32: 0 | U32: 0 | V32: 0 | W32: 0 | X32: 0 | Y32: 0 | Z32: 0
B33: 2022-12-29 | C33: 2022-12-29 | G33: 0 | H33: 0 | I33: 0 | J33: 0 | K33: 0 | L33: 0 | M33: 0 | N33: 0 | T33: 0 | U33: 0 | V33: 0 | W33: 0 | X33: 0 | Y33: 0 | Z33: 0
B34: 2022-12-30 | C34: 2022-12-30 | G34: 0 | H34: 0 | I34: 0 | J34: 0 | K34: 0 | L34: 0 | M34: 0 | N34: 0 | T34: 0 | U34: 0 | V34: 0 | W34: 0 | X34: 0 | Y34: 0 | Z34: 0
B35: 2022-12-31 | C35: 2022-12-31 | G35: 0 | H35: 0 | I35: 0 | J35: 0 | K35: 0 | L35: 0 | M35: 0 | N35: 0 | T35: 0 | U35: 0 | V35: 0 | W35: 0 | X35: 0 | Y35: 0 | Z35: 0
C36: عدد ايام الحضور | E36: 31 | F36: 31 | I36: 0 | L36: 0 | M36: 0 | N36: 0 | O36: 0 | P36: 0 | Q36: 0 | R36: 0 | S36: 0 | AA36: 0 | AB36: 0 | AC36: 0 | AD36: 0 | AE36: 0
A37: الاسم | B37: احمد امام | C37: اجمالى المستحق | F37: الصافى | AB37: القرض المتبقى
A38: الوظيفه | B38: مدير ادارى | C38: اجمالى الاستقطاعات | L38: 0 | M38: 0 | N38: 0 | O38: 0 | P38: 0 | Q38: 0 | R38: 0 | S38: 0 | AA38: 0 | AB38: 0 | AC38: 12000 | AD38: -140 | AE38: -100
A39: الكود | B39: اليوم | C39: التــــــــــــاريخ | D39: اذن تأخير | E39: الحضور | F39: الانصراف | G39: عدد الساعات | H39: الفعلى | I39: عدد الاضافى | J39: التأخير ساعات | K39: عدد التأخيرات | L39: الفاقد | M39: اضافى 1 | N39: اضافى2 | O39: عطلات | P39: اعتيادى 21 | Q39: عارضه 6 | R39: غياب باذن | S39: غياب بدون اذن | T39: بدل اغتراب | U39: بدل مواصلات | V39: بدل وجبه | W39: بدل غلاء معيشه | X39: بدل موبايل | Y39: بدل ملبس | Z39: بدل طبيعة عمل | AA39: مكافات | AB39: جزاء | AC39: قرض | AD39: ت اجتماعى | AE39: ت طبى خاص
A40: 230012 | B40: 2022-12-01 | C40: 2022-12-01 | I40: 0 | L40: 0 | M40: 0 | N40: 0
B41: 2022-12-02 | C41: 2022-12-02 | G41: 0 | H41: 0 | I41: 0 | J41: 0 | K41: 0 | L41: 0 | M41: 0 | N41: 0 | T41: 0 | U41: 0 | V41: 0 | W41: 0 | X41: 0 | Y41: 0 | Z41: 0
B42: 2022-12-03 | C42: 2022-12-03 | D42: اذن تاخير | G42: 0 | H42: 0 | I42: 0 | J42: 0 | K42: 0 | L42: 0 | M42: 0 | N42: 0 | T42: 0 | U42: 0 | V42: 0 | W42: 0 | X42: 0 | Y42: 0 | Z42: 0
B43: 2022-12-04 | C43: 2022-12-04 | G43: 0 | H43: 0 | I43: 0 | J43: 0 | K43: 0 | L43: 0 | M43: 0 | N43: 0 | T43: 0 | U43: 0 | V43: 0 | W43: 0 | X43: 0 | Y43: 0 | Z43: 0
B44: 2022-12-05 | C44: 2022-12-05 | G44: 0 | H44: 0 | I44: 0 | J44: 0 | K44: 0 | L44: 0 | M44: 0 | N44: 0 | T44: 0 | U44: 0 | V44: 0 | W44: 0 | X44: 0 | Y44: 0 | Z44: 0
B45: 2022-12-06 | C45: 2022-12-06 | G45: 0 | H45: 0 | I45: 0 | J45: 0 | K45: 0 | L45: 0 | M45: 0 | N45: 0 | T45: 0 | U45: 0 | V45: 0 | W45: 0 | X45: 0 | Y45: 0 | Z45: 0
B46: 2022-12-07 | C46: 2022-12-07 | G46: 0 | H46: 0 | I46: 0 | J46: 0 | K46: 0 | L46: 0 | M46: 0 | N46: 0 | T46: 0 | U46: 0 | V46: 0 | W46: 0 | X46: 0 | Y46: 0 | Z46: 0
B47: 2022-12-08 | C47: 2022-12-08 | G47: 0 | H47: 0 | I47: 0 | J47: 0 | K47: 0 | L47: 0 | M47: 0 | N47: 0 | T47: 0 | U47: 0 | V47: 0 | W47: 0 | X47: 0 | Y47: 0 | Z47: 0
B48: 2022-12-09 | C48: 2022-12-09 | G48: 0 | H48: 0 | I48: 0 | J48: 0 | K48: 0 | L48: 0 | M48: 0 | N48: 0 | T48: 0 | U48: 0 | V48: 0 | W48: 0 | X48: 0 | Y48: 0 | Z48: 0
B49: 2022-12-10 | C49: 2022-12-10 | G49: 0 | H49: 0 | I49: 0 | J49: 0 | K49: 0 | L49: 0 | M49: 0 | N49: 0 | T49: 0 | U49: 0 | V49: 0 | W49: 0 | X49: 0 | Y49: 0 | Z49: 0
B50: 2022-12-11 | C50: 2022-12-11 | G50: 0 | H50: 0 | I50: 0 | J50: 0 | K50: 0 | L50: 0 | M50: 0 | N50: 0 | T50: 0 | U50: 0 | V50: 0 | W50: 0 | X50: 0 | Y50: 0 | Z50: 0
B51: 2022-12-12 | C51: 2022-12-12 | G51: 0 | H51: 0 | I51: 0 | J51: 0 | K51: 0 | L51: 0 | M51: 0 | N51: 0 | T51: 0 | U51: 0 | V51: 0 | W51: 0 | X51: 0 | Y51: 0 | Z51: 0
B52: 2022-12-13 | C52: 2022-12-13 | G52: 0 | H52: 0 | I52: 0 | J52: 0 | K52: 0 | L52: 0 | M52: 0 | N52: 0 | T52: 0 | U52: 0 | V52: 0 | W52: 0 | X52: 0 | Y52: 0 | Z52: 0
B53: 2022-12-14 | C53: 2022-12-14 | G53: 0 | H53: 0 | I53: 0 | J53: 0 | K53: 0 | L53: 0 | M53: 0 | N53: 0 | T53: 0 | U53: 0 | V53: 0 | W53: 0 | X53: 0 | Y53: 0 | Z53: 0
B54: 2022-12-15 | C54: 2022-12-15 | G54: 0 | H54: 0 | I54: 0 | J54: 0 | K54: 0 | L54: 0 | M54: 0 | N54: 0 | T54: 0 | U54: 0 | V54: 0 | W54: 0 | X54: 0 | Y54: 0 | Z54: 0
B55: 2022-12-16 | C55: 2022-12-16 | G55: 0 | H55: 0 | I55: 0 | J55: 0 | K55: 0 | L55: 0 | M55: 0 | N55: 0 | T55: 0 | U55: 0 | V55: 0 | W55: 0 | X55: 0 | Y55: 0 | Z55: 0
B56: 2022-12-17 | C56: 2022-12-17 | G56: 0 | H56: 0 | I56: 0 | J56: 0 | K56: 0 | L56: 0 | M56: 0 | N56: 0 | T56: 0 | U56: 0 | V56: 0 | W56: 0 | X56: 0 | Y56: 0 | Z56: 0
B57: 2022-12-18 | C57: 2022-12-18 | G57: 0 | H57: 0 | I57: 0 | J57: 0 | K57: 0 | L57: 0 | M57: 0 | N57: 0 | T57: 0 | U57: 0 | V57: 0 | W57: 0 | X57: 0 | Y57: 0 | Z57: 0
B58: 2022-12-19 | C58: 2022-12-19 | G58: 0 | H58: 0 | I58: 0 | J58: 0 | K58: 0 | L58: 0 | M58: 0 | N58: 0 | T58: 0 | U58: 0 | V58: 0 | W58: 0 | X58: 0 | Y58: 0 | Z58: 0
B59: 2022-12-20 | C59: 2022-12-20 | G59: 0 | H59: 0 | I59: 0 | J59: 0 | K59: 0 | L59: 0 | M59: 0 | N59: 0 | T59: 0 | U59: 0 | V59: 0 | W59: 0 | X59: 0 | Y59: 0 | Z59: 0
B60: 2022-12-21 | C60: 2022-12-21 | G60: 0 | H60: 0 | I60: 0 | J60: 0 | K60: 0 | L60: 0 | M60: 0 | N60: 0 | T60: 0 | U60: 0 | V60: 0 | W60: 0 | X60: 0 | Y60: 0 | Z60: 0
B61: 2022-12-22 | C61: 2022-12-22 | G61: 0 | H61: 0 | I61: 0 | J61: 0 | K61: 0 | L61: 0 | M61: 0 | N61: 0 | T61: 0 | U61: 0 | V61: 0 | W61: 0 | X61: 0 | Y61: 0 | Z61: 0
B62: 2022-12-23 | C62: 2022-12-23 | G62: 0 | H62: 0 | I62: 0 | J62: 0 | K62: 0 | L62: 0 | M62: 0 | N62: 0 | T62: 0 | U62: 0 | V62: 0 | W62: 0 | X62: 0 | Y62: 0 | Z62: 0
B63: 2022-12-24 | C63: 2022-12-24 | G63: 0 | H63: 0 | I63: 0 | J63: 0 | K63: 0 | L63: 0 | M63: 0 | N63: 0 | T63: 0 | U63: 0 | V63: 0 | W63: 0 | X63: 0 | Y63: 0 | Z63: 0
B64: 2022-12-25 | C64: 2022-12-25 | G64: 0 | H64: 0 | I64: 0 | J64: 0 | K64: 0 | L64: 0 | M64: 0 | N64: 0 | T64: 0 | U64: 0 | V64: 0 | W64: 0 | X64: 0 | Y64: 0 | Z64: 0
B65: 2022-12-26 | C65: 2022-12-26 | G65: 0 | H65: 0 | I65: 0 | J65: 0 | K65: 0 | L65: 0 | M65: 0 | N65: 0 | T65: 0 | U65: 0 | V65: 0 | W65: 0 | X65: 0 | Y65: 0 | Z65: 0
B66: 2022-12-27 | C66: 2022-12-27 | G66: 0 | H66: 0 | I66: 0 | J66: 0 | K66: 0 | L66: 0 | M66: 0 | N66: 0 | T66: 0 | U66: 0 | V66: 0 | W66: 0 | X66: 0 | Y66: 0 | Z66: 0
B67: 2022-12-28 | C67: 2022-12-28 | G67: 0 | H67: 0 | I67: 0 | J67: 0 | K67: 0 | L67: 0 | M67: 0 | N67: 0 | T67: 0 | U67: 0 | V67: 0 | W67: 0 | X67: 0 | Y67: 0 | Z67: 0
B68: 2022-12-29 | C68: 2022-12-29 | G68: 0 | H68: 0 | I68: 0 | J68: 0 | K68: 0 | L68: 0 | M68: 0 | N68: 0 | T68: 0 | U68: 0 | V68: 0 | W68: 0 | X68: 0 | Y68: 0 | Z68: 0
B69: 2022-12-30 | C69: 2022-12-30 | G69: 0 | H69: 0 | I69: 0 | J69: 0 | K69: 0 | L69: 0 | M69: 0 | N69: 0 | T69: 0 | U69: 0 | V69: 0 | W69: 0 | X69: 0 | Y69: 0 | Z69: 0
B70: 2022-12-31 | C70: 2022-12-31 | G70: 0 | H70: 0 | I70: 0 | J70: 0 | K70: 0 | L70: 0 | M70: 0 | N70: 0 | T70: 0 | U70: 0 | V70: 0 | W70: 0 | X70: 0 | Y70: 0 | Z70: 0
C71: عدد ايام الحضور | E71: 31 | F71: 31 | I71: 0 | L71: 0 | M71: 0 | N71: 0 | O71: 0 | P71: 0 | Q71: 0 | R71: 0 | S71: 0 | AA71: 0 | AB71: 0 | AC71: 0 | AD71: 0 | AE71: 0
A72: الاسم | B72: احمد امام | C72: اجمالى المستحق | F72: الصافى | AB72: القرض المتبقى
A73: الوظيفه | B73: مدير ادارى | C73: اجمالى الاستقطاعات | L73: 0 | M73: 0 | N73: 0 | O73: 0 | P73: 0 | Q73: 0 | R73: 0 | S73: 0 | AA73: 0 | AB73: 0 | AC73: 12000 | AD73: -140 | AE73: -100
A74: الكود | B74: اليوم | C74: التــــــــــــاريخ | D74: اذن تأخير | E74: الحضور | F74: الانصراف | G74: عدد الساعات | H74: الفعلى | I74: عدد الاضافى | J74: التأخير ساعات | K74: عدد التأخيرات | L74: الفاقد | M74: اضافى 1 | N74: اضافى2 | O74: عطلات | P74: اعتيادى 21 | Q74: عارضه 6 | R74: غياب باذن | S74: غياب بدون اذن | T74: بدل اغتراب | U74: بدل مواصلات | V74: بدل وجبه | W74: بدل غلاء معيشه | X74: بدل موبايل | Y74: بدل ملبس | Z74: بدل طبيعة عمل | AA74: مكافات | AB74: جزاء | AC74: قرض | AD74: ت اجتماعى | AE74: ت طبى خاص
A75: 230012 | B75: 2022-12-01 | C75: 2022-12-01 | E75: {=IFERROR(INDEX('مواعيد البصمه'!$F$3:F200;MATCH(1;INDEX((C6='مواعيد البصمه'!$D$3:D200)*($A$6='مواعيد البصمه'!$A$3:A200);0;1);0));"")} | I75: 0 | L75: 0 | M75: 0 | N75: 0
B76: 2022-12-02 | C76: 2022-12-02 | G76: 0 | H76: 0 | I76: 0 | J76: 0 | K76: 0 | L76: 0 | M76: 0 | N76: 0 | T76: 0 | U76: 0 | V76: 0 | W76: 0 | X76: 0 | Y76: 0 | Z76: 0
B77: 2022-12-03 | C77: 2022-12-03 | D77: اذن تاخير | G77: 0 | H77: 0 | I77: 0 | J77: 0 | K77: 0 | L77: 0 | M77: 0 | N77: 0 | T77: 0 | U77: 0 | V77: 0 | W77: 0 | X77: 0 | Y77: 0 | Z77: 0
B78: 2022-12-04 | C78: 2022-12-04 | G78: 0 | H78: 0 | I78: 0 | J78: 0 | K78: 0 | L78: 0 | M78: 0 | N78: 0 | T78: 0 | U78: 0 | V78: 0 | W78: 0 | X78: 0 | Y78: 0 | Z78: 0
B79: 2022-12-05 | C79: 2022-12-05 | G79: 0 | H79: 0 | I79: 0 | J79: 0 | K79: 0 | L79: 0 | M79: 0 | N79: 0 | T79: 0 | U79: 0 | V79: 0 | W79: 0 | X79: 0 | Y79: 0 | Z79: 0
B80: 2022-12-06 | C80: 2022-12-06 | G80: 0 | H80: 0 | I80: 0 | J80: 0 | K80: 0 | L80: 0 | M80: 0 | N80: 0 | T80: 0 | U80: 0 | V80: 0 | W80: 0 | X80: 0 | Y80: 0 | Z80: 0
B81: 2022-12-07 | C81: 2022-12-07 | G81: 0 | H81: 0 | I81: 0 | J81: 0 | K81: 0 | L81: 0 | M81: 0 | N81: 0 | T81: 0 | U81: 0 | V81: 0 | W81: 0 | X81: 0 | Y81: 0 | Z81: 0
B82: 2022-12-08 | C82: 2022-12-08 | G82: 0 | H82: 0 | I82: 0 | J82: 0 | K82: 0 | L82: 0 | M82: 0 | N82: 0 | T82: 0 | U82: 0 | V82: 0 | W82: 0 | X82: 0 | Y82: 0 | Z82: 0
B83: 2022-12-09 | C83: 2022-12-09 | G83: 0 | H83: 0 | I83: 0 | J83: 0 | K83: 0 | L83: 0 | M83: 0 | N83: 0 | T83: 0 | U83: 0 | V83: 0 | W83: 0 | X83: 0 | Y83: 0 | Z83: 0
B84: 2022-12-10 | C84: 2022-12-10 | G84: 0 | H84: 0 | I84: 0 | J84: 0 | K84: 0 | L84: 0 | M84: 0 | N84: 0 | T84: 0 | U84: 0 | V84: 0 | W84: 0 | X84: 0 | Y84: 0 | Z84: 0
B85: 2022-12-11 | C85: 2022-12-11 | G85: 0 | H85: 0 | I85: 0 | J85: 0 | K85: 0 | L85: 0 | M85: 0 | N85: 0 | T85: 0 | U85: 0 | V85: 0 | W85: 0 | X85: 0 | Y85: 0 | Z85: 0
B86: 2022-12-12 | C86: 2022-12-12 | G86: 0 | H86: 0 | I86: 0 | J86: 0 | K86: 0 | L86: 0 | M86: 0 | N86: 0 | T86: 0 | U86: 0 | V86: 0 | W86: 0 | X86: 0 | Y86: 0 | Z86: 0
B87: 2022-12-13 | C87: 2022-12-13 | G87: 0 | H87: 0 | I87: 0 | J87: 0 | K87: 0 | L87: 0 | M87: 0 | N87: 0 | T87: 0 | U87: 0 | V87: 0 | W87: 0 | X87: 0 | Y87: 0 | Z87: 0
B88: 2022-12-14 | C88: 2022-12-14 | G88: 0 | H88: 0 | I88: 0 | J88: 0 | K88: 0 | L88: 0 | M88: 0 | N88: 0 | T88: 0 | U88: 0 | V88: 0 | W88: 0 | X88: 0 | Y88: 0 | Z88: 0
B89: 2022-12-15 | C89: 2022-12-15 | G89: 0 | H89: 0 | I89: 0 | J89: 0 | K89: 0 | L89: 0 | M89: 0 | N89: 0 | T89: 0 | U89: 0 | V89: 0 | W89: 0 | X89: 0 | Y89: 0 | Z89: 0
B90: 2022-12-16 | C90: 2022-12-16 | G90: 0 | H90: 0 | I90: 0 | J90: 0 | K90: 0 | L90: 0 | M90: 0 | N90: 0 | T90: 0 | U90: 0 | V90: 0 | W90: 0 | X90: 0 | Y90: 0 | Z90: 0
B91: 2022-12-17 | C91: 2022-12-17 | G91: 0 | H91: 0 | I91: 0 | J91: 0 | K91: 0 | L91: 0 | M91: 0 | N91: 0 | T91: 0 | U91: 0 | V91: 0 | W91: 0 | X91: 0 | Y91: 0 | Z91: 0
B92: 2022-12-18 | C92: 2022-12-18 | G92: 0 | H92: 0 | I92: 0 | J92: 0 | K92: 0 | L92: 0 | M92: 0 | N92: 0 | T92: 0 | U92: 0 | V92: 0 | W92: 0 | X92: 0 | Y92: 0 | Z92: 0
B93: 2022-12-19 | C93: 2022-12-19 | G93: 0 | H93: 0 | I93: 0 | J93: 0 | K93: 0 | L93: 0 | M93: 0 | N93: 0 | T93: 0 | U93: 0 | V93: 0 | W93: 0 | X93: 0 | Y93: 0 | Z93: 0
B94: 2022-12-20 | C94: 2022-12-20 | G94: 0 | H94: 0 | I94: 0 | J94: 0 | K94: 0 | L94: 0 | M94: 0 | N94: 0 | T94: 0 | U94: 0 | V94: 0 | W94: 0 | X94: 0 | Y94: 0 | Z94: 0
B95: 2022-12-21 | C95: 2022-12-21 | G95: 0 | H95: 0 | I95: 0 | J95: 0 | K95: 0 | L95: 0 | M95: 0 | N95: 0 | T95: 0 | U95: 0 | V95: 0 | W95: 0 | X95: 0 | Y95: 0 | Z95: 0
B96: 2022-12-22 | C96: 2022-12-22 | G96: 0 | H96: 0 | I96: 0 | J96: 0 | K96: 0 | L96: 0 | M96: 0 | N96: 0 | T96: 0 | U96: 0 | V96: 0 | W96: 0 | X96: 0 | Y96: 0 | Z96: 0
B97: 2022-12-23 | C97: 2022-12-23 | G97: 0 | H97: 0 | I97: 0 | J97: 0 | K97: 0 | L97: 0 | M97: 0 | N97: 0 | T97: 0 | U97: 0 | V97: 0 | W97: 0 | X97: 0 | Y97: 0 | Z97: 0
B98: 2022-12-24 | C98: 2022-12-24 | G98: 0 | H98: 0 | I98: 0 | J98: 0 | K98: 0 | L98: 0 | M98: 0 | N98: 0 | T98: 0 | U98: 0 | V98: 0 | W98: 0 | X98: 0 | Y98: 0 | Z98: 0
B99: 2022-12-25 | C99: 2022-12-25 | G99: 0 | H99: 0 | I99: 0 | J99: 0 | K99: 0 | L99: 0 | M99: 0 | N99: 0 | T99: 0 | U99: 0 | V99: 0 | W99: 0 | X99: 0 | Y99: 0 | Z99: 0
B100: 2022-12-26 | C100: 2022-12-26 | G100: 0 | H100: 0 | I100: 0 | J100: 0 | K100: 0 | L100: 0 | M100: 0 | N100: 0 | T100: 0 | U100: 0 | V100: 0 | W100: 0 | X100: 0 | Y100: 0 | Z100: 0
B101: 2022-12-27 | C101: 2022-12-27 | G101: 0 | H101: 0 | I101: 0 | J101: 0 | K101: 0 | L101: 0 | M101: 0 | N101: 0 | T101: 0 | U101: 0 | V101: 0 | W101: 0 | X101: 0 | Y101: 0 | Z101: 0
B102: 2022-12-28 | C102: 2022-12-28 | G102: 0 | H102: 0 | I102: 0 | J102: 0 | K102: 0 | L102: 0 | M102: 0 | N102: 0 | T102: 0 | U102: 0 | V102: 0 | W102: 0 | X102: 0 | Y102: 0 | Z102: 0
B103: 2022-12-29 | C103: 2022-12-29 | G103: 0 | H103: 0 | I103: 0 | J103: 0 | K103: 0 | L103: 0 | M103: 0 | N103: 0 | T103: 0 | U103: 0 | V103: 0 | W103: 0 | X103: 0 | Y103: 0 | Z103: 0
B104: 2022-12-30 | C104: 2022-12-30 | G104: 0 | H104: 0 | I104: 0 | J104: 0 | K104: 0 | L104: 0 | M104: 0 | N104: 0 | T104: 0 | U104: 0 | V104: 0 | W104: 0 | X104: 0 | Y104: 0 | Z104: 0
B105: 2022-12-31 | C105: 2022-12-31 | G105: 0 | H105: 0 | I105: 0 | J105: 0 | K105: 0 | L105: 0 | M105: 0 | N105: 0 | T105: 0 | U105: 0 | V105: 0 | W105: 0 | X105: 0 | Y105: 0 | Z105: 0
C106: عدد ايام الحضور | E106: 31 | F106: 31 | I106: 0 | L106: 0 | M106: 0 | N106: 0 | O106: 0 | P106: 0 | Q106: 0 | R106: 0 | S106: 0 | AA106: 0 | AB106: 0 | AC106: 0 | AD106: 0 | AE106: 0
A107: الاسم | B107: احمد امام | C107: اجمالى المستحق | F107: الصافى | AB107: القرض المتبقى
A108: الوظيفه | B108: مدير ادارى | C108: اجمالى الاستقطاعات | L108: 0 | M108: 0 | N108: 0 | O108: 0 | P108: 0 | Q108: 0 | R108: 0 | S108: 0 | AA108: 0 | AB108: 0 | AC108: 12000 | AD108: -140 | AE108: -100
A109: الكود | B109: اليوم | C109: التــــــــــــاريخ | D109: اذن تأخير | E109: الحضور | F109: الانصراف | G109: عدد الساعات | H109: الفعلى | I109: عدد الاضافى | J109: التأخير ساعات | K109: عدد التأخيرات | L109: الفاقد | M109: اضافى 1 | N109: اضافى2 | O109: عطلات | P109: اعتيادى 21 | Q109: عارضه 6 | R109: غياب باذن | S109: غياب بدون اذن | T109: بدل اغتراب | U109: بدل مواصلات | V109: بدل وجبه | W109: بدل غلاء معيشه | X109: بدل موبايل | Y109: بدل ملبس | Z109: بدل طبيعة عمل | AA109: مكافات | AB109: جزاء | AC109: قرض | AD109: ت اجتماعى | AE109: ت طبى خاص
A110: 230012 | B110: 2022-12-01 | C110: 2022-12-01 | E110: {=IFERROR(INDEX('مواعيد البصمه'!$F$3:F200;MATCH(1;INDEX((C6='مواعيد البصمه'!$D$3:D200)*($A$6='مواعيد البصمه'!$A$3:A200);0;1);0));"")} | I110: 0 | L110: 0 | M110: 0 | N110: 0
B111: 2022-12-02 | C111: 2022-12-02 | G111: 0 | H111: 0 | I111: 0 | J111: 0 | K111: 0 | L111: 0 | M111: 0 | N111: 0 | T111: 0 | U111: 0 | V111: 0 | W111: 0 | X111: 0 | Y111: 0 | Z111: 0
B112: 2022-12-03 | C112: 2022-12-03 | D112: اذن تاخير | G112: 0 | H112: 0 | I112: 0 | J112: 0 | K112: 0 | L112: 0 | M112: 0 | N112: 0 | T112: 0 | U112: 0 | V112: 0 | W112: 0 | X112: 0 | Y112: 0 | Z112: 0
B113: 2022-12-04 | C113: 2022-12-04 | G113: 0 | H113: 0 | I113: 0 | J113: 0 | K113: 0 | L113: 0 | M113: 0 | N113: 0 | T113: 0 | U113: 0 | V113: 0 | W113: 0 | X113: 0 | Y113: 0 | Z113: 0
B114: 2022-12-05 | C114: 2022-12-05 | G114: 0 | H114: 0 | I114: 0 | J114: 0 | K114: 0 | L114: 0 | M114: 0 | N114: 0 | T114: 0 | U114: 0 | V114: 0 | W114: 0 | X114: 0 | Y114: 0 | Z114: 0
B115: 2022-12-06 | C115: 2022-12-06 | G115: 0 | H115: 0 | I115: 0 | J115: 0 | K115: 0 | L115: 0 | M115: 0 | N115: 0 | T115: 0 | U115: 0 | V115: 0 | W115: 0 | X115: 0 | Y115: 0 | Z115: 0
B116: 2022-12-07 | C116: 2022-12-07 | G116: 0 | H116: 0 | I116: 0 | J116: 0 | K116: 0 | L116: 0 | M116: 0 | N116: 0 | T116: 0 | U116: 0 | V116: 0 | W116: 0 | X116: 0 | Y116: 0 | Z116: 0
B117: 2022-12-08 | C117: 2022-12-08 | G117: 0 | H117: 0 | I117: 0 | J117: 0 | K117: 0 | L117: 0 | M117: 0 | N117: 0 | T117: 0 | U117: 0 | V117: 0 | W117: 0 | X117: 0 | Y117: 0 | Z117: 0
B118: 2022-12-09 | C118: 2022-12-09 | G118: 0 | H118: 0 | I118: 0 | J118: 0 | K118: 0 | L118: 0 | M118: 0 | N118: 0 | T118: 0 | U118: 0 | V118: 0 | W118: 0 | X118: 0 | Y118: 0 | Z118: 0
B119: 2022-12-10 | C119: 2022-12-10 | G119: 0 | H119: 0 | I119: 0 | J119: 0 | K119: 0 | L119: 0 | M119: 0 | N119: 0 | T119: 0 | U119: 0 | V119: 0 | W119: 0 | X119: 0 | Y119: 0 | Z119: 0
B120: 2022-12-11 | C120: 2022-12-11 | G120: 0 | H120: 0 | I120: 0 | J120: 0 | K120: 0 | L120: 0 | M120: 0 | N120: 0 | T120: 0 | U120: 0 | V120: 0 | W120: 0 | X120: 0 | Y120: 0 | Z120: 0
B121: 2022-12-12 | C121: 2022-12-12 | G121: 0 | H121: 0 | I121: 0 | J121: 0 | K121: 0 | L121: 0 | M121: 0 | N121: 0 | T121: 0 | U121: 0 | V121: 0 | W121: 0 | X121: 0 | Y121: 0 | Z121: 0
B122: 2022-12-13 | C122: 2022-12-13 | G122: 0 | H122: 0 | I122: 0 | J122: 0 | K122: 0 | L122: 0 | M122: 0 | N122: 0 | T122: 0 | U122: 0 | V122: 0 | W122: 0 | X122: 0 | Y122: 0 | Z122: 0
B123: 2022-12-14 | C123: 2022-12-14 | G123: 0 | H123: 0 | I123: 0 | J123: 0 | K123: 0 | L123: 0 | M123: 0 | N123: 0 | T123: 0 | U123: 0 | V123: 0 | W123: 0 | X123: 0 | Y123: 0 | Z123: 0
B124: 2022-12-15 | C124: 2022-12-15 | G124: 0 | H124: 0 | I124: 0 | J124: 0 | K124: 0 | L124: 0 | M124: 0 | N124: 0 | T124: 0 | U124: 0 | V124: 0 | W124: 0 | X124: 0 | Y124: 0 | Z124: 0
B125: 2022-12-16 | C125: 2022-12-16 | G125: 0 | H125: 0 | I125: 0 | J125: 0 | K125: 0 | L125: 0 | M125: 0 | N125: 0 | T125: 0 | U125: 0 | V125: 0 | W125: 0 | X125: 0 | Y125: 0 | Z125: 0
B126: 2022-12-17 | C126: 2022-12-17 | G126: 0 | H126: 0 | I126: 0 | J126: 0 | K126: 0 | L126: 0 | M126: 0 | N126: 0 | T126: 0 | U126: 0 | V126: 0 | W126: 0 | X126: 0 | Y126: 0 | Z126: 0
B127: 2022-12-18 | C127: 2022-12-18 | G127: 0 | H127: 0 | I127: 0 | J127: 0 | K127: 0 | L127: 0 | M127: 0 | N127: 0 | T127: 0 | U127: 0 | V127: 0 | W127: 0 | X127: 0 | Y127: 0 | Z127: 0
B128: 2022-12-19 | C128: 2022-12-19 | G128: 0 | H128: 0 | I128: 0 | J128: 0 | K128: 0 | L128: 0 | M128: 0 | N128: 0 | T128: 0 | U128: 0 | V128: 0 | W128: 0 | X128: 0 | Y128: 0 | Z128: 0
B129: 2022-12-20 | C129: 2022-12-20 | G129: 0 | H129: 0 | I129: 0 | J129: 0 | K129: 0 | L129: 0 | M129: 0 | N129: 0 | T129: 0 | U129: 0 | V129: 0 | W129: 0 | X129: 0 | Y129: 0 | Z129: 0
B130: 2022-12-21 | C130: 2022-12-21 | G130: 0 | H130: 0 | I130: 0 | J130: 0 | K130: 0 | L130: 0 | M130: 0 | N130: 0 | T130: 0 | U130: 0 | V130: 0 | W130: 0 | X130: 0 | Y130: 0 | Z130: 0
B131: 2022-12-22 | C131: 2022-12-22 | G131: 0 | H131: 0 | I131: 0 | J131: 0 | K131: 0 | L131: 0 | M131: 0 | N131: 0 | T131: 0 | U131: 0 | V131: 0 | W131: 0 | X131: 0 | Y131: 0 | Z131: 0
B132: 2022-12-23 | C132: 2022-12-23 | G132: 0 | H132: 0 | I132: 0 | J132: 0 | K132: 0 | L132: 0 | M132: 0 | N132: 0 | T132: 0 | U132: 0 | V132: 0 | W132: 0 | X132: 0 | Y132: 0 | Z132: 0
B133: 2022-12-24 | C133: 2022-12-24 | G133: 0 | H133: 0 | I133: 0 | J133: 0 | K133: 0 | L133: 0 | M133: 0 | N133: 0 | T133: 0 | U133: 0 | V133: 0 | W133: 0 | X133: 0 | Y133: 0 | Z133: 0
B134: 2022-12-25 | C134: 2022-12-25 | G134: 0 | H134: 0 | I134: 0 | J134: 0 | K134: 0 | L134: 0 | M134: 0 | N134: 0 | T134: 0 | U134: 0 | V134: 0 | W134: 0 | X134: 0 | Y134: 0 | Z134: 0
B135: 2022-12-26 | C135: 2022-12-26 | G135: 0 | H135: 0 | I135: 0 | J135: 0 | K135: 0 | L135: 0 | M135: 0 | N135: 0 | T135: 0 | U135: 0 | V135: 0 | W135: 0 | X135: 0 | Y135: 0 | Z135: 0
B136: 2022-12-27 | C136: 2022-12-27 | G136: 0 | H136: 0 | I136: 0 | J136: 0 | K136: 0 | L136: 0 | M136: 0 | N136: 0 | T136: 0 | U136: 0 | V136: 0 | W136: 0 | X136: 0 | Y136: 0 | Z136: 0
B137: 2022-12-28 | C137: 2022-12-28 | G137: 0 | H137: 0 | I137: 0 | J137: 0 | K137: 0 | L137: 0 | M137: 0 | N137: 0 | T137: 0 | U137: 0 | V137: 0 | W137: 0 | X137: 0 | Y137: 0 | Z137: 0
B138: 2022-12-29 | C138: 2022-12-29 | G138: 0 | H138: 0 | I138: 0 | J138: 0 | K138: 0 | L138: 0 | M138: 0 | N138: 0 | T138: 0 | U138: 0 | V138: 0 | W138: 0 | X138: 0 | Y138: 0 | Z138: 0
B139: 2022-12-30 | C139: 2022-12-30 | G139: 0 | H139: 0 | I139: 0 | J139: 0 | K139: 0 | L139: 0 | M139: 0 | N139: 0 | T139: 0 | U139: 0 | V139: 0 | W139: 0 | X139: 0 | Y139: 0 | Z139: 0
B140: 2022-12-31 | C140: 2022-12-31 | G140: 0 | H140: 0 | I140: 0 | J140: 0 | K140: 0 | L140: 0 | M140: 0 | N140: 0 | T140: 0 | U140: 0 | V140: 0 | W140: 0 | X140: 0 | Y140: 0 | Z140: 0
C141: عدد ايام الحضور | E141: 31 | F141: 31 | I141: 0 | L141: 0 | M141: 0 | N141: 0 | O141: 0 | P141: 0 | Q141: 0 | R141: 0 | S141: 0 | AA141: 0 | AB141: 0 | AC141: 0 | AD141: 0 | AE141: 0
A142: الاسم | B142: احمد امام | C142: اجمالى المستحق | F142: الصافى | AB142: القرض المتبقى
A143: الوظيفه | B143: مدير ادارى | C143: اجمالى الاستقطاعات | L143: 0 | M143: 0 | N143: 0 | O143: 0 | P143: 0 | Q143: 0 | R143: 0 | S143: 0 | AA143: 0 | AB143: 0 | AC143: 12000 | AD143: -140 | AE143: -100
A144: الكود | B144: اليوم | C144: التــــــــــــاريخ | D144: اذن تأخير | E144: الحضور | F144: الانصراف | G144: عدد الساعات | H144: الفعلى | I144: عدد الاضافى | J144: التأخير ساعات | K144: عدد التأخيرات | L144: الفاقد | M144: اضافى 1 | N144: اضافى2 | O144: عطلات | P144: اعتيادى 21 | Q144: عارضه 6 | R144: غياب باذن | S144: غياب بدون اذن | T144: بدل اغتراب | U144: بدل مواصلات | V144: بدل وجبه | W144: بدل غلاء معيشه | X144: بدل موبايل | Y144: بدل ملبس | Z144: بدل طبيعة عمل | AA144: مكافات | AB144: جزاء | AC144: قرض | AD144: ت اجتماعى | AE144: ت طبى خاص
A145: 230012 | B145: 2022-12-01 | C145: 2022-12-01 | E145: {=IFERROR(INDEX('مواعيد البصمه'!$F$3:F200;MATCH(1;INDEX((C6='مواعيد البصمه'!$D$3:D200)*($A$6='مواعيد البصمه'!$A$3:A200);0;1);0));"")} | I145: 0 | L145: 0 | M145: 0 | N145: 0
B146: 2022-12-02 | C146: 2022-12-02 | E146: {=IFERROR(INDEX('مواعيد البصمه'!$F$3:F200;MATCH(1;INDEX((C6='مواعيد البصمه'!$D$3:D200)*($A$6='مواعيد البصمه'!$A$3:A200);0;1);0));"")} | I146: 0 | L146: 0 | M146: 0 | N146: 0
B147: 2022-12-03 | C147: 2022-12-03 | E147: {=IFERROR(INDEX('مواعيد البصمه'!$F$3:F200;MATCH(1;INDEX((C6='مواعيد البصمه'!$D$3:D200)*($A$6='مواعيد البصمه'!$A$3:A200);0;1);0));"")} | I147: 0 | L147: 0 | M147: 0 | N147: 0
B148: 2022-12-04 | C148: 2022-12-04 | E148: {=IFERROR(INDEX('مواعيد البصمه'!$F$3:F200;MATCH(1;INDEX((C6='مواعيد البصمه'!$D$3:D200)*($A$6='مواعيد البصمه'!$A$3:A200);0;1);0));"")} | I148: 0 | L148: 0 | M148: 0 | N148: 0
B149: 2022-12-05 | C149: 2022-12-05 | E149: {=IFERROR(INDEX('مواعيد البصمه'!$F$3:F200;MATCH(1;INDEX((C6='مواعيد البصمه'!$D$3:D200)*($A$6='مواعيد البصمه'!$A$3:A200);0;1);0));"")} | I149: 0 | L149: 0 | M149: 0 | N149: 0
B150: 2022-12-06 | C150: 2022-12-06 | G150: 0 | H150: 0 | I150: 0 | J150: 0 | K150: 0 | L150: 0 | M150: 0 | N150: 0 | T150: 0 | U150: 0 | V150: 0 | W150: 0 | X150: 0 | Y150: 0 | Z150: 0
B151: 2022-12-07 | C151: 2022-12-07 | G151: 0 | H151: 0 | I151: 0 | J151: 0 | K151: 0 | L151: 0 | M151: 0 | N151: 0 | T151: 0 | U151: 0 | V151: 0 | W151: 0 | X151: 0 | Y151: 0 | Z151: 0
B152: 2022-12-08 | C152: 2022-12-08 | G152: 0 | H152: 0 | I152: 0 | J152: 0 | K152: 0 | L152: 0 | M152: 0 | N152: 0 | T152: 0 | U152: 0 | V152: 0 | W152: 0 | X152: 0 | Y152: 0 | Z152: 0
B153: 2022-12-09 | C153: 2022-12-09 | G153: 0 | H153: 0 | I153: 0 | J153: 0 | K153: 0 | L153: 0 | M153: 0 | N153: 0 | T153: 0 | U153: 0 | V153: 0 | W153: 0 | X153: 0 | Y153: 0 | Z153: 0
B154: 2022-12-10 | C154: 2022-12-10 | G154: 0 | H154: 0 | I154: 0 | J154: 0 | K154: 0 | L154: 0 | M154: 0 | N154: 0 | T154: 0 | U154: 0 | V154: 0 | W154: 0 | X154: 0 | Y154: 0 | Z154: 0
B155: 2022-12-11 | C155: 2022-12-11 | G155: 0 | H155: 0 | I155: 0 | J155: 0 | K155: 0 | L155: 0 | M155: 0 | N155: 0 | T155: 0 | U155: 0 | V155: 0 | W155: 0 | X155: 0 | Y155: 0 | Z155: 0
B156: 2022-12-12 | C156: 2022-12-12 | G156: 0 | H156: 0 | I156: 0 | J156: 0 | K156: 0 | L156: 0 | M156: 0 | N156: 0 | T156: 0 | U156: 0 | V156: 0 | W156: 0 | X156: 0 | Y156: 0 | Z156: 0
B157: 2022-12-13 | C157: 2022-12-13 | G157: 0 | H157: 0 | I157: 0 | J157: 0 | K157: 0 | L157: 0 | M157: 0 | N157: 0 | T157: 0 | U157: 0 | V157: 0 | W157: 0 | X157: 0 | Y157: 0 | Z157: 0
B158: 2022-12-14 | C158: 2022-12-14 | G158: 0 | H158: 0 | I158: 0 | J158: 0 | K158: 0 | L158: 0 | M158: 0 | N158: 0 | T158: 0 | U158: 0 | V158: 0 | W158: 0 | X158: 0 | Y158: 0 | Z158: 0
B159: 2022-12-15 | C159: 2022-12-15 | G159: 0 | H159: 0 | I159: 0 | J159: 0 | K159: 0 | L159: 0 | M159: 0 | N159: 0 | T159: 0 | U159: 0 | V159: 0 | W159: 0 | X159: 0 | Y159: 0 | Z159: 0
B160: 2022-12-16 | C160: 2022-12-16 | G160: 0 | H160: 0 | I160: 0 | J160: 0 | K160: 0 | L160: 0 | M160: 0 | N160: 0 | T160: 0 | U160: 0 | V160: 0 | W160: 0 | X160: 0 | Y160: 0 | Z160: 0
B161: 2022-12-17 | C161: 2022-12-17 | G161: 0 | H161: 0 | I161: 0 | J161: 0 | K161: 0 | L161: 0 | M161: 0 | N161: 0 | T161: 0 | U161: 0 | V161: 0 | W161: 0 | X161: 0 | Y161: 0 | Z161: 0
B162: 2022-12-18 | C162: 2022-12-18 | G162: 0 | H162: 0 | I162: 0 | J162: 0 | K162: 0 | L162: 0 | M162: 0 | N162: 0 | T162: 0 | U162: 0 | V162: 0 | W162: 0 | X162: 0 | Y162: 0 | Z162: 0
B163: 2022-12-19 | C163: 2022-12-19 | G163: 0 | H163: 0 | I163: 0 | J163: 0 | K163: 0 | L163: 0 | M163: 0 | N163: 0 | T163: 0 | U163: 0 | V163: 0 | W163: 0 | X163: 0 | Y163: 0 | Z163: 0
B164: 2022-12-20 | C164: 2022-12-20 | G164: 0 | H164: 0 | I164: 0 | J164: 0 | K164: 0 | L164: 0 | M164: 0 | N164: 0 | T164: 0 | U164: 0 | V164: 0 | W164: 0 | X164: 0 | Y164: 0 | Z164: 0
B165: 2022-12-21 | C165: 2022-12-21 | G165: 0 | H165: 0 | I165: 0 | J165: 0 | K165: 0 | L165: 0 | M165: 0 | N165: 0 | T165: 0 | U165: 0 | V165: 0 | W165: 0 | X165: 0 | Y165: 0 | Z165: 0
B166: 2022-12-22 | C166: 2022-12-22 | G166: 0 | H166: 0 | I166: 0 | J166: 0 | K166: 0 | L166: 0 | M166: 0 | N166: 0 | T166: 0 | U166: 0 | V166: 0 | W166: 0 | X166: 0 | Y166: 0 | Z166: 0
B167: 2022-12-23 | C167: 2022-12-23 | G167: 0 | H167: 0 | I167: 0 | J167: 0 | K167: 0 | L167: 0 | M167: 0 | N167: 0 | T167: 0 | U167: 0 | V167: 0 | W167: 0 | X167: 0 | Y167: 0 | Z167: 0
B168: 2022-12-24 | C168: 2022-12-24 | G168: 0 | H168: 0 | I168: 0 | J168: 0 | K168: 0 | L168: 0 | M168: 0 | N168: 0 | T168: 0 | U168: 0 | V168: 0 | W168: 0 | X168: 0 | Y168: 0 | Z168: 0
B169: 2022-12-25 | C169: 2022-12-25 | G169: 0 | H169: 0 | I169: 0 | J169: 0 | K169: 0 | L169: 0 | M169: 0 | N169: 0 | T169: 0 | U169: 0 | V169: 0 | W169: 0 | X169: 0 | Y169: 0 | Z169: 0
B170: 2022-12-26 | C170: 2022-12-26 | G170: 0 | H170: 0 | I170: 0 | J170: 0 | K170: 0 | L170: 0 | M170: 0 | N170: 0 | T170: 0 | U170: 0 | V170: 0 | W170: 0 | X170: 0 | Y170: 0 | Z170: 0
B171: 2022-12-27 | C171: 2022-12-27 | G171: 0 | H171: 0 | I171: 0 | J171: 0 | K171: 0 | L171: 0 | M171: 0 | N171: 0 | T171: 0 | U171: 0 | V171: 0 | W171: 0 | X171: 0 | Y171: 0 | Z171: 0
B172: 2022-12-28 | C172: 2022-12-28 | G172: 0 | H172: 0 | I172: 0 | J172: 0 | K172: 0 | L172: 0 | M172: 0 | N172: 0 | T172: 0 | U172: 0 | V172: 0 | W172: 0 | X172: 0 | Y172: 0 | Z172: 0
B173: 2022-12-29 | C173: 2022-12-29 | G173: 0 | H173: 0 | I173: 0 | J173: 0 | K173: 0 | L173: 0 | M173: 0 | N173: 0 | T173: 0 | U173: 0 | V173: 0 | W173: 0 | X173: 0 | Y173: 0 | Z173: 0
B174: 2022-12-30 | C174: 2022-12-30 | G174: 0 | H174: 0 | I174: 0 | J174: 0 | K174: 0 | L174: 0 | M174: 0 | N174: 0 | T174: 0 | U174: 0 | V174: 0 | W174: 0 | X174: 0 | Y174: 0 | Z174: 0
B175: 2022-12-31 | C175: 2022-12-31 | G175: 0 | H175: 0 | I175: 0 | J175: 0 | K175: 0 | L175: 0 | M175: 0 | N175: 0 | T175: 0 | U175: 0 | V175: 0 | W175: 0 | X175: 0 | Y175: 0 | Z175: 0
C176: عدد ايام الحضور | E176: 31 | F176: 31 | I176: 0 | L176: 0 | M176: 0 | N176: 0 | O176: 0 | P176: 0 | Q176: 0 | R176: 0 | S176: 0 | AA176: 0 | AB176: 0 | AC176: 0 | AD176: 0 | AE176: 0
A177: الاسم | B177: احمد امام | C177: اجمالى المستحق | E177: -6.9140625 | F177: الصافى | G177: -6.9140625 | L177: 0 | AB177: القرض المتبقى
A178: الوظيفه | B178: مدير ادارى | C178: اجمالى الاستقطاعات | E178: 0 | H178: -6.9140625 | J178: -8.63125 | K178: 0 | L178: 0 | M178: 0 | N178: 0 | O178: 0 | P178: 0 | Q178: 0 | R178: 0 | S178: 0 | T178: 0 | U178: 0 | V178: 0 | W178: 0 | X178: 0 | Y178: 0 | Z178: 0 | AA178: 0 | AB178: 0 | AC178: 12000 | AD178: -140 | AE178: -100
A179: الكود | B179: اليوم | C179: التــــــــــــاريخ | D179: اذن تأخير | E179: الحضور | F179: الانصراف | G179: عدد الساعات | H179: الفعلى | I179: عدد الاضافى | J179: التأخير ساعات | K179: عدد التأخيرات | L179: الفاقد | M179: اضافى 1 | N179: اضافى2 | O179: عطلات | P179: اعتيادى 21 | Q179: عارضه 6 | R179: غياب باذن | S179: غياب بدون اذن | T179: بدل اغتراب | U179: بدل مواصلات | V179: بدل وجبه | W179: بدل غلاء معيشه | X179: بدل موبايل | Y179: بدل ملبس | Z179: بدل طبيعة عمل | AA179: مكافات | AB179: جزاء | AC179: قرض | AD179: ت اجتماعى | AE179: ت طبى خاص
A180: 230012 | B180: 2022-12-01 | C180: 2022-12-01 | E180: 08:51 | G180: -0.36875 | H180: -0.36875 | I180: 0 | J180: -8.63125 | K180: 0 | L180: 0 | M180: 0 | N180: 0 | T180: 0 | U180: 0 | V180: 0 | W180: 0 | X180: 0 | Y180: 0 | Z180: 0
B181: 2022-12-02 | C181: 2022-12-02 | G181: 0 | H181: 0 | I181: 0 | J181: 0 | K181: 0 | L181: 0 | M181: 0 | N181: 0 | T181: 0 | U181: 0 | V181: 0 | W181: 0 | X181: 0 | Y181: 0 | Z181: 0
B182: 2022-12-03 | C182: 2022-12-03 | G182: 0 | H182: 0 | I182: 0 | J182: 0 | K182: 0 | L182: 0 | M182: 0 | N182: 0 | T182: 0 | U182: 0 | V182: 0 | W182: 0 | X182: 0 | Y182: 0 | Z182: 0
B183: 2022-12-04 | C183: 2022-12-04 | G183: 0 | H183: 0 | I183: 0 | J183: 0 | K183: 0 | L183: 0 | M183: 0 | N183: 0 | T183: 0 | U183: 0 | V183: 0 | W183: 0 | X183: 0 | Y183: 0 | Z183: 0
B184: 2022-12-05 | C184: 2022-12-05 | G184: 0 | H184: 0 | I184: 0 | J184: 0 | K184: 0 | L184: 0 | M184: 0 | N184: 0 | T184: 0 | U184: 0 | V184: 0 | W184: 0 | X184: 0 | Y184: 0 | Z184: 0
B185: 2022-12-06 | C185: 2022-12-06 | G185: 0 | H185: 0 | I185: 0 | J185: 0 | K185: 0 | L185: 0 | M185: 0 | N185: 0 | T185: 0 | U185: 0 | V185: 0 | W185: 0 | X185: 0 | Y185: 0 | Z185: 0
B186: 2022-12-07 | C186: 2022-12-07 | G186: 0 | H186: 0 | I186: 0 | J186: 0 | K186: 0 | L186: 0 | M186: 0 | N186: 0 | T186: 0 | U186: 0 | V186: 0 | W186: 0 | X186: 0 | Y186: 0 | Z186: 0
B187: 2022-12-08 | C187: 2022-12-08 | G187: 0 | H187: 0 | I187: 0 | J187: 0 | K187: 0 | L187: 0 | M187: 0 | N187: 0 | T187: 0 | U187: 0 | V187: 0 | W187: 0 | X187: 0 | Y187: 0 | Z187: 0
B188: 2022-12-09 | C188: 2022-12-09 | G188: 0 | H188: 0 | I188: 0 | J188: 0 | K188: 0 | L188: 0 | M188: 0 | N188: 0 | T188: 0 | U188: 0 | V188: 0 | W188: 0 | X188: 0 | Y188: 0 | Z188: 0
B189: 2022-12-10 | C189: 2022-12-10 | G189: 0 | H189: 0 | I189: 0 | J189: 0 | K189: 0 | L189: 0 | M189: 0 | N189: 0 | T189: 0 | U189: 0 | V189: 0 | W189: 0 | X189: 0 | Y189: 0 | Z189: 0
B190: 2022-12-11 | C190: 2022-12-11 | G190: 0 | H190: 0 | I190: 0 | J190: 0 | K190: 0 | L190: 0 | M190: 0 | N190: 0 | T190: 0 | U190: 0 | V190: 0 | W190: 0 | X190: 0 | Y190: 0 | Z190: 0
B191: 2022-12-12 | C191: 2022-12-12 | G191: 0 | H191: 0 | I191: 0 | J191: 0 | K191: 0 | L191: 0 | M191: 0 | N191: 0 | T191: 0 | U191: 0 | V191: 0 | W191: 0 | X191: 0 | Y191: 0 | Z191: 0
B192: 2022-12-13 | C192: 2022-12-13 | G192: 0 | H192: 0 | I192: 0 | J192: 0 | K192: 0 | L192: 0 | M192: 0 | N192: 0 | T192: 0 | U192: 0 | V192: 0 | W192: 0 | X192: 0 | Y192: 0 | Z192: 0
B193: 2022-12-14 | C193: 2022-12-14 | G193: 0 | H193: 0 | I193: 0 | J193: 0 | K193: 0 | L193: 0 | M193: 0 | N193: 0 | T193: 0 | U193: 0 | V193: 0 | W193: 0 | X193: 0 | Y193: 0 | Z193: 0
B194: 2022-12-15 | C194: 2022-12-15 | G194: 0 | H194: 0 | I194: 0 | J194: 0 | K194: 0 | L194: 0 | M194: 0 | N194: 0 | T194: 0 | U194: 0 | V194: 0 | W194: 0 | X194: 0 | Y194: 0 | Z194: 0
B195: 2022-12-16 | C195: 2022-12-16 | G195: 0 | H195: 0 | I195: 0 | J195: 0 | K195: 0 | L195: 0 | M195: 0 | N195: 0 | T195: 0 | U195: 0 | V195: 0 | W195: 0 | X195: 0 | Y195: 0 | Z195: 0
B196: 2022-12-17 | C196: 2022-12-17 | G196: 0 | H196: 0 | I196: 0 | J196: 0 | K196: 0 | L196: 0 | M196: 0 | N196: 0 | T196: 0 | U196: 0 | V196: 0 | W196: 0 | X196: 0 | Y196: 0 | Z196: 0
B197: 2022-12-18 | C197: 2022-12-18 | G197: 0 | H197: 0 | I197: 0 | J197: 0 | K197: 0 | L197: 0 | M197: 0 | N197: 0 | T197: 0 | U197: 0 | V197: 0 | W197: 0 | X197: 0 | Y197: 0 | Z197: 0
B198: 2022-12-19 | C198: 2022-12-19 | G198: 0 | H198: 0 | I198: 0 | J198: 0 | K198: 0 | L198: 0 | M198: 0 | N198: 0 | T198: 0 | U198: 0 | V198: 0 | W198: 0 | X198: 0 | Y198: 0 | Z198: 0
B199: 2022-12-20 | C199: 2022-12-20 | G199: 0 | H199: 0 | I199: 0 | J199: 0 | K199: 0 | L199: 0 | M199: 0 | N199: 0 | T199: 0 | U199: 0 | V199: 0 | W199: 0 | X199: 0 | Y199: 0 | Z199: 0
B200: 2022-12-21 | C200: 2022-12-21 | G200: 0 | H200: 0 | I200: 0 | J200: 0 | K200: 0 | L200: 0 | M200: 0 | N200: 0 | T200: 0 | U200: 0 | V200: 0 | W200: 0 | X200: 0 | Y200: 0 | Z200: 0
... 395 more rows
